Workbook

Sheet Kuntakortti
A1: Valtiovarainministeriö/Kunta- ja aluehallinto-osasto,2.6.2017
A2: KUNTAKONSERNIEN TP 2015 - 2016 (lyhennetty kaava) | G2: Valitse kunta valikosta:
A4: =INDEX(Luvut!$B$3:'Luvut'!$B$300,$A$7) -> KOKO MAA (Manner-Suomi) | D4: 2015 | G4: 2016 | J4: 2017
A6: Asukasluku | D6: =VLOOKUP($A$4,Luvut!$B$3:$AV$300,2) -> 5458325 | G6: =VLOOKUP($A$4,Luvut!$B$3:$EH$300,48) -> 5474085 | I6: =((G6/D6)-1)*100 -> 0.2887332652 | J6: =VLOOKUP($A$4,Luvut!$B$3:$EH$300,90) -> 0 | L6: =((J6/G6)-1)*100 -> -100
A7: 97
A8: Tunnuslukuja | N8: Konsernilaina | O8: Konsernilaina | P8: Konsernilaina
I9: muut.% | L9: muut.% | N9: 2015 | O9: 2016 | P9: 2017
A10: Lainat, euro/as | D10: =E67 -> 5988.923708 | G10: =H67 -> 6157.971789 | I10: =((G10/D10)-1)*100 -> 2.822678813 | J10: =K67 ->  | L10: =((J10/G10)-1)*100 ->  | N10: =D6*D10 -> 3.2689492e+10 | O10: =G6*G10 -> 3.3709261e+10 | P10: =F6*F10 -> 0
A12: Lainanhoitokate | D12: =VLOOKUP($A$4,Luvut!$B$3:$AV$300,4) -> 1.5 | G12: =VLOOKUP($A$4,Luvut!$B$3:$EH$300,50) -> 1.6 | J12: =VLOOKUP($A$4,Luvut!$B$3:$EH$300,92) -> 0
A13: Suhteellinen velkaantuneisuus, % | D13: =VLOOKUP($A$4,Luvut!$B$3:$AV$300,5) -> 78.16553584 | G13: =VLOOKUP($A$4,Luvut!$B$3:$EH$300,51) -> 77.6 | J13: =VLOOKUP($A$4,Luvut!$B$3:$EH$300,93) -> 0
A14: Rahoitusvarallisuus, euro/as | D14: =VLOOKUP($A$4,Luvut!$B$3:$AV$300,6) -> -5903.283516 | G14: =VLOOKUP($A$4,Luvut!$B$3:$EH$300,52) -> -5949 | J14: =VLOOKUP($A$4,Luvut!$B$3:$EH$300,94) -> 0
A15: Omavaraisuusaste, % | D15: =VLOOKUP($A$4,Luvut!$B$3:$AV$300,10) -> 43.11851089 | G15: =VLOOKUP($A$4,Luvut!$B$3:$EH$300,56) -> 42.9 | J15: =VLOOKUP($A$4,Luvut!$B$3:$EH$300,98) -> 0
A17: Rahavarat, euro/as | D17: =VLOOKUP($A$4,Luvut!$B$3:$AV$300,11) -> 1207.195248 | G17: =VLOOKUP($A$4,Luvut!$B$3:$EH$300,57) -> 1247 | J17: =VLOOKUP($A$4,Luvut!$B$3:$EH$300,99) -> 0
A18: Kassan riittävyys, pv | D18: =VLOOKUP($A$4,Luvut!$B$3:$AV$300,12) -> 40.23659993 | G18: =VLOOKUP($A$4,Luvut!$B$3:$EH$300,58) -> 41 | J18: =VLOOKUP($A$4,Luvut!$B$3:$EH$300,100) -> 0
A19: Kassastamaksut, euro/as | D19: =VLOOKUP($A$4,Luvut!$B$3:$AV$300,13) -> 10950.88218 | G19: =VLOOKUP($A$4,Luvut!$B$3:$EH$300,59) -> 11169 | J19: =VLOOKUP($A$4,Luvut!$B$3:$EH$300,101) -> 0
A20: Tuloslaskelma | D20: 1000 | E20: euro/as | G20: 1000 | H20: euro/as | I20: muut.% | J20: 1000 | K20: euro/as | L20: muut.% | N20: 2015 - 2016 | O20: 2016 - 2017
N21: €/as | O21: €/as
A22: Henkilöstömenot (palkat+sivukulut) | D22: =VLOOKUP($A$4,Luvut!$B$3:$AZ$300,14) -> 0 | E22: =D22*1000/$D$6 -> 0
A23: Palvelujen ostot | D23: =VLOOKUP($A$4,Luvut!$B$3:$EJ$300,134) -> 0 | E23: =D23*1000/$D$6 -> 0
A24: Toimintatuotot, sis. valmistus omaan käyt. | D24: =VLOOKUP($A$4,Luvut!$B$3:$AV$300,15) -> 23476833 | E24: =D24*1000/$D$6 -> 4301.105742 | G24: =VLOOKUP($A$4,Luvut!$B$3:$EH$300,61) -> 23891978 | H24: =G24*1000/$G$6 -> 4364.561018 | I24: =((G24/D24)-1)*100 -> 1.768317728 | J24: =VLOOKUP($A$4,Luvut!$B$3:$EH$300,103) -> 0 | K24: =J24*1000/$J$6 ->  | L24: =((J24/G24)-1)*100 -> -100 | N24: =((H24/E24)-1)*100 -> 1.47532471 | O24: =((K24/H24)-1)*100 -> 
A25: Toimintakulut | D25: =VLOOKUP($A$4,Luvut!$B$3:$AV$300,16) -> 49847855 | E25: =D25*1000/$D$6 -> 9132.445393 | G25: =VLOOKUP($A$4,Luvut!$B$3:$EH$300,62) -> 50389944 | H25: =G25*1000/$G$6 -> 9205.18114 | I25: 1.087487115 | J25: =VLOOKUP($A$4,Luvut!$B$3:$EH$300,104) -> 0 | K25: =J25*1000/$J$6 ->  | L25: -100 | N25: =((H25/E25)-1)*100 -> 0.796454221 | O25: =((K25/H25)-1)*100 -> 
A26: Osuus osakkuusyhteisöjen voitosta/tappiosta | D26: =VLOOKUP($A$4,Luvut!$B$3:$AZ$300,17) -> 59655 | E26: 10.92917699 | G26: =VLOOKUP($A$4,Luvut!$B$3:$EH$300,63) -> 68081 | H26: 12.43696435 | I26: 14.12454949 | K26: =J26*1000/$J$6 ->  | L26: -100
A27: Toimintakate | D27: =VLOOKUP($A$4,Luvut!$B$3:$AV$300,18) -> -26311367 | E27: -4820.410474 | G27: =VLOOKUP($A$4,Luvut!$B$3:$EH$300,64) -> -26429885 | H27: -4828.183158 | I27: 0.4504440989 | J27: =VLOOKUP($A$4,Luvut!$B$3:$EH$300,105) -> 0 | K27: =J27*1000/$J$6 ->  | L27: -100 | N27: =((H27/E27)-1)*100 -> 0.161245265 | O27: =((K27/H27)-1)*100 -> 
A29: Verotulot | D29: =VLOOKUP($A$4,Luvut!$B$3:$AV$300,19) -> 21629067 | E29: 3962.58321 | G29: =VLOOKUP($A$4,Luvut!$B$3:$EH$300,65) -> 21942053 | H29: 4008.350802 | I29: 1.447061956 | J29: =VLOOKUP($A$4,Luvut!$B$3:$EH$300,106) -> 0 | K29: =J29*1000/$J$6 ->  | L29: -100 | N29: =((H29/E29)-1)*100 -> 1.154993839 | O29: =((K29/H29)-1)*100 -> 
A30: Valtionosuudet, | D30: =VLOOKUP($A$4,Luvut!$B$3:$AV$300,20) -> 9442539 | E30: 1729.93345 | G30: =VLOOKUP($A$4,Luvut!$B$3:$EH$300,66) -> 10050212 | H30: 1835.961992 | I30: 6.435483084 | J30: =VLOOKUP($A$4,Luvut!$B$3:$EH$300,107) -> 0 | K30: =J30*1000/$J$6 ->  | L30: -100 | N30: =((H30/E30)-1)*100 -> 6.129053203 | O30: =((K30/H30)-1)*100 -> 
A32: Verorahoitus | D32: =SUM(D29:D30) -> 31071606 | E32: 5692.51666 | G32: =SUM(G29:G30) -> 31992265 | H32: 5844.312794 | I32: 2.96302354 | J32: =SUM(J29:J30) -> 0 | K32: =J32*1000/$J$6 ->  | L32: -100 | N32: =((H32/E32)-1)*100 -> 2.66659094 | O32: =((K32/H32)-1)*100 -> 
A33: Käyttökate | D33: =D32+D27 -> 4760239 | E33: 872.1061864 | G33: =G27+G32 -> 5562380 | H33: 1016.129636 | J33: =J27+J32 -> 0 | K33: =J33*1000/$J$6 -> 
A35: Korkotuotot/-menot, netto | D35: =VLOOKUP($A$4,Luvut!$B$3:$AV$300,23) -> -435325 | E35: -79.75432024 | G35: =VLOOKUP($A$4,Luvut!$B$3:$EH$300,69) -> -384607 | H35: -70.2595959 | J35: =VLOOKUP($A$4,Luvut!$B$3:$EH$300,110) -> 0 | K35: =J35*1000/$J$6 -> 
A36: Muut rahoituskulut/-tuotot, netto | D36: =VLOOKUP($A$4,Luvut!$B$3:$AV$300,24) -> 136177 | E36: 24.9484961 | G36: =VLOOKUP($A$4,Luvut!$B$3:$EH$300,70) -> 116459 | H36: 21.27460571 | J36: =VLOOKUP($A$4,Luvut!$B$3:$EH$300,111) -> 0 | K36: =J36*1000/$J$6 -> 
A37: Vuosikate | D37: =VLOOKUP($A$4,Luvut!$B$3:$AV$300,25) -> 4449264 | E37: 815.1335804 | G37: =VLOOKUP($A$4,Luvut!$B$3:$EH$300,71) -> 5294232 | H37: 967.1446461 | J37: =VLOOKUP($A$4,Luvut!$B$3:$EH$300,112) -> 0 | K37: =J37*1000/$J$6 -> 
A39: Suunnitelman mukaiset poistot ja arvonalen. | D39: =VLOOKUP($A$4,Luvut!$B$3:$AV$300,26) -> 3816180 | E39: 699.1485483 | G39: =VLOOKUP($A$4,Luvut!$B$3:$EH$300,72) -> 3936135 | H39: 719.0489369 | I39: 3.143326573 | J39: =VLOOKUP($A$4,Luvut!$B$3:$EH$300,113) -> 0 | K39: =J39*1000/$J$6 ->  | L39: -100
A40: Satunnaiset erät | D40: =VLOOKUP($A$4,Luvut!$B$3:$AV$300,27) -> 128426 | E40: 23.5284634 | G40: =VLOOKUP($A$4,Luvut!$B$3:$EH$300,73) -> 322374 | H40: 58.89093794 | J40: =VLOOKUP($A$4,Luvut!$B$3:$EH$300,114) -> 0 | K40: =J40*1000/$J$6 -> 
A42: Tilikauden tulos | D42: =VLOOKUP($A$4,Luvut!$B$3:$AV$300,29) -> 761510 | E42: 139.5134954 | G42: =VLOOKUP($A$4,Luvut!$B$3:$EH$300,75) -> 1680471 | H42: 306.9866471 | J42: =VLOOKUP($A$4,Luvut!$B$3:$EH$300,116) -> 0 | K42: =J42*1000/$J$6 -> 
A43: Vähemmistöosuudet | D43: =VLOOKUP($A$4,Luvut!$B$3:$AV$300,30) -> -26951 | E43: =D43*1000/$D$6 -> -4.937595325 | G43: =VLOOKUP($A$4,Luvut!$B$3:$EH$300,76) -> -32889 | H43: -6.008127386 | K43: =J43*1000/$J$6 -> 
A44: Tilinpäätössiirrot | D44: =VLOOKUP($A$4,Luvut!$B$3:$AV$300,31) -> -66137 | E44: -12.11672079 | G44: =VLOOKUP($A$4,Luvut!$B$3:$EH$300,77) -> -15533 | H44: -2.837551847 | J44: =VLOOKUP($A$4,Luvut!$B$3:$EH$300,117) -> 0 | K44: =J44*1000/$J$6 -> 
A45: Varausten lisäys(-) tai vähennys(+) | D45: =VLOOKUP($A$4,Luvut!$B$3:$AV$300,32) -> 0 | E45: 0
A46: Rahastojen lisäys(-) tai vähennys(+) | D46: =VLOOKUP($A$4,Luvut!$B$3:$AV$300,33) -> 0 | E46: 0
A47: Tilikauden yli-/alijäämä | D47: =VLOOKUP($A$4,Luvut!$B$3:$AV$300,34) -> 668422 | E47: 122.4591793 | G47: =VLOOKUP($A$4,Luvut!$B$3:$EH$300,80) -> 1519540 | H47: 277.5879439 | J47: =VLOOKUP($A$4,Luvut!$B$3:$EH$300,120) -> 0 | K47: =J47*1000/$J$6 -> 
A48: Kumulatiivinen yli-/alijäämä | D48: =VLOOKUP($A$4,Luvut!$B$3:$AW$300,35) -> 9192259 | E48: 1684.080556 | G48: =VLOOKUP($A$4,Luvut!$B$3:$EH$300,81) -> 10805452 | H48: 1973.928428 | J48: =VLOOKUP($A$4,Luvut!$B$3:$EH$300,121) -> 0 | K48: =J48*1000/$J$6 -> 
A50: Rahoituslaskelma | D50: 1000 | E50: euro/as | G50: 1000 | H50: euro/as | J50: 1000 | K50: euro/as
A52: Toiminnan rahavirta | D52: =VLOOKUP($A$4,Luvut!$B$3:$AV$300,36) -> 4093841 | E52: 750.0178168 | G52: =VLOOKUP($A$4,Luvut!$B$3:$EH$300,82) -> 4883308 | H52: =G52*1000/$G$6 -> 892.0774887 | J52: =VLOOKUP($A$4,Luvut!$B$3:$EH$300,122) -> 0 | K52: =J52*1000/$J$6 -> 
A53: Investoinnit, netto | D53: =D54+D55+D56 -> -5369920 | E53: -983.8036394 | G53: =G54+G55+G56 -> -5640611 | H53: -1030.420792 | I53: 5.040875842 | J53: =J54+J55+J56 -> -5929271 | L53: 5.117530707
A54: - Investointimenot | D54: =VLOOKUP($A$4,Luvut!$B$3:$ET$300,144) -> -6500580 | E54: -1190.947772 | G54: =VLOOKUP($A$4,Luvut!$B$3:$ET$300,147) -> -7001117 | H54: -1278.956574 | I54: 7.699882164 | J54: =VLOOKUP($A$4,Luvut!$B$3:$FQ$300,146) -> 898057 | L54: -112.8273388
A55: + Rahoitusosuudet investointimenoihin | D55: =VLOOKUP($A$4,Luvut!$B$3:$ET$300,145) -> 232603 | E55: 42.61435514 | G55: =VLOOKUP($A$4,Luvut!$B$3:$ET$300,148) -> 173789 | H55: 31.74758887 | I55: =((G55/D55)-1)*100 -> -25.2851425 | J55: =VLOOKUP($A$4,Luvut!$B$3:$FQ$300,147) -> -7001117 | L55: -4128.515614
A56: + Investointihyödykkeiden luovutustulot | D56: =VLOOKUP($A$4,Luvut!$B$3:$ET$300,146) -> 898057 | E56: 164.5297779 | G56: =VLOOKUP($A$4,Luvut!$B$3:$ET$300,149) -> 1186717 | H56: 216.7881938 | I56: =((G56/D56)-1)*100 -> 32.14272591 | J56: =VLOOKUP($A$4,Luvut!$B$3:$FQ$300,148) -> 173789 | L56: -85.35548071
A57: Saamisten muutos | D57: =VLOOKUP($A$4,Luvut!$B$3:$AV$300,38) -> 107003 | E57: 19.60363298 | G57: =VLOOKUP($A$4,Luvut!$B$3:$EH$300,84) -> -144906 | H57: -26.47127328 | J57: =VLOOKUP($A$4,Luvut!$B$3:$EH$300,124) -> 0
A58: Pitkäaikaisten lainojen vähennys | D58: =VLOOKUP($A$4,Luvut!$B$3:$AV$300,39) -> -2758048 | E58: -505.2920081 | G58: =VLOOKUP($A$4,Luvut!$B$3:$EH$300,85) -> -3144680 | H58: -574.466783 | J58: =VLOOKUP($A$4,Luvut!$B$3:$EH$300,125) -> 0
A59: Pitkäaikaisten lainojen lisäys | D59: =VLOOKUP($A$4,Luvut!$B$3:$FC$300,153) -> 4070889 | E59: 745.8128638 | G59: =VLOOKUP($A$4,Luvut!$B$3:$FC$300,155) -> 4149527 | H59: 758.0311595 | J59: =VLOOKUP($A$4,Luvut!$B$3:$FC$300,155) -> 4149527
A60: ± Lyhytaikaisten lainojen muutos | D60: =VLOOKUP($A$4,Luvut!$B$3:$FC$300,154) -> 20959 | E60: 3.839822656 | G60: =VLOOKUP($A$4,Luvut!$B$3:$FC$300,156) -> 49387 | H60: 9.021964401 | J60: =VLOOKUP($A$4,Luvut!$B$3:$FC$300,156) -> 49387 | N60: 2015 - 2016 | O60: 2016 - 2017
A61: Toiminnan ja investointien rahavirta | D61: =VLOOKUP($A$4,Luvut!$B$3:$AV$300,40) -> -1276079 | E61: -233.7858226 | G61: =VLOOKUP($A$4,Luvut!$B$3:$EH$300,86) -> -757303 | H61: -138.343303 | J61: =VLOOKUP($A$4,Luvut!$B$3:$EH$300,126) -> 0 | N61: €/as | O61: €/as
A63: Verotulot | D63: =VLOOKUP($A$4,Luvut!$B$3:$AV$300,41) -> 0 | E63: 0
A64: Kunnallisvero | D64: =VLOOKUP($A$4,Luvut!$B$3:$AV$300,42) -> 0 | E64: 0
A65: Yhteisövero | D65: =VLOOKUP($A$4,Luvut!$B$3:$AV$300,43) -> 0 | E65: 0
A66: Kiinteistövero | D66: =VLOOKUP($A$4,Luvut!$B$3:$AV$300,44) -> 0 | E66: 0
A67: Lainakanta, | D67: =VLOOKUP($A$4,Luvut!$B$3:$FK$300,159) -> 32689492 | E67: 5988.923708 | G67: =VLOOKUP($A$4,Luvut!$B$3:$FK$300,163) -> 33709261 | H67: 6157.971789 | I67: =((G67/D67)-1)*100 -> 3.11956209 | J67: =VLOOKUP($A$4,Luvut!$B$3:$FQ$300,163) -> 33709261 | K67: =J67*1000/$J$6 ->  | L67: =((J67/G67)-1)*100 -> 0 | N67: =((H67/E67)-1)*100 -> 2.822678813 | O67: =((K67/H67)-1)*100 -> 
A68: josta pitkäaikainen laina | D68: =VLOOKUP($A$4,Luvut!$B$3:$FK$300,160) -> 27462794 | E68: 5031.359254 | G68: =VLOOKUP($A$4,Luvut!$B$3:$FK$300,164) -> 28570196 | H68: 5219.172885 | J68: =VLOOKUP($A$4,Luvut!$B$3:$FQ$300,164) -> 28570196 | N68: 3.732860667
A69: josta lyhytaikainen laina | D69: =VLOOKUP($A$4,Luvut!$B$3:$FK$300,161) -> 5226698 | E69: 957.5644543 | G69: =VLOOKUP($A$4,Luvut!$B$3:$FK$300,165) -> 5139065 | H69: 938.7989043 | J69: =VLOOKUP($A$4,Luvut!$B$3:$FQ$300,165) -> 5139065 | N69: -1.959716646
A70: Lainasaamiset | D70: =VLOOKUP($A$4,Luvut!$B$3:$FK$300,162) -> 1096501 | E70: 200.8859861 | G70: =VLOOKUP($A$4,Luvut!$B$3:$FK$300,166) -> 1163381 | H70: 212.5251983 | J70: =VLOOKUP($A$4,Luvut!$B$3:$FQ$300,166) -> 1163381 | N70: 5.793939347
A72: Tuloveroprosentti | D72: =VLOOKUP($A$4,Luvut!$B$3:$AV$300,45) -> 19.85 | G72: =VLOOKUP($A$4,Luvut!$B$3:$EH$300,91) -> 19.89 | J72: =VLOOKUP($A$4,Luvut!$B$3:$EH$300,131) -> 0
A73: Veroprosenttiyksikön tuotto | D73: =D64/D72 -> 0 | E73: =D73*1000/$D$6 -> 0 | J73: =J64/J72 -> 
A75: Sijoitus vuosikatteen (euro/as) mukaan | D75: =VLOOKUP($A$4,Luvut!$B$3:$AV$300,47) -> 0 | G75: =VLOOKUP($A$4,Luvut!$B$3:$EH$300,93) -> 0 | J75: =VLOOKUP($A$4,Luvut!$B$3:$EH$300,133) -> 0
A76: Lähde: Tilastokeskus
A78: Rahoitusvarallisuus = ((saamiset + rahoitusarvopaperit + rahat ja pankkisaamiset) - (vieras pääoma - saadut ennakot))
A79: Kunnat vuoden 2015 kuntajaolla

Sheet Luvut
C1: 2015 | D1: hakee muualta | E1: 92 | F1: 93 | G1: 94 | H1: vanha | I1: 96 | J1: 97 | K1: 98 | L1: 99 | M1: 100 | N1: 101 | O1: 102 | P1: 103 | Q1: 104 | S1: 105 | T1: 106 | U1: 107 | V1: 108 | W1: summana | X1: 110 | Y1: 111 | Z1: 112 | AA1: 113 | AB1: 114 | AC1: 115 | AD1: 116 | AF1: 117 | AG1: 118 | AH1: 119 | AI1: 120 | AJ1: 121 | AK1: 122 | AL1: kaavasta | AM1: 124 | AN1: 125 | AO1: 126 | AP1: 127 | AQ1: 128 | AR1: 129 | AS1: 130 | AT1: 131 | AU1: kaavasta | AV1: 133 | AW1: 2016 | AX1: hakee muualta | AY1: 92 | AZ1: 93 | BA1: 94 | BB1: vanha | BC1: 96 | BD1: 97 | BE1: 98 | BF1: 99 | BG1: 100 | BH1: 101 | BI1: 102 | BJ1: 103 | BK1: 104 | BM1: 105 | BN1: 106 | BO1: 107 | BP1: 108 | BQ1: summana | BR1: 110 | BS1: 111 | BT1: 112 | BU1: 113 | BV1: 114 | BW1: 115 | BX1: 116 | BY1: 117 | CA1: 118 | CB1: 119 | CC1: 120 | CD1: 121 | CE1: 122 | CF1: kaavasta | CG1: 124 | CH1: 125 | CI1: 126 | CJ1: 127 | CK1: 128 | CL1: 129 | CM1: 130 | CN1: 131 | CO1: kaavasta | CP1: 133 | CQ1: 2017 | CR1: hakee muualta | CS1: 92 | CT1: 93 | CU1: 94 | CV1: vanha | CW1: 96 | CX1: 97 | CY1: 98 | CZ1: 99 | DA1: 100 | DB1: 101 | DC1: 102 | DD1: 103 | DE1: 104 | DF1: 105 | DG1: 106 | DH1: 107 | DI1: 108 | DJ1: summana | DK1: 110 | DL1: 111 | DM1: 112 | DN1: 113 | DO1: 114 | DP1: 115 | DQ1: 116 | DR1: 117 | DS1: 118 | DT1: 119 | DU1: 120 | DV1: 121 | DW1: 122 | DX1: kaavasta | DY1: 124 | DZ1: 125 | EA1: 126 | EB1: 127 | EC1: 128 | ED1: 129 | EE1: 130 | EF1: 131 | EG1: kaavasta | EH1: 133 | EI1: Erillistiedot | EJ1: 135 | EK1: 136 | EL1: 137 | EM1: 138 | EN1: 139 | EO1: 2015 | EP1: 144 | EQ1: 145 | ER1: 2016 | ES1: 147 | ET1: 148 | EU1: 2017 | EV1: 147 | EW1: 148 | EX1: 2015 | EY1: 152 | EZ1: 2016 | FA1: 154 | FB1: 2017 | FD1: 2015 | FE1: 160 | FF1: 161 | FG1: 162 | FH1: 2016 | FI1: 164 | FJ1: 165 | FK1: 166 | FL1: 2017 | FM1: 164 | FN1: 165 | FO1: 166 | FS1: Yhden vero%:n | FT1: Yhden vero%:n | FW1: Nettoinv.
A2: Kunta nro | B2: Kunta | C2: Asukasluku | D2: Lainat e/asukas | E2: Lainanhoitokate | F2: Suhteellinen velkaantuneisuus-% | G2: Rahoitusvarallisuus, e/as | H2: Vuosikate | I2: Suunnitelman mukaiset poistot | J2: Tilikauden tulos | K2: Omavaraisuusaste, % | L2: Rahavarat e/as | M2: Kassan riittävyys, pv | N2: Kassasta maksut, €/as | O2: Henkilöstökulut | P2: Toimintatuotot | Q2: Toimintakulut | R2: Osuus osakkuusyhteisojen voitosta/tappiosta | S2: Toimintakate | T2: Verotulot | U2: Valtionosuudet | V2: Alv-takaisinperintä | W2: Käyttökate | X2: Korkotuotot/-menot, netto | Y2: Muut rahoitustuotot/-menot, netto (sis Osinkotuotot) | Z2: Vuosikate | AA2: Suunnitelman mukaiset poistot ja arvonalet | AB2: Satu. erät, netto | AC2: Satunnaiset kulut | AD2: Tilikauden tulos | AE2: Vähemmistöosuudet | AF2: Tilinpäätössiirrot | AG2: Varausten lisäys(-) tai vähennys(+) | AH2: Rahastojen lisäys(-) tai vähennys(+) | AI2: Tilikauden yli- tai alijäämä | AJ2: Kumulat yli/alij | AK2: Tulorah (toiminnan rahavirta) | AL2: Investoinnit, netto | AM2: Saamisten muutos (ent Pitkäaikaisten saamisten muutokset, netto) | AN2: Pitkäaikaisten lainojen vähennys | AO2: Toim ja inv rahavirta | AP2: Verotulot | AQ2: Kunnallisvero | AR2: Osuus yhteisöveron tuotosta | AS2: Kiinteistövero | AT2: Tuloveroprosentti 2013 | AU2: Yhden veroprosentin tuotto 2012 | AV2: Sijoitus vuosikatteen mukaan | AW2: Asukasluku | AX2: Lainat e/asukas | AY2: Lainanhoitokate | AZ2: Suhteellinen velkaantuneisuus-% | BA2: Rahoitusvarallisuus, e/as | BB2: Vuosikate | BC2: Suunnitelman mukaiset poistot | BD2: Tilikauden tulos | BE2: Omavaraisuusaste, % | BF2: Rahavarat e/as | BG2: Kassan riittävyys, pv | BH2: Kassasta maksut, €/as | BI2: Henkilöstökulut | BJ2: Toimintatuotot | BK2: Toimintakulut | BL2: Osuus osakkuusyhteisojen voitosta/tappiosta | BM2: Toimintakate | BN2: Verotulot | BO2: Valtionosuudet | BP2: Alv-takaisinperintä | BQ2: Käyttökate | BR2: Korkotuotot/-menot, netto | BS2: Muut rahoitustuotot/-menot, netto (sis Osinkotuotot) | BT2: Vuosikate | BU2: Suunnitelman mukaiset poistot ja arvonalet | BV2: Satu. Erät | BW2: Satu. kulut | BX2: Tilikauden tulos | BY2: Vähemmistöosuudet | BZ2: Tilinpäätössiirrot | CA2: Varausten lisäys(-) tai vähennys(+) | CB2: Rahastojen lisäys(-) tai vähennys(+) | CC2: Tilikauden yli- tai alijäämä | CD2: Kumulat yli/alij | CE2: Tulorah (toiminnan rahavirta) | CF2: Investoinnit, netto | CG2: Saamisten muutos (ent Pitkäaikaisten saamisten muutokset, netto) | CH2: Pitkäaikaisten lainojen vähennys | CI2: Toim ja inv rahavirta | CJ2: Verotulot | CK2: Kunnallisvero | CL2: Osuus yhteisöveron tuotosta | CM2: Kiinteistövero | CN2: Tuloveroprosentti 2014 | CO2: Yhden veroprosentin tuotto 2013 | CP2: Sijoitus vuosikatteen mukaan | CQ2: Asukasluku | CR2: Lainat e/asukas | CS2: Lainanhoitokate | CT2: Suhteellinen velkaantuneisuus-% | CU2: Rahoitusvarallisuus, e/as | CV2: Vuosikate | CW2: Suunnitelman mukaiset poistot | CX2: Tilikauden tulos | CY2: Omavaraisuusaste, % | CZ2: Rahavarat e/as | DA2: Kassan riittävyys, pv | DB2: Kassasta maksut, €/as | DC2: Henkilöstökulut | DD2: Toimintatuotot | DE2: Toimintakulut | DF2: Toimintakate | DG2: Verotulot | DH2: Valtionosuudet | DI2: Alv-takaisinperintä | DJ2: Käyttökate | DK2: Korkotuotot/-menot, netto | DL2: Muut rahoitustuotot/-menot, netto (sis Osinkotuotot) | DM2: Vuosikate | DN2: Suunnitelman mukaiset poistot ja arvonalet | DO2: Satu. tuotot | DP2: Satu. kulut | DQ2: Tilikauden tulos | DR2: Poistoeron lisäys(-) tai vähennys(+) | DS2: Varausten lisäys(-) tai vähennys(+) | DT2: Rahastojen lisäys(-) tai vähennys(+) | DU2: Tilikauden yli- tai alijäämä | DV2: Kumulat yli/alij | DW2: Tulorah (toiminnan rahavirta) | DX2: Investoinnit, netto | DY2: Saamisten muutos (ent Pitkäaikaisten saamisten muutokset, netto) | DZ2: Pitkäaikaisten lainojen vähennys | EA2: Toim ja inv rahavirta | EB2: Verotulot | EC2: Kunnallisvero | ED2: Osuus yhteisöveron tuotosta | EE2: Kiinteistövero | EF2: Tuloveroprosentti 2015 | EG2: Yhden veroprosentin tuotto 2006 | EH2: Sijoitus vuosikatteen mukaan | EI2: Palvelujen ostot 2015 | EJ2: Palvelujen ostot 2016 | EK2: Palvelujen ostot 2017 | EL2: Harkvar2015 | EM2: Harkvar2016 | EN2: Harkvar2017 | EO2: - Investointimenot | EP2: + Rahoitusos. investointimenoihin | EQ2: + Investointihyödykk. luovutustulot | ER2: - Investointimenot | ES2: + Rahoitusosuudet investointimenoihin | ET2: + Investointihyödykkeiden luovutustulot | EU2: - Investointimenot | EV2: + Rahoitusosuudet investointimenoihin | EW2: + Investointihyödykkeiden luovutustulot | EX2: Pitkäaikaisten lainojen lisäys | EY2: ± Lyhytaikaisten lainojen muutos | EZ2: Pitkäaikaisten lainojen lisäys | FA2: ± Lyhytaikaisten lainojen muutos | FB2: Pitkäaikaisten lainojen lisäys | FC2: ± Lyhytaikaisten lainojen muutos | FD2: Lainakanta | FE2: josta pitkäaik | FF2: josta lyhytaik | FG2: Lainasaamiset | FH2: Lainakanta | FI2: josta pitkäaik | FJ2: josta lyhytaik | FK2: Lainasaamiset | FL2: Lainakanta | FM2: josta pitkäaik | FN2: josta lyhytaik | FO2: Lainasaamiset | FP2: Konsernilainat €/as | FQ2: Konsernilainat €/as | FR2: Konsernilainat €/as | FS2: tuotto | FT2: tuotto, €/as | FW2: 2015
A3: 20 | B3: Akaa | C3: 17043 | E3: 0.5719932918 | F3: 61.01993989 | G3: -4536.75996 | K3: 21.30817908 | L3: 300.2992431 | M3: 11.3408815 | N3: 9664.965088 | P3: 57367 | Q3: 144558 | R3: 0 | S3: -87191 | T3: 59092 | U3: 32589 | X3: -429 | Y3: -100 | Z3: 3961 | AA3: 6334 | AB3: 0 | AD3: -2373 | AE3: 612 | AF3: -24 | AI3: -2427 | AJ3: -8757 | AK3: 3282 | AM3: 1308 | AN3: -7534 | AO3: -6777 | AP3: 59092 | AT3: 21.25 | AV3: 282 | AW3: 16923 | AY3: 1.092157112 | AZ3: 60.47579876 | BA3: -4432.724694 | BE3: 21.10885172 | BF3: 563.3752881 | BG3: 21.96954488 | BH3: 9359.865272 | BJ3: 57740 | BK3: 143891 | BL3: 22 | BM3: -86129 | BN3: 60148 | BO3: 34067 | BR3: -317 | BS3: 132 | BT3: 7901 | BU3: 7116 | BV3: 98 | BX3: 883 | BY3: -84 | BZ3: 9 | CC3: 689 | CD3: -7699 | CE3: 7815 | CG3: 1105 | CH3: -7176 | CI3: 2261 | CN3: 21.25 | CP3: 243 | EO3: -11427 | EP3: 341 | EQ3: 1027 | ER3: -6421 | ES3: 394 | ET3: 473 | EX3: 12000 | EY3: 2424 | EZ3: 8646 | FA3: -1099 | FD3: 70056 | FE3: 53009 | FF3: 17047 | FG3: 7333 | FH3: 70428 | FI3: 54402 | FJ3: 16026 | FK3: 7390 | FS3: =(EC3/EF3) ->  | FT3: =(FS3/CQ3)*1000 ->  | FW3: -7467 | FZ3: 4670 | GA3: =FZ3*-1 -> -4670
A4: 5 | B4: Alajärvi | C4: 10006 | E4: 1.272334294 | F4: 43.96839958 | G4: -4158.105137 | K4: 31.69283379 | L4: 1065.560664 | M4: 28.92394479 | N4: 13446.63202 | P4: 66627 | Q4: 124182 | R4: 91 | S4: -57464 | T4: 28454 | U4: 36816 | X4: -500 | Y4: 114 | Z4: 7420 | AA4: 4849 | AB4: -38 | AD4: 2533 | AE4: 1816 | AF4: -94 | AI4: 2309 | AJ4: -783 | AK4: 7280 | AM4: 1223 | AN4: -5719 | AO4: 3561 | AP4: 28454 | AT4: 21.5 | AV4: 103 | AW4: 9899 | AY4: 2.029387486 | AZ4: 41.8247322 | BA4: -3915.547025 | BE4: 34.87587475 | BF4: 926.3561976 | BG4: 23.77014253 | BH4: 14224.56814 | BJ4: 66345 | BK4: 123039 | BL4: 77 | BM4: -56617 | BN4: 29436 | BO4: 39395 | BR4: -477 | BS4: 57 | BT4: 11794 | BU4: 4798 | BV4: 0 | BX4: 6996 | BY4: -65 | BZ4: 83 | CC4: 6937 | CD4: 5760 | CE4: 11859 | CG4: -2632 | CH4: -5559 | CI4: 2530 | CN4: 22 | CP4: 23 | EO4: -4076 | EP4: 286 | EQ4: 71 | ER4: -11502 | ES4: 134 | ET4: 2039 | EX4: 5114 | EY4: 317 | EZ4: 4181 | FA4: -1500 | FD4: 41488 | FE4: 33268 | FF4: 8220 | FG4: 163 | FH4: 38620 | FI4: 32085 | FJ4: 6535 | FK4: 28 | FW4: -1776 | FZ4: 3040 | GA4: -3040
A5: 9 | B5: Alavieska | C5: 2687 | E5: 1.584708949 | F5: 49.53033385 | G5: -4667.659099 | K5: 30.8209571 | L5: 177.8935616 | M5: 5.156799574 | N5: 12591.36584 | P5: 16292 | Q5: 31617 | R5: 3 | S5: -15322 | T5: 7790 | U5: 9346 | X5: -77 | Y5: 9 | Z5: 1746 | AA5: 1149 | AB5: 0 | AD5: 597 | AE5: 68 | AF5: 0 | AI5: 597 | AJ5: -508 | AK5: 1733 | AM5: 175 | AN5: -1073 | AO5: 802 | AP5: 7790 | AT5: 21.5 | AV5: 133 | AW5: 2639 | AY5: 2.067307692 | AZ5: 41.58324942 | BA5: -3485.032209 | BE5: 36.6368089 | BF5: 749.5263357 | BG5: 21.42217079 | BH5: 12770.74649 | BJ5: 16234 | BK5: 32053 | BL5: 0 | BM5: -15819 | BN5: 7683 | BO5: 9849 | BR5: -50 | BS5: 6 | BT5: 1669 | BU5: 1054 | BV5: 681 | BX5: 1296 | BY5: -1 | BZ5: 0 | CC5: 1295 | CD5: 329 | CE5: 2383 | CG5: -1245 | CH5: -781 | CI5: 1858 | CN5: 21.5 | CP5: 171 | EO5: -1050 | EP5: 109 | EQ5: 10 | ER5: -815 | ES5: 9 | ET5: 281 | EX5: 320 | EY5: 424 | EZ5: 93 | FA5: -3 | FD5: 13050 | FE5: 6709 | FF5: 6341 | FG5: 84 | FH5: 10838 | FI5: 5187 | FJ5: 5651 | FK5: 110 | FW5: -575 | FZ5: 792 | GA5: -792
A6: 10 | B6: Alavus | C6: 12050 | E6: 0.7983721262 | F6: 64.57440667 | G6: -4738.174274 | K6: 35.32403964 | L6: 1280.829876 | M6: 40.3686877 | N6: 11580.82988 | P6: 51581 | Q6: 118452 | R6: 30 | S6: -66841 | T6: 34014 | U6: 37398 | X6: -611 | Y6: 920 | Z6: 4880 | AA6: 6038 | AB6: 0 | AD6: -1158 | AE6: 366 | AF6: -26 | AI6: -1213 | AJ6: 9493 | AK6: 4742 | AM6: 721 | AN6: -6292 | AO6: -8325 | AP6: 34014 | AT6: 20.75 | AV6: 247 | AW6: 11907 | AY6: 0.7740948496 | AZ6: 60.31173758 | BA6: -5001.175779 | BE6: 35.39784783 | BF6: 1332.913412 | BG6: 37.17171879 | BH6: 13088.26741 | BJ6: 64883 | BK6: 130531 | BL6: 541 | BM6: -65107 | BN6: 34376 | BO6: 38870 | BR6: -449 | BS6: 949 | BT6: 8639 | BU6: 6022 | BV6: 0 | BX6: 2617 | BY6: -34 | BZ6: -12 | CC6: 2515 | CD6: 12545 | CE6: 7964 | CG6: 489 | CH6: -11297 | CI6: -2302 | CN6: 21.25 | CP6: 133 | EO6: -14134 | EP6: 194 | EQ6: 873 | ER6: -12793 | ES6: 546 | ET6: 1981 | EX6: 11219 | EY6: 2056 | EZ6: 19669 | FA6: 554 | FD6: 60717 | FE6: 50125 | FF6: 10592 | FG6: 1764 | FH6: 69825 | FI6: 59081 | FJ6: 10744 | FK6: 2204 | FW6: -4697 | FZ6: 2706 | GA6: -2706
A7: 16 | B7: Asikkala | C7: 8287 | E7: 5.631212724 | F7: 53.27164574 | G7: -3954.145046 | K7: 38.24714722 | L7: 494.0267889 | M7: 19.41343068 | N7: 9288.403524 | P7: 30917 | Q7: 71353 | R7: -14 | S7: -40450 | T7: 29378 | U7: 16868 | X7: -306 | Y7: -139 | Z7: 5351 | AA7: 3865 | AB7: -30 | AD7: 1456 | AE7: 6 | AF7: -22 | AI7: 1434 | AJ7: 4148 | AK7: 5264 | AM7: -440 | AN7: -692 | AO7: 1607 | AP7: 29378 | AT7: 20.75 | AV7: 136 | AW7: 8323 | AY7: 2.09071618 | AZ7: 46.72654992 | BA7: -3451.399736 | BE7: 43.60687023 | BF7: 377.3879611 | BG7: 14.3771789 | BH7: 9580.920341 | BJ7: 31656 | BK7: 71447 | BL7: 4 | BM7: -39787 | BN7: 29926 | BO7: 17906 | BR7: -176 | BS7: -171 | BT7: 7698 | BU7: 4014 | BV7: -6 | BX7: 3678 | BY7: 0 | BZ7: -1 | CC7: 3596 | CD7: 7509 | CE7: 7667 | CG7: -1007 | CH7: -3586 | CI7: 4275 | CN7: 20.75 | CP7: 70 | EO7: -4426 | EP7: 190 | EQ7: 579 | ER7: -4015 | ES7: 231 | ET7: 392 | EX7: 1524 | EY7: -2530 | EZ7: 2274 | FA7: -2000 | FD7: 31761 | FE7: 10901 | FF7: 20860 | FG7: 145 | FH7: 28449 | FI7: 9771 | FJ7: 18678 | FK7: 229 | FW7: -1895 | FZ7: 380 | GA7: -380
A8: 18 | B8: Askola | C8: 5104 | E8: 1.026143791 | F8: 65.84157171 | G8: -4365.987461 | K8: 19.01364278 | L8: 398.315047 | M8: 17.16623869 | N8: 8469.239812 | P8: 14479 | Q8: 38746 | R8: -1 | S8: -24268 | T8: 18430 | U8: 6844 | X8: -199 | Y8: 247 | Z8: 1054 | AA8: 1780 | AB8: 0 | AD8: -726 | AE8: 10 | AF8: 89 | AI8: -637 | AJ8: -2084 | AK8: 910 | AM8: -663 | AN8: -1022 | AO8: -2100 | AP8: 18430 | AT8: 20.25 | AV8: 287 | AW8: 5046 | AY8: 1.401490066 | AZ8: 64.73328732 | BA8: -4507.530717 | BE8: 18.51346832 | BF8: 340.8640507 | BG8: 14.62891763 | BH8: 8504.756243 | BJ8: 14258 | BK8: 39091 | BL8: 0 | BM8: -24833 | BN8: 19174 | BO8: 7136 | BR8: -192 | BS8: 216 | BT8: 1501 | BU8: 1892 | BV8: 0 | BX8: -391 | BY8: 0 | BZ8: 93 | CC8: -298 | CD8: -2045 | CE8: 1323 | CG8: -419 | CH8: -1016 | CI8: -961 | CN8: 20.25 | CP8: 275 | EO8: -3207 | EP8: 24 | EQ8: 173 | ER8: -2567 | ES8: 2 | ET8: 281 | EX8: 1463 | EY8: 2176 | EZ8: 2695 | FA8: -1485 | FD8: 21513 | FE8: 14465 | FF8: 7048 | FG8: 0 | FH8: 21697 | FI8: 15999 | FJ8: 5698 | FK8: 0 | FW8: -2484 | FZ8: 699 | GA8: -699
A9: 19 | B9: Aura | C9: 3986 | E9: 1.109298532 | F9: 68.18942384 | G9: -4732.313096 | K9: 12.16430955 | L9: 304.816859 | M9: 13.16262021 | N9: 8452.584044 | P9: 12423 | Q9: 30335 | R9: 1 | S9: -17911 | T9: 13875 | U9: 5377 | X9: -124 | Y9: 16 | Z9: 1233 | AA9: 1289 | AB9: 0 | AD9: -56 | AE9: -7 | AF9: 0 | AI9: -91 | AJ9: -1894 | AK9: 1096 | AM9: 265 | AN9: -1099 | AO9: -692 | AP9: 13875 | AT9: 21 | AV9: 273 | AW9: 3984 | AY9: 2.275105485 | AZ9: 59.63508517 | BA9: -4296.435743 | BE9: 17.96246649 | BF9: 299.6987952 | BG9: 13.42689013 | BH9: 8147.088353 | BJ9: 12522 | BK9: 30312 | BL9: 0 | BM9: -17790 | BN9: 14440 | BO9: 6032 | BR9: -66 | BS9: 12 | BT9: 2628 | BU9: 1259 | BV9: 0 | BX9: 1369 | BY9: -49 | BZ9: 0 | CC9: 1320 | CD9: -543 | CE9: 2607 | CG9: 156 | CH9: -1117 | CI9: 1700 | CN9: 21.75 | CP9: 159 | EO9: -2122 | EP9: 80 | EQ9: 254 | ER9: -958 | ES9: 3 | ET9: 48 | EX9: 55 | EY9: 1967 | EZ9: 49 | FA9: -520 | FD9: 21599 | FE9: 6586 | FF9: 15013 | FG9: 0 | FH9: 16296 | FI9: 5511 | FJ9: 10785 | FK9: 0 | FW9: -1321 | FZ9: 607 | GA9: -607
A10: 46 | B10: Enonkoski | C10: 1473 | E10: 1.406818182 | F10: 20.68084236 | G10: 152.7494908 | K10: 72.39079257 | L10: 2188.051595 | M10: 58.50673895 | N10: 13650.37339 | P10: 9643 | Q10: 18560 | R10: 0 | S10: -8917 | T10: 4825 | U10: 5096 | X10: -23 | Y10: 223 | Z10: 1204 | AA10: 802 | AB10: -65 | AD10: 337 | AE10: 0 | AF10: 0 | AI10: 337 | AJ10: 5610 | AK10: 1231 | AM10: 4 | AN10: -846 | AO10: 696 | AP10: 4825 | AT10: 21 | AV10: 82 | AW10: 1453 | AY10: 4.46728972 | AZ10: 17.25612937 | BA10: 807.2952512 | BE10: 77.05100504 | BF10: 2294.562973 | BG10: 63.81614138 | BH10: 13123.88162 | BJ10: 9399 | BK10: 17959 | BL10: 0 | BM10: -8560 | BN10: 4544 | BO10: 5227 | BR10: -13 | BS10: 212 | BT10: 1410 | BU10: 780 | BV10: -65 | BX10: 565 | BY10: 0 | BZ10: -79 | CC10: 495 | CD10: 6061 | CE10: 1452 | CG10: -54 | CH10: -297 | CI10: 806 | CN10: 21 | CP10: 58 | EO10: -661 | EP10: 6 | EQ10: 120 | ER10: -787 | ES10: 73 | ET10: 68 | EX10: 84 | EY10: -98 | EZ10: 44 | FA10: -82 | FD10: 1471 | FE10: 1269 | FF10: 202 | FG10: 0 | FH10: 1164 | FI10: 1022 | FJ10: 142 | FK10: -53 | FW10: -498 | FZ10: 63 | GA10: -63
A11: 47 | B11: Enontekiö | C11: 1861 | E11: 1.080409357 | F11: 94.72455902 | G11: -6750.134336 | K11: 35.34066714 | L11: 1836.109618 | M11: 58.692 | N11: 11418.59215 | P11: 3569 | Q11: 17395 | R11: 6 | S11: -13820 | T11: 6023 | U11: 8833 | X11: -204 | Y11: 429 | Z11: 1261 | AA11: 1198 | AB11: 5 | AD11: 68 | AE11: 633 | AF11: -74 | AI11: -10 | AJ11: -107 | AK11: 1237 | AM11: 926 | AN11: -1151 | AO11: -879 | AP11: 6023 | AT11: 20.75 | AV11: 122 | AW11: 1872 | AY11: 1.166040571 | AZ11: 99.92231717 | BA11: -7270.299145 | BE11: 31.97454481 | BF11: 1537.92735 | BG11: 48.25435092 | BH11: 11633.01282 | BJ11: 2936 | BK11: 16836 | BL11: -4 | BM11: -13904 | BN11: 6151 | BO11: 8935 | BR11: -82 | BS11: 266 | BT11: 1366 | BU11: 1108 | BV11: 0 | BX11: 258 | BY11: -1 | BZ11: 0 | CC11: 259 | CD11: 576 | CE11: 1306 | CG11: 540 | CH11: -1145 | CI11: -924 | CN11: 21.25 | CP11: 131 | EO11: -2234 | EP11: 117 | EQ11: 1 | ER11: -3331 | ES11: 1021 | ET11: 80 | EX11: 2723 | EY11: -701 | EZ11: 307 | FA11: 456 | FD11: 12005 | FE11: 10495 | FF11: 1510 | FG11: 81 | FH11: 11675 | FI11: 9704 | FJ11: 1971 | FK11: 81 | FW11: -833 | FZ11: 874 | GA11: -874
A12: 49 | B12: Espoo | C12: 269800 | E12: 1.746266655 | F12: 130.5053205 | G12: -7779.951816 | K12: 44.21051771 | L12: 3313.428466 | M12: 103.6059562 | N12: 11673.08747 | P12: 954496 | Q12: 2193314 | R12: 692 | S12: -1238126 | T12: 1393802 | U12: 84376 | X12: -27346 | Y12: 33521 | Z12: 246227 | AA12: 220614 | AB12: 0 | AD12: 25613 | AE12: 9431 | AF12: 39148 | AI12: 64719 | AJ12: 558885 | AK12: 210727 | AM12: 16740 | AN12: -123793 | AO12: -481200 | AP12: 1393802 | AT12: 18 | AV12: 53 | AW12: 274583 | AY12: 1.942542217 | AZ12: 140.2772277 | BA12: -8531.332967 | BE12: 41.82287592 | BF12: 3764.17331 | BG12: 120.0713733 | BH12: 11442.55471 | BJ12: 982749 | BK12: 2234818 | BL12: -2334 | BM12: -1254403 | BN12: 1446483 | BO12: 116040 | BR12: -30747 | BS12: 20127 | BT12: 297500 | BU12: 237379 | BV12: 13541 | BX12: 73662 | BY12: 29 | BZ12: 60 | CC12: 72112 | CD12: 629653 | CE12: 259201 | CG12: -12525 | CH12: -131950 | CI12: -372917 | CN12: 18 | CP12: 37 | EO12: -776344 | EP12: 43335 | EQ12: 41082 | ER12: -726495 | ES12: 30414 | ET12: 63963 | EX12: 639085 | EY12: -9183 | EZ12: 626942 | FA12: -6325 | FD12: 2698010 | FE12: 2562825 | FF12: 135185 | FG12: 211961 | FH12: 3186678 | FI12: 3056512 | FJ12: 130166 | FK12: 210467 | FW12: -262144 | FZ12: 55179 | GA12: -55179
A13: 50 | B13: Eura | C13: 12128 | E13: 1.423871784 | F13: 66.6124516 | G13: -4857.354881 | K13: 33.72812798 | L13: 487.1372032 | M13: 18.43235804 | N13: 9646.355541 | P13: 36066 | Q13: 102621 | R13: -44 | S13: -66599 | T13: 45291 | U13: 26854 | X13: -784 | Y13: 1203 | Z13: 5965 | AA13: 5645 | AB13: 0 | AD13: 320 | AE13: 553 | AF13: -102 | AI13: 93 | AJ13: 3737 | AK13: 6377 | AM13: -451 | AN13: -3955 | AO13: -2619 | AP13: 45291 | AT13: 20.5 | AV13: 212 | AW13: 12004 | AY13: 1.481371088 | AZ13: 67.05498074 | BA13: -4887.954015 | BE13: 33.72350754 | BF13: 497.4175275 | BG13: 19.56439581 | BH13: 9279.990003 | BJ13: 35238 | BK13: 100185 | BL13: 0 | BM13: -64947 | BN13: 43653 | BO13: 27037 | BR13: -703 | BS13: 1208 | BT13: 6248 | BU13: 5435 | BV13: 0 | BX13: 813 | BY13: -43 | BZ13: 0 | CC13: 642 | CD13: 4004 | CE13: 6368 | CG13: 880 | CH13: -3987 | CI13: -59 | CN13: 20.5 | CP13: 222 | EO13: -9582 | EP13: 640 | EQ13: -54 | ER13: -6501 | ES13: 87 | ET13: -13 | EX13: 8717 | EY13: -2539 | EZ13: 271 | FA13: 4200 | FD13: 53290 | FE13: 41396 | FF13: 11894 | FG13: 70 | FH13: 54035 | FI13: 38127 | FJ13: 15908 | FK13: 50 | FW13: -6376 | FZ13: 818 | GA13: -818
A14: 51 | B14: Eurajoki | C14: 5938 | E14: 61.8951049 | F14: 24.45331927 | G14: 2035.53385 | K14: 83.03985171 | L14: 3815.257663 | M14: 115.2789589 | N14: 12079.99326 | P14: 23606 | Q14: 58773 | R14: -2 | S14: -35169 | T14: 34542 | U14: 8207 | X14: 124 | Y14: 1082 | Z14: 8786 | AA14: 3763 | AB14: -2 | AD14: 5021 | AE14: 17 | AF14: 0 | AI14: 5019 | AJ14: 68463 | AK14: 7549 | AM14: -1628 | AN14: -78 | AO14: -3181 | AP14: 34542 | AT14: 18 | AV14: 2 | AW14: 6070 | AY14: 9.156218905 | AZ14: 22.3069421 | BA14: 2182.537068 | BE14: 84.82852292 | BF14: 4058.15486 | BG14: 130.2729038 | BH14: 11370.18122 | BJ14: 21029 | BK14: 59307 | BL14: -6 | BM14: -38284 | BN14: 38036 | BO14: 8609 | BR14: 71 | BS14: 731 | BT14: 9163 | BU14: 4275 | BV14: 3 | BX14: 4891 | BY14: 2 | BZ14: 0 | CC14: 4886 | CD14: 73485 | CE14: 9091 | CG14: 1833 | CH14: -966 | CI14: 1073 | CN14: 18 | CP14: 7 | EO14: -10962 | EP14: 31 | EQ14: 201 | ER14: -8307 | ES14: 16 | ET14: 273 | EX14: 545 | EY14: 666 | EZ14: 26 | FA14: -904 | FD14: 5640 | FE14: 3632 | FF14: 2008 | FG14: 146 | FH14: 3694 | FI14: 2948 | FJ14: 746 | FK14: 130 | FW14: -7328 | FZ14: 701 | GA14: -701
A15: 52 | B15: Evijärvi | C15: 2576 | E15: 2.779329609 | F15: 34.50991594 | G15: -232.9192547 | K15: 59.00504956 | L15: 2682.453416 | M15: 100.4520472 | N15: 9746.89441 | P15: 7223 | Q15: 23615 | R15: 7 | S15: -16385 | T15: 8877 | U15: 8406 | X15: 13 | Y15: 37 | Z15: 948 | AA15: 798 | AB15: 0 | AD15: 150 | AE15: 143 | AF15: -32 | AI15: 112 | AJ15: 3263 | AK15: 935 | AM15: 98 | AN15: -311 | AO15: 10 | AP15: 8877 | AT15: 21.5 | AV15: 258 | AW15: 2535 | AY15: 2.319201995 | AZ15: 35.03646627 | BA15: -347.1400394 | BE15: 56.23661919 | BF15: 2625.246548 | BG15: 96.3345231 | BH15: 9946.745562 | BJ15: 7088 | BK15: 23575 | BL15: 4 | BM15: -16483 | BN15: 8615 | BO15: 8566 | BR15: 171 | BS15: 35 | BT15: 904 | BU15: 834 | BV15: 0 | BX15: 70 | BY15: -7 | BZ15: -30 | CC15: 25 | CD15: 3286 | CE15: 924 | CG15: 47 | CH15: -375 | CI15: -273 | CN15: 21.5 | CP15: 264 | EO15: -1124 | EP15: 176 | EQ15: 23 | ER15: -1216 | ES15: 9 | ET15: 10 | EX15: 39 | EY15: -494 | EZ15: 173 | FA15: 500 | FD15: 5899 | FE15: 1745 | FF15: 4154 | FG15: 58 | FH15: 6210 | FI15: 1705 | FJ15: 4505 | FK15: 57 | FW15: -540 | FZ15: 500 | GA15: -500
A16: 61 | B16: Forssa | C16: 17422 | E16: 1.965212965 | F16: 49.26865437 | G16: -3159.453564 | K16: 48.96236482 | L16: 1026.345999 | M16: 35.38296604 | N16: 10587.47561 | P16: 73086 | Q16: 166775 | R16: 117 | S16: -93572 | T16: 59678 | U16: 45264 | X16: -829 | Y16: 119 | Z16: 10660 | AA16: 9067 | AB16: 0 | AD16: 1593 | AE16: 2048 | AF16: -119 | AI16: 1540 | AJ16: 20111 | AK16: 9322 | AM16: 2456 | AN16: -4972 | AO16: -1419 | AP16: 59678 | AT16: 20 | AV16: 150 | AW16: 17332 | AY16: 2.361519806 | AZ16: 49.1041761 | BA16: -3408.839141 | BE16: 48.95149333 | BF16: 1135.64505 | BG16: 37.84235283 | BH16: 10953.61182 | BJ16: 73748 | BK16: 166829 | BL16: 56 | BM16: -93025 | BN16: 60408 | BO16: 47018 | BR16: -622 | BS16: 154 | BT16: 13933 | BU16: 8501 | BV16: 0 | BX16: 5432 | BY16: 94 | BZ16: 171 | CC16: 5643 | CD16: 24755 | CE16: 12701 | CG16: 4273 | CH16: -5512 | CI16: -3878 | CN16: 20 | CP16: 101 | EO16: -11773 | EP16: 188 | EQ16: 844 | ER16: -16789 | ES16: 51 | ET16: 159 | EX16: 8277 | EY16: 406 | EZ16: 5181 | FA16: -4032 | FD16: 64164 | FE16: 48570 | FF16: 15594 | FG16: 336 | FH16: 60008 | FI16: 47742 | FJ16: 12266 | FK16: 305 | FW16: -7725 | FZ16: 2820 | GA16: -2820
A17: 69 | B17: Haapajärvi | C17: 7438 | E17: 1.018236126 | F17: 56.95277793 | G17: -3549.072331 | K17: 39.02842341 | L17: 2785.022856 | M17: 77.83665675 | N17: 13059.82791 | P17: 44549 | Q17: 86667 | R17: 15 | S17: -42103 | T17: 23151 | U17: 23465 | X17: -581 | Y17: 1938 | Z17: 5870 | AA17: 3524 | AB17: 0 | AD17: 2346 | AE17: 2116 | AF17: 29 | AI17: 2208 | AJ17: 5800 | AK17: 5671 | AM17: 1068 | AN17: -5754 | AO17: 2206 | AP17: 23151 | AT17: 22 | AV17: 90 | AW17: 7332 | AY17: 0.6600848564 | AZ17: 60.92620349 | BA17: -3926.077469 | BE17: 34.27099087 | BF17: 2728.723404 | BG17: 72.55394933 | BH17: 13727.49591 | BJ17: 40616 | BK17: 87803 | BL17: 19 | BM17: -47168 | BN17: 23037 | BO17: 27083 | BR17: -501 | BS17: 1078 | BT17: 3529 | BU17: 3603 | BV17: -259 | BX17: -333 | BY17: -53 | BZ17: -2 | CC17: -458 | CD17: 4756 | CE17: 3430 | CG17: -1539 | CH17: -5612 | CI17: -2528 | CN17: 22 | CP17: 237 | EO17: -3945 | EP17: 417 | EQ17: 63 | ER17: -6533 | ES17: 489 | ET17: 86 | EX17: 4043 | EY17: -1698 | EZ17: 7059 | FA17: 1971 | FD17: 38778 | FE17: 28718 | FF17: 10060 | FG17: 205 | FH17: 42099 | FI17: 29374 | FJ17: 12725 | FK17: 216 | FW17: -1136 | FZ17: 5099 | GA17: -5099
A18: 71 | B18: Haapavesi | C18: 7167 | E18: 0.7237174096 | F18: 53.03471113 | G18: -4459.048416 | K18: 27.76904003 | L18: 1604.995117 | M18: 41.08897762 | N18: 14257.42989 | P18: 51216 | Q18: 91724 | R18: 12 | S18: -40496 | T18: 21200 | U18: 22107 | X18: -365 | Y18: 563 | Z18: 3009 | AA18: 4062 | AB18: -19 | AD18: -1072 | AE18: 587 | AF18: -4 | AI18: -1074 | AJ18: 320 | AK18: 2836 | AM18: 284 | AN18: -4323 | AO18: -1907 | AP18: 21200 | AT18: 21.25 | AV18: 241 | AW18: 7098 | AY18: 0.555041044 | AZ18: 55.46494022 | BA18: -4778.247394 | BE18: 24.44143721 | BF18: 1653.705269 | BG18: 41.00267968 | BH18: 14721.04818 | BJ18: 52007 | BK18: 93366 | BL18: 1 | BM18: -41358 | BN18: 20805 | BO18: 22953 | BR18: -270 | BS18: 180 | BT18: 2310 | BU18: 3844 | BV18: 0 | BX18: -1534 | BY18: -1 | BZ18: -4 | CC18: -1579 | CD18: -1575 | CE18: 2538 | CG18: -434 | CH18: -4424 | CI18: -1599 | CN18: 22 | CP18: 270 | EO18: -5579 | EP18: 736 | EQ18: 100 | ER18: -6169 | ES18: 1991 | ET18: 41 | EX18: 1219 | EY18: 6816 | EZ18: 5638 | FA18: 1927 | FD18: 45288 | FE18: 15187 | FF18: 30101 | FG18: 1 | FH18: 48554 | FI18: 17008 | FJ18: 31546 | FK18: 19 | FW18: -2869 | FZ18: 1987 | GA18: -1987
A19: 72 | B19: Hailuoto | C19: 993 | E19: 4.18627451 | F19: 56.80074205 | G19: -2377.643505 | K19: 56.31499073 | L19: 3431.01712 | M19: 102.0645929 | N19: 12269.88922 | P19: 4724 | Q19: 11068 | R19: 3 | S19: -6341 | T19: 3432 | U19: 3703 | X19: -9 | Y19: 56 | Z19: 841 | AA19: 686 | AB19: 0 | AD19: 155 | AE19: 7 | AF19: 2 | AI19: 157 | AJ19: 6657 | AK19: 832 | AM19: -252 | AN19: -191 | AO19: 226 | AP19: 3432 | AT19: 20 | AV19: 72 | AW19: 994 | AY19: 2.362962963 | AZ19: 57.39966555 | BA19: -2836.016097 | BE19: 55.90873416 | BF19: 2677.062374 | BG19: 74.44355024 | BH19: 13125.75453 | BJ19: 4977 | BK19: 11338 | BL19: 0 | BM19: -6361 | BN19: 3336 | BO19: 3647 | BR19: -9 | BS19: 2 | BT19: 615 | BU19: 685 | BV19: 0 | BX19: -70 | BY19: -1 | BZ19: -1 | CC19: -73 | CD19: 6621 | CE19: 624 | CG19: -370 | CH19: -247 | CI19: -495 | CN19: 20 | CP19: 179 | EO19: -908 | EP19: 90 | EQ19: 212 | ER19: -1437 | ES19: 250 | ET19: 68 | EX19: 1004 | EY19: -8 | EZ19: 816 | FA19: -4 | FD19: 2827 | FE19: 2580 | FF19: 247 | FG19: 0 | FH19: 3392 | FI19: 3166 | FJ19: 226 | FK19: 5 | FW19: -550 | FZ19: 0 | GA19: 0
A20: 74 | B20: Halsua | C20: 1225 | E20: 0.4267756128 | F20: 118.5581934 | G20: -11164.08163 | K20: 27.10925478 | L20: 1422.857143 | M20: 29.18325688 | N20: 17795.91837 | P20: 5561 | Q20: 13200 | R20: 18 | S20: -7621 | T20: 3838 | U20: 4417 | X20: -168 | Y20: 23 | Z20: 489 | AA20: 613 | AB20: -14 | AD20: -138 | AE20: 11 | AF20: -94 | AI20: -232 | AJ20: 2237 | AK20: 392 | AM20: -103 | AN20: -1401 | AO20: -6246 | AP20: 3838 | AT20: 21.5 | AV20: 251 | AW20: 1219 | AY20: 1.372854914 | AZ20: 118.6900382 | BA20: -11153.40443 | BE20: 26.72493302 | BF20: 1169.811321 | BG20: 36.41572798 | BH20: 11725.18458 | BJ20: 5581 | BK20: 13051 | BL20: 34 | BM20: -7436 | BN20: 3649 | BO20: 4633 | BR20: -143 | BS20: 24 | BT20: 727 | BU20: 774 | BV20: -4 | BX20: -51 | BY20: -3 | BZ20: 1 | CC20: -54 | CD20: 2337 | CE20: 705 | CG20: -303 | CH20: -488 | CI20: 156 | CN20: 21.5 | CP20: 192 | EO20: -6995 | EP20: 280 | EQ20: 77 | ER20: -590 | ES20: 0 | ET20: 41 | EX20: 5568 | EY20: 711 | EZ20: 138 | FA20: 284 | FD20: 13630 | FE20: 10493 | FF20: 3137 | FG20: 83 | FH20: 13613 | FI20: 10232 | FJ20: 3381 | FK20: 93 | FW20: -312 | FZ20: 188 | GA20: -188
A21: 75 | B21: Hamina | C21: 20851 | E21: 1.336668905 | F21: 89.91555967 | G21: -7645.052995 | K21: 34.29062171 | L21: 678.0010551 | M21: 22.88169378 | N21: 10815.2127 | P21: 87899 | Q21: 193973 | R21: -76 | S21: -106150 | T21: 82811 | U21: 42103 | X21: -2660 | Y21: 1094 | Z21: 17198 | AA21: 16241 | AB21: 275 | AD21: 1232 | AE21: 2514 | AF21: 83 | AI21: 1337 | AJ21: 6473 | AK21: 16234 | AM21: -3146 | AN21: -12185 | AO21: 4542 | AP21: 82811 | AT21: 21 | AV21: 78 | AW21: 20636 | AY21: 0.6269088482 | AZ21: 86.06438147 | BA21: -7431.575887 | BE21: 34.98327599 | BF21: 905.9410739 | BG21: 27.47017951 | BH21: 12037.36189 | BJ21: 89621 | BK21: 196366 | BL21: 1083 | BM21: -105662 | BN21: 81940 | BO21: 44992 | BR21: -2343 | BS21: 1214 | BT21: 20141 | BU21: 16440 | BV21: 0 | BX21: 3701 | BY21: 53 | BZ21: 0 | CC21: 3548 | CD21: 10712 | CE21: 19109 | CG21: 3485 | CH21: -33554 | CI21: 7315 | CN21: 21 | CP21: 57 | EO21: -16531 | EP21: 131 | EQ21: 4708 | ER21: -15716 | ES21: 72 | ET21: 3850 | EX21: 14192 | EY21: -2027 | EZ21: 29423 | FA21: 200 | FD21: 152096 | FE21: 135815 | FF21: 16281 | FG21: 501 | FH21: 148165 | FI21: 130774 | FJ21: 17391 | FK21: 758 | FW21: -10450 | FZ21: 9905 | GA21: -9905
A22: 77 | B22: Hankasalmi | C22: 5240 | E22: 2.426470588 | F22: 42.80532718 | G22: -3393.129771 | K22: 42.31783317 | L22: 307.4427481 | M22: 10.47930924 | N22: 10708.39695 | P22: 18510 | Q22: 50287 | R22: 6 | S22: -31771 | T22: 15267 | U22: 19985 | X22: -133 | Y22: 97 | Z22: 3445 | AA22: 2490 | AB22: 0 | AD22: 955 | AE22: 423 | AF22: -82 | AI22: 863 | AJ22: -2394 | AK22: 3194 | AM22: -672 | AN22: -1311 | AO22: -669 | AP22: 15267 | AT22: 22 | AV22: 129 | AW22: 5159 | AY22: 3.582372323 | AZ22: 48.20959568 | BA22: -3502.810622 | BE22: 40.88957915 | BF22: 905.0203528 | BG22: 30.62987527 | BH22: 10784.64819 | BJ22: 17234 | BK22: 49802 | BL22: 0 | BM22: -32568 | BN22: 15514 | BO22: 21318 | BR22: -87 | BS22: 37 | BT22: 4214 | BU22: 2483 | BV22: 0 | BX22: 1731 | BY22: -5 | BZ22: 191 | CC22: 1853 | CD22: -691 | CE22: 4216 | CG22: 408 | CH22: -1079 | CI22: -65 | CN22: 22 | CP22: 98 | EO22: -4274 | EP22: 33 | EQ22: 378 | ER22: -4476 | ES22: 120 | ET22: 75 | EX22: 0 | EY22: 1662 | EZ22: 1353 | FA22: 2233 | FD22: 14775 | FE22: 7886 | FF22: 6889 | FG22: 0 | FH22: 17283 | FI22: 8414 | FJ22: 8869 | FK22: 0 | FW22: -5012 | FZ22: 985 | GA22: -985
A23: 78 | B23: Hanko | C23: 8864 | E23: 1.512009276 | F23: 87.62040107 | G23: -8160.649819 | K23: 22.52490699 | L23: 1156.25 | M23: 36.0008565 | N23: 11722.81137 | P23: 49155 | Q23: 92254 | R23: -3 | S23: -43102 | T23: 40070 | U23: 12103 | X23: -1190 | Y23: 42 | Z23: 7923 | AA23: 7713 | AB23: 326 | AD23: 536 | AE23: 25 | AF23: -1 | AI23: 536 | AJ23: -12607 | AK23: 7591 | AM23: -197 | AN23: -4832 | AO23: 4080 | AP23: 40070 | AT23: 21.75 | AV23: 59 | AW23: 8663 | AY23: 1.652855369 | AZ23: 86.08793088 | BA23: -8361.07584 | BE23: 25.77566405 | BF23: 1040.286275 | BG23: 31.06177643 | BH23: 12224.17176 | BJ23: 50050 | BK23: 91181 | BL23: -1 | BM23: -41132 | BN23: 38792 | BO23: 12897 | BR23: -1228 | BS23: 61 | BT23: 9390 | BU23: 5414 | BV23: 0 | BX23: 3976 | BY23: -1 | BZ23: 1 | CC23: 3457 | CD23: -7948 | CE23: 7855 | CG23: 192 | CH23: -5183 | CI23: 897 | CN23: 21.75 | CP23: 36 | EO23: -5511 | EP23: 10 | EQ23: 1990 | ER23: -7859 | ES23: 5 | ET23: 896 | EX23: 5400 | EY23: 607 | EZ23: 4022 | FA23: 65 | FD23: 74741 | FE23: 33158 | FF23: 41583 | FG23: 500 | FH23: 74732 | FI23: 28260 | FJ23: 46472 | FK23: 416 | FW23: -2585 | FZ23: 13300 | GA23: -13300
A24: 79 | B24: Harjavalta | C24: 7296 | E24: 0.898078243 | F24: 42.87400208 | G24: -3133.223684 | K24: 47.14839608 | L24: 411.0471491 | M24: 13.82900638 | N24: 10849.09539 | P24: 26709 | Q24: 69358 | R24: -73 | S24: -42722 | T24: 30476 | U24: 14840 | X24: -247 | Y24: 21 | Z24: 2368 | AA24: 3147 | AB24: 14 | AD24: -765 | AE24: 75 | AF24: -37 | AI24: -825 | AJ24: 9953 | AK24: 2276 | AM24: -55 | AN24: -2665 | AO24: -4155 | AP24: 30476 | AT24: 19.75 | AV24: 269 | AW24: 7240 | AY24: 0.3461055276 | AZ24: 46.67123652 | BA24: -3357.044199 | BE24: 42.9835442 | BF24: 637.8453039 | BG24: 22.10525626 | BH24: 10532.0442 | BJ24: 26885 | BK24: 70411 | BL24: -1 | BM24: -43527 | BN24: 30405 | BO24: 14193 | BR24: -221 | BS24: 25 | BT24: 875 | BU24: 3220 | BV24: 0 | BX24: -2345 | BY24: 7 | BZ24: 0 | CC24: -2379 | CD24: 7575 | CE24: 646 | CG24: 552 | CH24: -2957 | CI24: -1646 | CN24: 19.75 | CP24: 288 | EO24: -6856 | EP24: 6 | EQ24: 419 | ER24: -2643 | ES24: 20 | ET24: 331 | EX24: 4724 | EY24: 925 | EZ24: 3175 | FA24: 2614 | FD24: 20566 | FE24: 16204 | FF24: 4362 | FG24: 0 | FH24: 23367 | FI24: 15993 | FJ24: 7374 | FK24: 0 | FW24: -1711 | FZ24: 0 | GA24: 0
A25: 81 | B25: Hartola | C25: 2982 | E25: 0.9926174497 | F25: 111.9655016 | G25: -10210.59691 | K25: 16.01859301 | L25: 976.5258216 | M25: 27.73333333 | N25: 12852.11268 | P25: 14037 | Q25: 30125 | R25: 0 | S25: -16088 | T25: 10219 | U25: 8789 | X25: -382 | Y25: 25 | Z25: 2563 | AA25: 1634 | AB25: 0 | AD25: 929 | AE25: 37 | AF25: -5 | AI25: 887 | AJ25: 147 | AK25: 2357 | AM25: -51 | AN25: -2585 | AO25: -1005 | AP25: 10219 | AT25: 21.5 | AV25: 68 | AW25: 2924 | AY25: 1.202507599 | AZ25: 112.1114619 | BA25: -10554.71956 | BE25: 16.8699772 | BF25: 617.3050616 | BG25: 18.15545084 | BH25: 12410.39672 | BJ25: 14141 | BK25: 29815 | BL25: 0 | BM25: -15674 | BN25: 9741 | BO25: 9062 | BR25: -339 | BS25: 22 | BT25: 2812 | BU25: 1738 | BV25: -566 | BX25: 508 | BY25: -36 | BZ25: 34 | CC25: 506 | CD25: 1178 | CE25: 2195 | CG25: -630 | CH25: -2279 | CI25: -469 | CN25: 21.5 | CP25: 62 | EO25: -5200 | EP25: 1503 | EQ25: 335 | ER25: -3834 | ES25: 961 | ET25: 209 | EX25: 2849 | EY25: 561 | EZ25: 2616 | FA25: -31 | FD25: 32378 | FE25: 26900 | FF25: 5478 | FG25: 67 | FH25: 32865 | FI25: 27459 | FJ25: 5406 | FK25: 31 | FW25: -2729 | FZ25: 1545 | GA25: -1545
A26: 82 | B26: Hattula | C26: 9747 | E26: 0.9678754434 | F26: 66.0697257 | G26: -4449.163845 | K26: 36.27272727 | L26: 123.3199959 | M26: 5.234067429 | N26: 8599.77429 | P26: 22081 | Q26: 66540 | R26: 18 | S26: -44441 | T26: 36734 | U26: 12493 | X26: -112 | Y26: -96 | Z26: 4578 | AA26: 2705 | AB26: 0 | AD26: 1873 | AE26: 30 | AF26: -60 | AI26: 1810 | AJ26: 7593 | AK26: 4373 | AM26: 139 | AN26: -4741 | AO26: -5096 | AP26: 36734 | AT26: 20 | AV26: 222 | AW26: 9682 | AY26: 0.7935003385 | AZ26: 74.80302946 | BA26: -5191.799215 | BE26: 33.26493221 | BF26: 104.7304276 | BG26: 4.408643137 | BH26: 8670.832473 | BJ26: 22703 | BK26: 68725 | BL26: 0 | BM26: -46022 | BN26: 36577 | BO26: 12812 | BR26: -48 | BS26: -63 | BT26: 3256 | BU26: 2770 | BV26: -271 | BX26: 215 | BY26: 0 | BZ26: 2 | CC26: 135 | CD26: 7728 | CE26: 3272 | CG26: -51 | CH26: -4171 | CI26: -7257 | CN26: 20 | CP26: 268 | EO26: -12071 | EP26: 1344 | EQ26: 1258 | ER26: -10679 | ES26: 265 | ET26: -115 | EX26: 11802 | EY26: -1019 | EZ26: 3060 | FA26: 7641 | FD26: 38701 | FE26: 30956 | FF26: 7745 | FG26: 4157 | FH26: 45167 | FI26: 29799 | FJ26: 15368 | FK26: 4152 | FW26: -7768 | FZ26: 1420 | GA26: -1420
A27: 86 | B27: Hausjärvi | C27: 8729 | E27: 0.7049819928 | F27: 58.31193983 | G27: -3447.359377 | K27: 31.93122931 | L27: 821.1708099 | M27: 36.97508444 | N27: 8106.197732 | P27: 21888 | Q27: 62021 | R27: 62 | S27: -40071 | T27: 32179 | U27: 12542 | X27: -549 | Y27: 35 | Z27: 4136 | AA27: 2848 | AB27: 0 | AD27: 1288 | AE27: 180 | AF27: -17 | AI27: 1273 | AJ27: 3677 | AK27: 3829 | AM27: 39 | AN27: -6102 | AO27: 3285 | AP27: 32179 | AT27: 21 | AV27: 221 | AW27: 8641 | AY27: 0.8060370592 | AZ27: 48.82221671 | BA27: -3113.759981 | BE27: 37.22136394 | BF27: 521.5831501 | BG27: 22.83847008 | BH27: 8335.840759 | BJ27: 22652 | BK27: 63212 | BL27: 2 | BM27: -40558 | BN27: 32433 | BO27: 13476 | BR27: -420 | BS27: 32 | BT27: 4963 | BU27: 2781 | BV27: 0 | BX27: 2182 | BY27: -6 | BZ27: 26 | CC27: 2196 | CD27: 5692 | CE27: 4848 | CG27: -480 | CH27: -6261 | CI27: 3087 | CN27: 21.5 | CP27: 202 | EO27: -2068 | EP27: 0 | EQ27: 1524 | ER27: -2120 | ES27: 118 | ET27: 241 | EX27: 7233 | EY27: -662 | EZ27: 478 | FA27: 597 | FD27: 32144 | FE27: 25723 | FF27: 6421 | FG27: 194 | FH27: 26959 | FI27: 20331 | FJ27: 6628 | FK27: 177 | FW27: -121 | FZ27: 3465 | GA27: -3465
A28: 111 | B28: Heinola | C28: 19575 | E28: 0.442262046 | F28: 50.7082642 | G28: -90.37037037 | K28: 57.59795899 | L28: 4055.32567 | M28: 141.321161 | N28: 10473.9719 | P28: 71155 | Q28: 175485 | R28: -1 | S28: -104331 | T28: 71054 | U28: 37385 | X28: -1090 | Y28: 3271 | Z28: 6289 | AA28: 8402 | AB28: 1123 | AD28: -990 | AE28: 50 | AF28: -27 | AI28: -1007 | AJ28: 22998 | AK28: 7287 | AM28: 881 | AN28: -15688 | AO28: -1908 | AP28: 71054 | AT28: 20.5 | AV28: 271 | AW28: 19350 | AY28: 0.9683996908 | AZ28: 54.74735839 | BA28: -298.8113695 | BE28: 54.73999682 | BF28: 4359.018088 | BG28: 148.9833047 | BH28: 10679.32817 | BJ28: 73429 | BK28: 178811 | BL28: 0 | BM28: -105382 | BN28: 71326 | BO28: 41022 | BR28: -775 | BS28: 3020 | BT28: 9211 | BU28: 10104 | BV28: -14 | BX28: -907 | BY28: -1 | BZ28: -2 | CC28: -856 | CD28: 22036 | CE28: 9394 | CG28: -1636 | CH28: -9538 | CI28: -3992 | CN28: 20.5 | CP28: 240 | EO28: -10795 | EP28: 383 | EQ28: 1217 | ER28: -16223 | ES28: 2102 | ET28: 735 | EX28: 21312 | EY28: -3537 | EZ28: 18944 | FA28: 2988 | FD28: 63600 | FE28: 45715 | FF28: 17885 | FG28: 198 | FH28: 76029 | FI28: 54259 | FJ28: 21770 | FK28: 161 | FW28: -7190 | FZ28: 6262 | GA28: -6262
A29: 90 | B29: Heinävesi | C29: 3574 | E29: 1.655395683 | F29: 67.47445404 | G29: -5632.064913 | K29: 27.09329013 | L29: 1318.410744 | M29: 42.49660251 | N29: 11323.72692 | P29: 13712 | Q29: 37361 | R29: 1 | S29: -23648 | T29: 12039 | U29: 13492 | X29: 4 | Y29: 289 | Z29: 2176 | AA29: 2146 | AB29: 0 | AD29: 30 | AE29: 95 | AF29: 136 | AI29: 163 | AJ29: 757 | AK29: 2166 | AM29: -103 | AN29: -1265 | AO29: 475 | AP29: 12039 | AT29: 20.75 | AV29: 153 | AW29: 3514 | AY29: 1.999041227 | AZ29: 73.25062997 | BA29: -5664.484917 | BE29: 26.56906602 | BF29: 1409.220262 | BG29: 48.02657101 | BH29: 10710.01707 | BJ29: 10299 | BK29: 34474 | BL29: 0 | BM29: -24175 | BN29: 11892 | BO29: 13922 | BR29: 64 | BS29: 300 | BT29: 2003 | BU29: 2526 | BV29: 0 | BX29: -523 | BY29: 0 | BZ29: 267 | CC29: -257 | CD29: 600 | CE29: 1984 | CG29: -2 | CH29: -961 | CI29: 452 | CN29: 20.75 | CP29: 205 | EO29: -1719 | EP29: 21 | EQ29: 7 | ER29: -1903 | ES29: 342 | ET29: 29 | EX29: 419 | EY29: 900 | EZ29: 106 | FA29: 1000 | FD29: 21051 | FE29: 7881 | FF29: 13170 | FG29: 0 | FH29: 21181 | FI29: 7233 | FJ29: 13948 | FK29: 0 | FW29: -1157 | FZ29: 225 | GA29: -225
A30: 91 | B30: Helsinki | C30: 628208 | E30: 3.584228172 | F30: 96.73036063 | G30: -6854.981153 | K30: 58.77404731 | L30: 2384.660813 | M30: 79.0740917 | N30: 11007.41315 | P30: 3114365 | Q30: 5559544 | R30: 7794 | S30: -2437385 | T30: 3067915 | U30: 273172 | X30: -70566 | Y30: 4707 | Z30: 837843 | AA30: 645659 | AB30: 115565 | AD30: 307749 | AE30: 69574 | AF30: -26674 | AI30: 282445 | AJ30: 3559243 | AK30: 813437 | AM30: 25162 | AN30: -168807 | AO30: -56632 | AP30: 3067915 | AT30: 18.5 | AV30: 3 | AW30: 635181 | AY30: 1.687631258 | AZ30: 91.16286439 | BA30: -6726.30636 | BE30: 60.07768361 | BF30: 1980.082843 | BG30: 58.98894248 | BH30: 12251.96125 | BJ30: 3156032 | BK30: 5604281 | BL30: 9883 | BM30: -2438366 | BN30: 3205605 | BO30: 316330 | BR30: -56998 | BS30: 5412 | BT30: 1031983 | BU30: 676631 | BV30: 272830 | BX30: 628182 | BY30: 1754 | BZ30: -12546 | CC30: 598432 | CD30: 4153306 | CE30: 1001650 | CG30: -115793 | CH30: -581447 | CI30: -37322 | CN30: 18.5 | CP30: 4 | EO30: -1074671 | EP30: 7008 | EQ30: 197594 | ER30: -1505347 | ES30: 20003 | ET30: 446372 | EX30: 269182 | EY30: -30345 | EZ30: 534986 | FA30: -24788 | FD30: 5011275 | FE30: 4443558 | FF30: 567717 | FG30: 475906 | FH30: 4940025 | FI30: 4661008 | FJ30: 279017 | FK30: 478671 | FW30: -403282 | FZ30: 116591 | GA30: -116591
A31: 97 | B31: Hirvensalmi | C31: 2290 | E31: 2.85883905 | F31: 47.63156814 | G31: -1429.257642 | K31: 48.59550562 | L31: 2981.659389 | M31: 101.371568 | N31: 10735.80786 | P31: 9858 | Q31: 22360 | R31: 0 | S31: -12502 | T31: 7427 | U31: 7056 | X31: -130 | Y31: 182 | Z31: 2033 | AA31: 1338 | AB31: 1 | AD31: 696 | AE31: 11 | AF31: 0 | AI31: 693 | AJ31: 2765 | AK31: 1992 | AM31: -34 | AN31: -624 | AO31: 658 | AP31: 7427 | AT31: 19.5 | AV31: 62 | AW31: 2274 | AY31: 2.396694215 | AZ31: 46.62843664 | BA31: -1338.610378 | BE31: 49.18318992 | BF31: 3117.854002 | BG31: 102.9416445 | BH31: 11054.96922 | BJ31: 10076 | BK31: 22968 | BL31: 0 | BM31: -12892 | BN31: 7377 | BO31: 7135 | BR31: -111 | BS31: 118 | BT31: 1627 | BU31: 1289 | BV31: 1 | BX31: 339 | BY31: -4 | BZ31: -6 | CC31: 328 | CD31: 3014 | CE31: 1667 | CG31: 161 | CH31: -613 | CI31: 314 | CN31: 19.5 | CP31: 137 | EO31: -1445 | EP31: 80 | EQ31: 31 | ER31: -1420 | ES31: 12 | ET31: 55 | EX31: 490 | EY31: 0 | EZ31: 21 | FA31: 305 | FD31: 7968 | FE31: 6836 | FF31: 1132 | FG31: 0 | FH31: 7682 | FI31: 6220 | FJ31: 1462 | FK31: 0 | FW31: -710 | FZ31: 301 | GA31: -301
A32: 98 | B32: Hollola | C32: 21813 | E32: 1.042861485 | F32: 44.24970082 | G32: -3211.846147 | K32: 39.98203196 | L32: 1324.485399 | M32: 38.53695928 | N32: 12544.76688 | P32: 143877 | Q32: 245405 | R32: 0 | S32: -101528 | T32: 83775 | U32: 27213 | X32: -805 | Y32: 821 | Z32: 9476 | AA32: 12745 | AB32: -67 | AD32: -3336 | AE32: 744 | AF32: 66 | AI32: -3311 | AJ32: 11524 | AK32: 9325 | AM32: -397 | AN32: -9053 | AO32: -7346 | AP32: 83775 | AT32: 21 | AV32: 235 | AW32: 23791 | AY32: 1.442199681 | AZ32: 46.39061323 | BA32: -3247.152284 | BE32: 40.45399958 | BF32: 1343.575302 | BG32: 42.37280595 | BH32: 11573.57824 | BJ32: 140184 | BK32: 250012 | BL32: 31 | BM32: -109797 | BN32: 90990 | BO32: 35755 | BR32: -933 | BS32: 245 | BT32: 16260 | BU32: 10542 | BV32: -14 | BX32: 5704 | BY32: -34 | BZ32: -1 | CC32: 5613 | CD32: 18195 | CE32: 15997 | CG32: 202 | CH32: -10985 | CI32: 4004 | CN32: 21 | CP32: 147 | EO32: -17999 | EP32: 93 | EQ32: 1235 | ER32: -12995 | ES32: 247 | ET32: 755 | EX32: 11360 | EY32: -10 | EZ32: 10200 | FA32: -400 | FD32: 70576 | FE32: 61225 | FF32: 9351 | FG32: 83 | FH32: 79879 | FI32: 70011 | FJ32: 9868 | FK32: 119 | FW32: -13599 | FZ32: 3784 | GA32: -3784
A33: 99 | B33: Honkajoki | C33: 1793 | E33: 1.198630137 | F33: 34.56708526 | G33: -3679.308422 | K33: 26.46866841 | L33: 401.5616286 | M33: 10.11274868 | N33: 14493.58617 | P33: 15002 | Q33: 25026 | R33: 0 | S33: -10024 | T33: 6002 | U33: 4717 | X33: -82 | Y33: 5 | Z33: 618 | AA33: 533 | AB33: 0 | AD33: 85 | AE33: 5 | AF33: 0 | AI33: 85 | AJ33: -1522 | AK33: 621 | AM33: 60 | AN33: -502 | AO33: 335 | AP33: 6002 | AT33: 21.5 | AV33: 264 | AW33: 1759 | AY33: 1.236786469 | AZ33: 33.85201651 | BA33: -3571.347356 | BE33: 27.25970853 | BF33: 421.8305856 | BG33: 10.66595778 | BH33: 14435.4747 | BJ33: 14315 | BK33: 24618 | BL33: 0 | BM33: -10303 | BN33: 6147 | BO33: 4730 | BR33: -59 | BS33: 10 | BT33: 525 | BU33: 534 | BV33: 0 | BX33: -9 | BY33: 1 | BZ33: 0 | CC33: -8 | CD33: -1525 | CE33: 527 | CG33: 69 | CH33: -413 | CI33: 278 | CN33: 21.5 | CP33: 274 | EO33: -371 | EP33: 3 | EQ33: 82 | ER33: -295 | ES33: 18 | ET33: 28 | EX33: 119 | EY33: -115 | EZ33: 7 | FA33: 73 | FD33: 5021 | FE33: 4348 | FF33: 673 | FG33: 0 | FH33: 4681 | FI33: 3997 | FJ33: 684 | FK33: 0 | FW33: -134 | FZ33: 435 | GA33: -435
A34: 102 | B34: Huittinen | C34: 10473 | E34: 2.106968641 | F34: 46.37868655 | G34: -2836.818486 | K34: 50.56683721 | L34: 625.3222572 | M34: 24.3951687 | N34: 9356.058436 | P34: 28751 | Q34: 84994 | R34: -216 | S34: -56459 | T34: 32997 | U34: 29462 | X34: -257 | Y34: 34 | Z34: 5777 | AA34: 4447 | AB34: 0 | AD34: 1330 | AE34: 214 | AF34: -62 | AI34: 1248 | AJ34: 10546 | AK34: 5392 | AM34: 299 | AN34: -2600 | AO34: -3746 | AP34: 32997 | AT34: 20.25 | AV34: 183 | AW34: 10403 | AY34: 1.455861877 | AZ34: 46.35847986 | BA34: -2666.923003 | BE34: 51.28590265 | BF34: 734.884168 | BG34: 31.05268136 | BH34: 8637.989042 | BJ34: 25240 | BK34: 82750 | BL34: -217 | BM34: -57727 | BN34: 32587 | BO34: 30323 | BR34: -252 | BS34: 35 | BT34: 4966 | BU34: 4789 | BV34: -1 | BX34: 176 | BY34: -18 | BZ34: -34 | CC34: 124 | CD34: 10636 | CE34: 4658 | CG34: 562 | CH34: -3329 | CI34: 1994 | CN34: 20.5 | CP34: 239 | EO34: -10080 | EP34: 37 | EQ34: 905 | ER34: -3489 | ES34: 108 | ET34: 717 | EX34: 5647 | EY34: 27 | EZ34: 3423 | FA34: -33 | FD34: 26580 | FE34: 23509 | FF34: 3071 | FG34: 0 | FH34: 26616 | FI34: 23255 | FJ34: 3361 | FK34: 0 | FW34: -7466 | FZ34: 1775 | GA34: -1775
A35: 103 | B35: Humppila | C35: 2388 | E35: 1.047191011 | F35: 41.66955467 | G35: -3023.450586 | K35: 39.73166927 | L35: 262.5628141 | M35: 9.652663545 | N35: 9928.39196 | P35: 8648 | Q35: 21699 | R35: 1 | S35: -13050 | T35: 7559 | U35: 6877 | X35: -90 | Y35: -7 | Z35: 1289 | AA35: 834 | AB35: 0 | AD35: 455 | AE35: 2 | AF35: -14 | AI35: 442 | AJ35: -642 | AK35: 1221 | AM35: -55 | AN35: -1226 | AO35: 726 | AP35: 7559 | AT35: 21.5 | AV35: 191 | AW35: 2345 | AY35: 0.4511002445 | AZ35: 41.18511475 | BA35: -3109.594883 | BE35: 39.3194947 | BF35: 247.761194 | BG35: 8.497555698 | BH35: 10642.21748 | BJ35: 8777 | BK35: 22399 | BL35: 0 | BM35: -13622 | BN35: 7442 | BO35: 6918 | BR35: -81 | BS35: -11 | BT35: 646 | BU35: 834 | BV35: 0 | BX35: -188 | BY35: 0 | BZ35: -25 | CC35: -213 | CD35: -842 | CE35: 633 | CG35: 28 | CH35: -1544 | CI35: -82 | CN35: 21.5 | CP35: 277 | EO35: -654 | EP35: 7 | EQ35: 152 | ER35: -899 | ES35: 34 | ET35: 150 | EX35: 1518 | EY35: -727 | EZ35: 661 | FA35: 1125 | FD35: 6897 | FE35: 4562 | FF35: 2335 | FG35: 11 | FH35: 6810 | FI35: 3836 | FJ35: 2974 | FK35: 10 | FW35: -338 | FZ35: 958 | GA35: -958
A36: 105 | B36: Hyrynsalmi | C36: 2422 | E36: 3.5 | F36: 39.25432379 | G36: -4442.196532 | K36: 39.45729158 | L36: 754.3352601 | M36: 19.01605452 | N36: 14478.94302 | P36: 16752 | Q36: 33831 | R36: 0 | S36: -17079 | T36: 8216 | U36: 10302 | X36: -103 | Y36: 8 | Z36: 1344 | AA36: 1291 | AB36: 36 | AD36: 89 | AE36: 0 | AF36: 0 | AI36: 89 | AJ36: -2541 | AK36: 1398 | AM36: 317 | AN36: -309 | AO36: 628 | AP36: 8216 | AT36: 21.75 | AV36: 177 | AW36: 2406 | AY36: 1.006129597 | AZ36: 37.5343496 | BA36: -4282.211139 | BE36: 40.44153648 | BF36: 549.8753117 | BG36: 13.63416907 | BH36: 14720.69825 | BJ36: 16928 | BK36: 33353 | BL36: 0 | BM36: -16425 | BN36: 7537 | BO36: 10106 | BR36: -69 | BS36: -72 | BT36: 1077 | BU36: 1249 | BV36: 10 | BX36: -162 | BY36: 0 | BZ36: -14 | CC36: -176 | CD36: -2717 | CE36: 1051 | CG36: -93 | CH36: -1070 | CI36: 431 | CN36: 21.75 | CP36: 247 | EO36: -799 | EP36: 24 | EQ36: 5 | ER36: -820 | ES36: 134 | ET36: 66 | EX36: 51 | EY36: -890 | EZ36: 1 | FA36: 467 | FD36: 10458 | FE36: 7424 | FF36: 3034 | FG36: 1 | FH36: 9172 | FI36: 5850 | FJ36: 3322 | FK36: 0 | FW36: -166 | FZ36: 734 | GA36: -734
A37: 106 | B37: Hyvinkää | C37: 46463 | E37: 1.270214676 | F37: 67.52658124 | G37: -4752.254482 | K37: 41.43197504 | L37: 707.6383359 | M37: 26.8932301 | N37: 9604.201192 | P37: 168924 | Q37: 377890 | R37: 771 | S37: -208195 | T37: 194911 | U37: 46981 | X37: -4079 | Y37: 138 | Z37: 29756 | AA37: 29614 | AB37: -589 | AD37: -447 | AE37: 785 | AF37: 115 | AI37: -238 | AJ37: 42031 | AK37: 24095 | AM37: -3717 | AN37: -22531 | AO37: -10533 | AP37: 194911 | AT37: 19.75 | AV37: 138 | AW37: 46596 | AY37: 1.979324164 | AZ37: 70.18691433 | BA37: -4791.055026 | BE37: 40.69450511 | BF37: 1073.375397 | BG37: 40.92513507 | BH37: 9573.139325 | BJ37: 169167 | BK37: 377443 | BL37: 142 | BM37: -208134 | BN37: 197930 | BO37: 53470 | BR37: -3690 | BS37: 144 | BT37: 39720 | BU37: 30728 | BV37: 0 | BX37: 8992 | BY37: -51 | BZ37: -257 | CC37: 7949 | CD37: 49475 | CE37: 35520 | CG37: 1804 | CH37: -18216 | CI37: -3695 | CN37: 19.75 | CP37: 88 | EO37: -41018 | EP37: 1414 | EQ37: 4976 | ER37: -46118 | ES37: 2308 | ET37: 4595 | EX37: 28868 | EY37: 2535 | EZ37: 40921 | FA37: 1519 | FD37: 201010 | FE37: 183767 | FF37: 17243 | FG37: 2037 | FH37: 225234 | FI37: 209635 | FJ37: 15599 | FK37: 2037 | FW37: -12002 | FZ37: 14443 | GA37: -14443
A38: 108 | B38: Hämeenkyrö | C38: 10667 | E38: 1.522801788 | F38: 72.75743467 | G38: -4681.634949 | K38: 37.0575657 | L38: 989.7815693 | M38: 34.50604848 | N38: 10469.76657 | P38: 33531 | Q38: 85569 | R38: 1 | S38: -52037 | T38: 35705 | U38: 21185 | X38: -377 | Y38: 72 | Z38: 4548 | AA38: 5056 | AB38: 0 | AD38: -508 | AE38: 642 | AF38: -77 | AI38: -595 | AJ38: 7437 | AK38: 4284 | AM38: 997 | AN38: -2794 | AO38: -16841 | AP38: 35705 | AT38: 21 | AV38: 237 | AW38: 10681 | AY38: 1.945454545 | AZ38: 79.23557043 | BA38: -5371.407172 | BE38: 32.55929644 | BF38: 1126.767157 | BG38: 42.02687447 | BH38: 9785.881472 | BJ38: 34877 | BK38: 87294 | BL38: 17 | BM38: -52400 | BN38: 36062 | BO38: 22307 | BR38: -381 | BS38: 38 | BT38: 5626 | BU38: 7669 | BV38: 52 | BX38: -1991 | BY38: -81 | BZ38: 5 | CC38: -2162 | CD38: 5223 | CE38: 5626 | CG38: 818 | CH38: -2662 | CI38: -7391 | CN38: 21 | CP38: 217 | EO38: -22465 | EP38: 879 | EQ38: 461 | ER38: -13776 | ES38: 531 | ET38: 228 | EX38: 20000 | EY38: -2494 | EZ38: 3372 | FA38: 7425 | FD38: 50327 | FE38: 41628 | FF38: 8699 | FG38: 0 | FH38: 58524 | FI38: 42280 | FJ38: 16244 | FK38: 32 | FW38: -21977 | FZ38: 704 | GA38: -704
A39: 109 | B39: Hämeenlinna | C39: 68011 | E39: 0.96365921 | F39: 80.65776382 | G39: -5019.246887 | K39: 43.67228252 | L39: 1549.499346 | M39: 57.16374047 | N39: 9893.811295 | P39: 211673 | Q39: 558299 | R39: 2381 | S39: -344245 | T39: 275761 | U39: 113572 | X39: -4711 | Y39: 5838 | Z39: 46215 | AA39: 40010 | AB39: 0 | AD39: 6205 | AE39: 19315 | AF39: -618 | AI39: 5337 | AJ39: 10748 | AK39: 38755 | AM39: -4425 | AN39: -48413 | AO39: 7113 | AP39: 275761 | AT39: 20.5 | AV39: 121 | AW39: 67850 | AY39: 1.502901825 | AZ39: 85.83162285 | BA39: -5377.361828 | BE39: 39.3976037 | BF39: 1712.070744 | BG39: 63.1109014 | BH39: 9901.709654 | BJ39: 218006 | BK39: 571540 | BL39: 603 | BM39: -352931 | BN39: 272446 | BO39: 117077 | BR39: -9036 | BS39: 6124 | BT39: 33680 | BU39: 40104 | BV39: 0 | BX39: -6424 | BY39: 136 | BZ39: -18 | CC39: -6345 | CD39: 5228 | CE39: 30507 | CG39: -1884 | CH39: -19209 | CI39: -28511 | CN39: 20.5 | CP39: 231 | EO39: -50464 | EP39: 2063 | EQ39: 16759 | ER39: -71492 | ES39: 566 | ET39: 11908 | EX39: 41143 | EY39: -4344 | EZ39: 49430 | FA39: 13430 | FD39: 384746 | FE39: 339003 | FF39: 45743 | FG39: 1046 | FH39: 428009 | FI39: 364950 | FJ39: 63059 | FK39: 965 | FW39: -11703 | FZ39: 20186 | GA39: -20186
A40: 139 | B40: Ii | C40: 9663 | E40: 0.9217834395 | F40: 56.72090495 | G40: -5166.71841 | K40: 37.64067163 | L40: 963.8828521 | M40: 26.66256225 | N40: 13195.17748 | P40: 59803 | Q40: 110640 | R40: 19 | S40: -50818 | T40: 31634 | U40: 26315 | X40: -845 | Y40: 81 | Z40: 6367 | AA40: 5520 | AB40: 0 | AD40: 847 | AE40: 599 | AF40: -488 | AI40: 327 | AJ40: 12007 | AK40: 6805 | AM40: 1559 | AN40: -6981 | AO40: -1141 | AP40: 31634 | AT40: 21.25 | AV40: 128 | AW40: 9628 | AY40: 1.05731142 | AZ40: 56.01448558 | BA40: -5481.304528 | BE40: 37.53637502 | BF40: 784.8982135 | BG40: 21.07474672 | BH40: 13593.89281 | BJ40: 62339 | BK40: 113763 | BL40: 1 | BM40: -51423 | BN40: 31222 | BO40: 27663 | BR40: -652 | BS40: 45 | BT40: 6855 | BU40: 5948 | BV40: 0 | BX40: 907 | BY40: -5 | BZ40: 545 | CC40: 1306 | CD40: 13291 | CE40: 7036 | CG40: 608 | CH40: -6447 | CI40: -2666 | CN40: 21.25 | CP40: 140 | EO40: -8995 | EP40: 898 | EQ40: 151 | ER40: -9984 | ES40: 169 | ET40: 113 | EX40: 5023 | EY40: 2496 | EZ40: 1243 | FA40: 5840 | FD40: 43271 | FE40: 31599 | FF40: 11672 | FG40: 297 | FH40: 44502 | FI40: 26990 | FJ40: 17512 | FK40: 326 | FW40: -6183 | FZ40: 2843 | GA40: -2843
A41: 140 | B41: Iisalmi | C41: 21945 | E41: 1.588654618 | F41: 43.75345818 | G41: -2941.581226 | K41: 46.33223165 | L41: 1518.478013 | M41: 45.1231316 | N41: 12282.93461 | P41: 118258 | Q41: 242055 | R41: 425 | S41: -123372 | T41: 77367 | U41: 61013 | X41: -493 | Y41: 779 | Z41: 15294 | AA41: 12263 | AB41: 0 | AD41: 3031 | AE41: 210 | AF41: 341 | AI41: 3372 | AJ41: 21492 | AK41: 13965 | AM41: -14 | AN41: -9431 | AO41: 248 | AP41: 77367 | AT41: 20.5 | AV41: 116 | AW41: 21767 | AY41: 1.336864959 | AZ41: 48.14522124 | BA41: -3550.971654 | BE41: 44.79620511 | BF41: 1483.805761 | BG41: 40.85152611 | BH41: 13257.49989 | BJ41: 118051 | BK41: 241172 | BL41: 406 | BM41: -122715 | BN41: 74672 | BO41: 62887 | BR41: -428 | BS41: 445 | BT41: 14861 | BU41: 12226 | BV41: 321 | BX41: 2956 | BY41: -29 | BZ41: 1279 | CC41: 4022 | CD41: 26532 | CE41: 14656 | CG41: 927 | CH41: -10982 | CI41: -15199 | CN41: 20.5 | CP41: 148 | EO41: -15986 | EP41: 388 | EQ41: 1881 | ER41: -34841 | ES41: 697 | ET41: 4289 | EX41: 2893 | EY41: 40 | EZ41: 24385 | FA41: -31 | FD41: 78452 | FE41: 68529 | FF41: 9923 | FG41: 0 | FH41: 91334 | FI41: 79556 | FJ41: 11778 | FK41: 0 | FW41: -7915 | FZ41: 4886 | GA41: -4886
A42: 142 | B42: Iitti | C42: 6910 | E42: 1.429415627 | F42: 55.6407563 | G42: -3334.298119 | K42: 43.12367865 | L42: 752.9667149 | M42: 31.05024362 | N42: 8851.230101 | P42: 18568 | Q42: 52819 | R42: 0 | S42: -34251 | T42: 23519 | U42: 15033 | X42: -317 | Y42: 29 | Z42: 4013 | AA42: 3343 | AB42: 110 | AD42: 780 | AE42: 40 | AF42: 0 | AI42: 781 | AJ42: 695 | AK42: 3936 | AM42: 615 | AN42: -2705 | AO42: 24 | AP42: 23519 | AT42: 20.25 | AV42: 168 | AW42: 6889 | AY42: 1.21223565 | AZ42: 50.98116506 | BA42: -3155.029758 | BE42: 44.49576597 | BF42: 817.68036 | BG42: 34.34469222 | BH42: 8689.940485 | BJ42: 19087 | BK42: 55200 | BL42: 0 | BM42: -36113 | BN42: 23613 | BO42: 15649 | BR42: -263 | BS42: 50 | BT42: 2936 | BU42: 3254 | BV42: 115 | BX42: -203 | BY42: 0 | BZ42: 0 | CC42: -161 | CD42: 534 | CE42: 3028 | CG42: 1160 | CH42: -2374 | CI42: 1247 | CN42: 20.25 | CP42: 254 | EO42: -5277 | EP42: 828 | EQ42: 537 | ER42: -1996 | ES42: 8 | ET42: 207 | EX42: 1337 | EY42: 253 | EZ42: 207 | FA42: 0 | FD42: 23608 | FE42: 21444 | FF42: 2164 | FG42: 7 | FH42: 21440 | FI42: 19012 | FJ42: 2428 | FK42: 6 | FW42: -1103 | FZ42: 555 | GA42: -555
A43: 143 | B43: Ikaalinen | C43: 7207 | E43: 2.39084507 | F43: 57.93298811 | G43: -5027.195782 | K43: 34.78854601 | L43: 704.1764951 | M43: 23.75966805 | N43: 10817.67726 | P43: 29059 | Q43: 71974 | R43: 3 | S43: -42912 | T43: 25579 | U43: 23378 | X43: -242 | Y43: 19 | Z43: 5822 | AA43: 4091 | AB43: 0 | AD43: 1731 | AE43: 736 | AF43: -285 | AI43: 1354 | AJ43: 1923 | AK43: 5453 | AM43: 6495 | AN43: -2267 | AO43: 3241 | AP43: 25579 | AT43: 21.25 | AV43: 84 | AW43: 7128 | AY43: 2.759109312 | AZ43: 67.06846673 | BA43: -5831.790123 | BE43: 31.51375288 | BF43: 1021.885522 | BG43: 30.6092703 | BH43: 12185.46577 | BJ43: 29801 | BK43: 73413 | BL43: 22 | BM43: -43590 | BN43: 25046 | BO43: 23965 | BR43: -205 | BS43: 16 | BT43: 5232 | BU43: 3743 | BV43: 0 | BX43: 1489 | BY43: -101 | BZ43: 5 | CC43: 1293 | CD43: 3216 | CE43: 5086 | CG43: 2049 | CH43: -1756 | CI43: -5352 | CN43: 21.25 | CP43: 129 | EO43: -3304 | EP43: 8 | EQ43: 1084 | ER43: -11281 | ES43: 269 | ET43: 574 | EX43: -1362 | EY43: -5886 | EZ43: 2197 | FA43: 5674 | FD43: 32700 | FE43: 15235 | FF43: 17465 | FG43: 31 | FH43: 40729 | FI43: 17436 | FJ43: 23293 | FK43: 61 | FW43: -683 | FZ43: 744 | GA43: -744
A44: 145 | B44: Ilmajoki | C44: 12159 | E44: 1.048959201 | F44: 67.38665996 | G44: -5913.479727 | K44: 30.87715378 | L44: 645.3655728 | M44: 21.50072816 | N44: 10955.83518 | P44: 61715 | Q44: 121145 | R44: 24 | S44: -59406 | T44: 39043 | U44: 26558 | X44: -1023 | Y44: 63 | Z44: 5235 | AA44: 5044 | AB44: 0 | AD44: 191 | AE44: 174 | AF44: -21 | AI44: 150 | AJ44: 6455 | AK44: 4617 | AM44: 2644 | AN44: -4941 | AO44: -383 | AP44: 39043 | AT44: 20.25 | AV44: 236 | AW44: 12167 | AY44: 1.124514224 | AZ44: 65.2779588 | BA44: -5799.786307 | BE44: 31.54297494 | BF44: 652.3382921 | BG44: 21.16007713 | BH44: 11252.48623 | BJ44: 63437 | BK44: 123278 | BL44: 14 | BM44: -59827 | BN44: 38465 | BO44: 28531 | BR44: -781 | BS44: -27 | BT44: 6361 | BU44: 4983 | BV44: 0 | BX44: 1378 | BY44: -19 | BZ44: -220 | CC44: 1131 | CD44: 7827 | CE44: 6101 | CG44: 1004 | CH44: -5560 | CI44: 920 | CN44: 20.25 | CP44: 220 | EO44: -6007 | EP44: 5 | EQ44: 1002 | ER44: -7062 | ES44: 465 | ET44: 1416 | EX44: 3552 | EY44: 1173 | EZ44: 2795 | FA44: 1017 | FD44: 69107 | FE44: 61951 | FF44: 7156 | FG44: 206 | FH44: 67810 | FI44: 59649 | FJ44: 8161 | FK44: 233 | FW44: -3246 | FZ44: 2979 | GA44: -2979
A45: 146 | B45: Ilomantsi | C45: 5336 | E45: 1.457221711 | F45: 49.35430356 | G45: -3891.491754 | K45: 42.92533116 | L45: 1208.395802 | M45: 34.24696604 | N45: 12878.93553 | P45: 18951 | Q45: 58611 | R45: -1 | S45: -39661 | T45: 18491 | U45: 24042 | X45: -254 | Y45: 272 | Z45: 2890 | AA45: 2744 | AB45: 0 | AD45: 146 | AE45: 610 | AF45: -5 | AI45: 179 | AJ45: 1563 | AK45: 2899 | AM45: 878 | AN45: -1896 | AO45: -4240 | AP45: 18491 | AT45: 20.75 | AV45: 190 | AW45: 5237 | AY45: 2.231265509 | AZ45: 52.17151479 | BA45: -4137.483292 | BE45: 41.11099369 | BF45: 1412.640825 | BG45: 39.95191454 | BH45: 12905.86213 | BJ45: 19294 | BK45: 57497 | BL45: -4 | BM45: -38207 | BN45: 17868 | BO45: 24477 | BR45: -289 | BS45: 328 | BT45: 4177 | BU45: 3190 | BV45: 0 | BX45: 987 | BY45: 39 | BZ45: 47 | CC45: 1027 | CD45: 2494 | CE45: 4168 | CG45: 4 | CH45: -1696 | CI45: -2867 | CN45: 20.75 | CP45: 104 | EO45: -7851 | EP45: 621 | EQ45: 91 | ER45: -7459 | ES45: 409 | ET45: 15 | EX45: 2750 | EY45: 1121 | EZ45: 4652 | FA45: -341 | FD45: 20571 | FE45: 17324 | FF45: 3247 | FG45: 0 | FH45: 23187 | FI45: 20211 | FJ45: 2976 | FK45: 315 | FW45: -3951 | FZ45: 0 | GA45: 0
A46: 153 | B46: Imatra | C46: 27835 | E46: 1.379223013 | F46: 75.53533472 | G46: -7278.17496 | K46: 33.08432724 | L46: 647.0989761 | M46: 17.43303228 | N46: 13548.48213 | P46: 154456 | Q46: 294946 | R46: -31 | S46: -140521 | T46: 107569 | U46: 61184 | X46: -2258 | Y46: 262 | Z46: 26236 | AA46: 21484 | AB46: 0 | AD46: 4752 | AE46: 1414 | AF46: -254 | AI46: 4400 | AJ46: 38109 | AK46: 26325 | AM46: 688 | AN46: -18300 | AO46: -28302 | AP46: 107569 | AT46: 20 | AV46: 50 | AW46: 27517 | AY46: 1.511658442 | AZ46: 74.78286949 | BA46: -7415.415925 | BE46: 34.39426202 | BF46: 498.1284297 | BG46: 13.46166575 | BH46: 13506.26885 | BJ46: 151530 | BK46: 290861 | BL46: 486 | BM46: -138845 | BN46: 106689 | BO46: 65204 | BR46: -2364 | BS46: 182 | BT46: 30866 | BU46: 23087 | BV46: 0 | BX46: 7779 | BY46: -23 | BZ46: 282 | CC46: 7628 | CD46: 48119 | CE46: 26688 | CG46: -13381 | CH46: -19565 | CI46: -9247 | CN46: 20 | CP46: 31 | EO46: -61095 | EP46: 1893 | EQ46: 4575 | ER46: -58698 | ES46: 2029 | ET46: 20734 | EX46: 46490 | EY46: 300 | EZ46: 27534 | FA46: -1186 | FD46: 189052 | FE46: 170271 | FF46: 18781 | FG46: 1328 | FH46: 196872 | FI46: 176057 | FJ46: 20815 | FK46: 1244 | FW46: -20013 | FZ46: 11458 | GA46: -11458
A47: 148 | B47: Inari | C47: 6804 | E47: 1.957525935 | F47: 83.96172111 | G47: -7351.11699 | K47: 45.53877989 | L47: 1673.72134 | M47: 46.19698586 | N47: 13223.98589 | P47: 35376 | Q47: 73770 | R47: 0 | S47: -38394 | T47: 25281 | U47: 22731 | X47: -979 | Y47: 245 | Z47: 8884 | AA47: 5754 | AB47: 44 | AD47: 3174 | AE47: 1360 | AF47: -184 | AI47: 2961 | AJ47: 14511 | AK47: 8804 | AM47: 47 | AN47: -3992 | AO47: 1000 | AP47: 25281 | AT47: 19 | AV47: 5 | AW47: 6825 | AY47: 1.919324222 | AZ47: 79.99367519 | BA47: -6768.351648 | BE47: 46.70230928 | BF47: 1838.827839 | BG47: 52.40952828 | BH47: 12806.30037 | BJ47: 35417 | BK47: 75437 | BL47: 0 | BM47: -40020 | BN47: 26169 | BO47: 23792 | BR47: -915 | BS47: 127 | BT47: 9153 | BU47: 5155 | BV47: 18 | BX47: 4016 | BY47: -155 | BZ47: 63 | CC47: 3879 | CD47: 17773 | CE47: 8766 | CG47: -1793 | CH47: -4310 | CI47: 2707 | CN47: 19 | CP47: 10 | EO47: -10981 | EP47: 607 | EQ47: 2570 | ER47: -6568 | ES47: 214 | ET47: 295 | EX47: 3096 | EY47: -254 | EZ47: 3036 | FA47: 521 | FD47: 48191 | FE47: 43414 | FF47: 4777 | FG47: 241 | FH47: 46440 | FI47: 41207 | FJ47: 5233 | FK47: 17 | FW47: -3682 | FZ47: 1630 | GA47: -1630
A48: 149 | B48: Inkoo | C48: 5541 | E48: 1.160765896 | F48: 62.51038846 | G48: -3513.445226 | K48: 39.00570161 | L48: 354.4486555 | M48: 17.92463681 | N48: 7217.650244 | P48: 5875 | Q48: 34093 | R48: 2 | S48: -28216 | T48: 26367 | U48: 5059 | X48: -201 | Y48: 1 | Z48: 3010 | AA48: 1970 | AB48: 0 | AD48: 1040 | AE48: 13 | AF48: 0 | AI48: 1040 | AJ48: 7292 | AK48: 2241 | AM48: 314 | AN48: -2565 | AO48: 381 | AP48: 26367 | AT48: 20.75 | AV48: 188 | AW48: 5585 | AY48: 2.370070779 | AZ48: 49.68828345 | BA48: -3330.170098 | BE48: 39.86950549 | BF48: 350.4028648 | BG48: 15.63578058 | BH48: 8179.767234 | BJ48: 13322 | BK48: 42732 | BL48: -1 | BM48: -29411 | BN48: 25764 | BO48: 5987 | BR48: -186 | BS48: 3 | BT48: 2157 | BU48: 2080 | BV48: 0 | BX48: 77 | BY48: 0 | BZ48: 0 | CC48: 77 | CD48: 7279 | CE48: 2112 | CG48: 419 | CH48: -802 | CI48: 858 | CN48: 20.75 | CP48: 260 | EO48: -2947 | EP48: 177 | EQ48: 910 | ER48: -1901 | ES48: 2 | ET48: 645 | EX48: 3006 | EY48: -390 | EZ48: 2207 | FA48: -3116 | FD48: 15407 | FE48: 13999 | FF48: 1408 | FG48: 0 | FH48: 16081 | FI48: 13665 | FJ48: 2416 | FK48: 0 | FW48: -1176 | FZ48: 2239 | GA48: -2239
A49: 151 | B49: Isojoki | C49: 2123 | E49: 3.300699301 | F49: 22.9491268 | G49: -1887.894489 | K49: 60.1698818 | L49: 768.7235045 | M49: 18.09422557 | N49: 15506.82996 | P49: 17083 | Q49: 31565 | R49: 34 | S49: -14448 | T49: 6470 | U49: 9372 | X49: -57 | Y49: 21 | Z49: 1358 | AA49: 860 | AB49: 0 | AD49: 498 | AE49: 83 | AF49: -1 | AI49: 501 | AJ49: 822 | AK49: 1307 | AM49: 61 | AN49: -371 | AO49: 626 | AP49: 6470 | AT49: 22 | AV49: 139 | AW49: 2079 | AY49: 2.781690141 | AZ49: 22.86053635 | BA49: -1602.212602 | BE49: 60.87960639 | BF49: 837.4218374 | BG49: 19.92178193 | BH49: 15342.95334 | BJ49: 16560 | BK49: 30504 | BL49: 69 | BM49: -13875 | BN49: 6145 | BO49: 9289 | BR49: -47 | BS49: 20 | BT49: 1532 | BU49: 846 | BV49: 0 | BX49: 686 | BY49: 0 | BZ49: -4 | CC49: 682 | CD49: 1469 | CE49: 1482 | CG49: -306 | CH49: -520 | CI49: 696 | CN49: 22 | CP49: 128 | EO49: -722 | EP49: 1 | EQ49: 40 | ER49: -807 | ES49: 20 | ET49: 1 | EX49: 98 | EY49: -263 | EZ49: 306 | FA49: -24 | FD49: 3753 | FE49: 3159 | FF49: 594 | FG49: 200 | FH49: 3532 | FI49: 2950 | FJ49: 582 | FK49: 183 | FW49: -91 | FZ49: 172 | GA49: -172
A50: 152 | B50: Isokyrö | C50: 4785 | E50: 1.733540695 | F50: 46.0905849 | G50: -2671.891327 | K50: 50.72948872 | L50: 886.1024033 | M50: 37.47124767 | N50: 8631.347962 | P50: 13420 | Q50: 37893 | R50: -27 | S50: -24500 | T50: 15739 | U50: 12062 | X50: -220 | Y50: 33 | Z50: 3114 | AA50: 1875 | AB50: 0 | AD50: 1239 | AE50: 44 | AF50: -17 | AI50: 1212 | AJ50: 8519 | AK50: 3122 | AM50: 573 | AN50: -1699 | AO50: 1707 | AP50: 15739 | AT50: 21.5 | AV50: 130 | AW50: 4712 | AY50: 1.640079365 | AZ50: 38.99243491 | BA50: -2222.410866 | BE50: 56.93351843 | BF50: 808.7860781 | BG50: 33.03916679 | BH50: 8935.059423 | BJ50: 13506 | BK50: 37806 | BL50: 9 | BM50: -24291 | BN50: 15439 | BO50: 12958 | BR50: -224 | BS50: 19 | BT50: 3901 | BU50: 1883 | BV50: 0 | BX50: 2018 | BY50: -11 | BZ50: -61 | CC50: 1946 | CD50: 10876 | CE50: 3954 | CG50: 5 | CH50: -2288 | CI50: 2287 | CN50: 21.5 | CP50: 93 | EO50: -1465 | EP50: 0 | EQ50: 50 | ER50: -1762 | ES50: 60 | ET50: 35 | EX50: 13 | EY50: 0 | EZ50: 99 | FA50: 0 | FD50: 12325 | FE50: 10222 | FF50: 2103 | FG50: 9 | FH50: 10140 | FI50: 8567 | FJ50: 1573 | FK50: 7 | FW50: -656 | FZ50: 1420 | GA50: -1420
A51: 165 | B51: Janakkala | C51: 16853 | E51: 0.7261234739 | F51: 66.35996147 | G51: -4143.119919 | K51: 35.19131079 | L51: 823.6515754 | M51: 34.28636684 | N51: 8768.290512 | P51: 46898 | Q51: 128825 | R51: 27 | S51: -81900 | T51: 62381 | U51: 27769 | X51: -956 | Y51: 96 | Z51: 7390 | AA51: 7471 | AB51: 0 | AD51: -81 | AE51: 256 | AF51: -206 | AI51: -301 | AJ51: 1905 | AK51: 7188 | AM51: 520 | AN51: -10553 | AO51: 1064 | AP51: 62381 | AT51: 20.5 | AV51: 233 | AW51: 16709 | AY51: 0.9280521901 | AZ51: 66.25392969 | BA51: -4107.008199 | BE51: 35.25548703 | BF51: 925.8483452 | BG51: 37.44024136 | BH51: 9025.974026 | BJ51: 48225 | BK51: 130113 | BL51: 0 | BM51: -81888 | BN51: 62843 | BO51: 28892 | BR51: -683 | BS51: 83 | BT51: 9247 | BU51: 7484 | BV51: 0 | BX51: 1763 | BY51: -8 | BZ51: 5 | CC51: 1526 | CD51: 3431 | CE51: 8932 | CG51: -1318 | CH51: -10019 | CI51: 779 | CN51: 20.5 | CP51: 210 | EO51: -7214 | EP51: 5 | EQ51: 1085 | ER51: -9957 | ES51: 180 | ET51: 1624 | EX51: 11367 | EY51: 227 | EZ51: 13008 | FA51: -523 | FD51: 71604 | FE51: 60868 | FF51: 10736 | FG51: 95 | FH51: 73972 | FI51: 63602 | FJ51: 10370 | FK51: 85 | FW51: -6492 | FZ51: 5623 | GA51: -5623
A52: 167 | B52: Joensuu | C52: 75514 | E52: 1.410271769 | F52: 67.38897084 | G52: -4628.068967 | K52: 41.8581315 | L52: 1605.410917 | M52: 53.79090755 | N52: 10893.5694 | P52: 302795 | Q52: 692934 | R52: 160 | S52: -389979 | T52: 261994 | U52: 187018 | X52: -6492 | Y52: 4003 | Z52: 56544 | AA52: 50905 | AB52: -3 | AD52: 5636 | AE52: 7368 | AF52: -1275 | AI52: 4154 | AJ52: 60316 | AK52: 51636 | AM52: 4152 | AN52: -38051 | AO52: -19789 | AP52: 261994 | AT52: 20.5 | AV52: 101 | AW52: 75848 | AY52: 1.337386842 | AZ52: 70.2300521 | BA52: -4893.70847 | BE52: 39.74539218 | BF52: 1661.639068 | BG52: 54.70678827 | BH52: 11086.34374 | BJ52: 308191 | BK52: 705537 | BL52: -59 | BM52: -397405 | BN52: 262306 | BO52: 193982 | BR52: -5006 | BS52: 4640 | BT52: 58517 | BU52: 53999 | BV52: 0 | BX52: 4518 | BY52: 3 | BZ52: 60 | CC52: 3448 | CD52: 63842 | CE52: 53586 | CG52: -3764 | CH52: -42342 | CI52: -20594 | CN52: 20.5 | CP52: 111 | EO52: -81863 | EP52: 3842 | EQ52: 6596 | ER52: -84405 | ES52: 1801 | ET52: 8424 | EX52: 61082 | EY52: 4 | EZ52: 59533 | FA52: 15905 | FD52: 388906 | FE52: 351234 | FF52: 37672 | FG52: 2980 | FH52: 422002 | FI52: 365127 | FJ52: 56875 | FK52: 5452 | FW52: -46269 | FZ52: 9446 | GA52: -9446
A53: 169 | B53: Jokioinen | C53: 5425 | E53: 1.302512212 | F53: 48.77091366 | G53: -4192.995392 | K53: 42.42529251 | L53: 240.5529954 | M53: 7.663132662 | N53: 11457.69585 | P53: 26864 | Q53: 53623 | R53: -13 | S53: -26772 | T53: 19310 | U53: 11145 | X53: -249 | Y53: 23 | Z53: 3457 | AA53: 2123 | AB53: 2 | AD53: 1336 | AE53: 387 | AF53: 1 | AI53: 1357 | AJ53: 7163 | AK53: 3391 | AM53: 1199 | AN53: -2590 | AO53: -1278 | AP53: 19310 | AT53: 20.5 | AV53: 140 | AW53: 5341 | AY53: 1.054981203 | AZ53: 48.86607363 | BA53: -4263.246583 | BE53: 40.89163604 | BF53: 228.9833365 | BG53: 7.582724648 | BH53: 11022.28047 | BJ53: 26879 | BK53: 54651 | BL53: -6 | BM53: -27778 | BN53: 18408 | BO53: 11595 | BR53: -242 | BS53: 18 | BT53: 2001 | BU53: 2526 | BV53: 0 | BX53: -525 | BY53: 27 | BZ53: 3 | CC53: -495 | CD53: 6628 | CE53: 1949 | CG53: 408 | CH53: -1884 | CI53: -45 | CN53: 20.5 | CP53: 263 | EO53: -5803 | EP53: 834 | EQ53: 300 | ER53: -2075 | ES53: 48 | ET53: 33 | EX53: 5147 | EY53: -1592 | EZ53: 297 | FA53: 761 | FD53: 22249 | FE53: 15626 | FF53: 6623 | FG53: 9 | FH53: 21397 | FI53: 14146 | FJ53: 7251 | FK53: 11 | FW53: -3383 | FZ53: 2224 | GA53: -2224
A54: 171 | B54: Joroinen | C54: 5110 | E54: 0.672510958 | F54: 67.82181549 | G54: -2192.172211 | K54: 32.6450624 | L54: 3325.831703 | M54: 129.8958224 | N54: 9345.401174 | P54: 15346 | Q54: 42316 | R54: -2 | S54: -26972 | T54: 17168 | U54: 12069 | X54: -293 | Y54: -138 | Z54: 1834 | AA54: 1484 | AB54: 187 | AD54: 537 | AE54: 35 | AF54: 0 | AI54: 547 | AJ54: -656 | AK54: 2198 | AM54: 1317 | AN54: -2880 | AO54: 365 | AP54: 17168 | AT54: 20.25 | AV54: 260 | AW54: 5039 | AY54: 0.4754990926 | AZ54: 63.54660173 | BA54: -2283.588013 | BE54: 34.47311159 | BF54: 2980.750149 | BG54: 109.9913729 | BH54: 9891.446716 | BJ54: 15702 | BK54: 43434 | BL54: 2 | BM54: -27730 | BN54: 16776 | BO54: 12692 | BR54: -226 | BS54: 42 | BT54: 1554 | BU54: 1235 | BV54: 216 | BX54: 535 | BY54: 26 | BZ54: -5 | CC54: 556 | CD54: 140 | CE54: 1861 | CG54: 1361 | CH54: -3577 | CI54: -366 | CN54: 20.25 | CP54: 273 | EO54: -2112 | EP54: 31 | EQ54: 248 | ER54: -2535 | ES54: 114 | ET54: 194 | EX54: 3462 | EY54: 0 | EZ54: 1731 | FA54: 494 | FD54: 25733 | FE54: 21477 | FF54: 4256 | FG54: 159 | FH54: 24677 | FI54: 21030 | FJ54: 3647 | FK54: 159 | FW54: -1220 | FZ54: 1768 | GA54: -1768
A55: 172 | B55: Joutsa | C55: 4688 | E55: 1.655 | F55: 59.19549156 | G55: -4274.957338 | K55: 27.52777637 | L55: 853.668942 | M55: 32.59248516 | N55: 9560.153584 | P55: 14125 | Q55: 40203 | R55: 6 | S55: -26072 | T55: 15012 | U55: 15934 | X55: -172 | Y55: 87 | Z55: 4789 | AA55: 2153 | AB55: 0 | AD55: 2636 | AE55: 655 | AF55: -43 | AI55: 2590 | AJ55: 1583 | AK55: 4646 | AM55: 138 | AN55: -2824 | AO55: 3529 | AP55: 15012 | AT55: 21 | AV55: 31 | AW55: 4673 | AY55: 1.622188334 | AZ55: 56.38881064 | BA55: -3898.780227 | BE55: 29.59624645 | BF55: 1050.074898 | BG55: 38.05249851 | BH55: 10072.33041 | BJ55: 14033 | BK55: 41942 | BL55: -4 | BM55: -27913 | BN55: 15166 | BO55: 16952 | BR55: -124 | BS55: 48 | BT55: 4129 | BU55: 2178 | BV55: -145 | BX55: 1806 | BY55: -11 | BZ55: -2 | CC55: 1752 | CD55: 3331 | CE55: 3992 | CG55: -259 | CH55: -2497 | CI55: 1632 | CN55: 21 | CP55: 80 | EO55: -1599 | EP55: 31 | EQ55: 451 | ER55: -2468 | ES55: 84 | ET55: 24 | EX55: 0 | EY55: -857 | EZ55: 1152 | FA55: 268 | FD55: 20051 | FE55: 13151 | FF55: 6900 | FG55: 70 | FH55: 18975 | FI55: 11039 | FJ55: 7936 | FK55: 70 | FW55: -387 | FZ55: 2380 | GA55: -2380
A56: 174 | B56: Juankoski | C56: 4804 | E56: 0.7892416226 | F56: 77.10345076 | G56: -7312.44796 | K56: 18.6309878 | L56: 1030.5995 | M56: 29.65838407 | N56: 12683.38884 | P56: 24440 | Q56: 53764 | R56: 31 | S56: -29293 | T56: 15742 | U56: 15429 | X56: -274 | Y56: 802 | Z56: 2406 | AA56: 2795 | AB56: 2 | AD56: -387 | AE56: 1075 | AF56: -8 | AI56: -387 | AJ56: -13176 | AK56: 2234 | AM56: 303 | AN56: -3123 | AO56: -1037 | AP56: 15742 | AT56: 21.5 | AV56: 209 | AW56: 4727 | AY56: 0.4113902848 | AZ56: 78.86606176 | BA56: -7987.30696 | BE56: 12.34327427 | BF56: 806.6426909 | BG56: 21.88622425 | BH56: 13452.50688 | BJ56: 25307 | BK56: 55412 | BL56: 29 | BM56: -30076 | BN56: 14725 | BO56: 16285 | BR56: -217 | BS56: 290 | BT56: 1007 | BU56: 3507 | BV56: 0 | BX56: -2500 | BY56: -18 | BZ56: -17 | CC56: -2542 | CD56: -15636 | CE56: 689 | CG56: -48 | CH56: -2764 | CI56: -3220 | CN56: 21.5 | CP56: 284 | EO56: -3625 | EP56: 89 | EQ56: 265 | ER56: -5108 | ES56: 110 | ET56: 1089 | EX56: 1837 | EY56: 3575 | EZ56: 649 | FA56: 3065 | FD56: 36536 | FE56: 18776 | FF56: 17760 | FG56: 9 | FH56: 37541 | FI56: 17136 | FJ56: 20405 | FK56: 9 | FW56: -849 | FZ56: 1948 | GA56: -1948
A57: 176 | B57: Juuka | C57: 5034 | E57: 6.21 | F57: 36.02624672 | G57: -2083.234009 | K57: 56.39761546 | L57: 1232.618196 | M57: 35.21675919 | N57: 12775.32777 | P57: 19303 | Q57: 53303 | R57: 2 | S57: -33998 | T57: 15520 | U57: 22327 | X57: -10 | Y57: 369 | Z57: 4208 | AA57: 2771 | AB57: 0 | AD57: 1437 | AE57: 7 | AF57: 337 | AI57: 1774 | AJ57: 10117 | AK57: 4058 | AM57: 716 | AN57: -561 | AO57: -4330 | AP57: 15520 | AT57: 20.75 | AV57: 76 | AW57: 4938 | AY57: 0.5721162418 | AZ57: 36.53719082 | BA57: -2024.301337 | BE57: 56.19614407 | BF57: 1308.626974 | BG57: 38.06206429 | BH57: 12549.21021 | BJ57: 19242 | BK57: 53273 | BL57: 0 | BM57: -34031 | BN57: 14495 | BO57: 22258 | BR57: -9 | BS57: 370 | BT57: 3083 | BU57: 3145 | BV57: 0 | BX57: -62 | BY57: 2 | BZ57: 256 | CC57: 180 | CD57: 10052 | CE57: 3097 | CG57: -104 | CH57: -5483 | CI57: 700 | CN57: 20.75 | CP57: 177 | EO57: -9773 | EP57: 252 | EQ57: 1133 | ER57: -2785 | ES57: 192 | ET57: 196 | EX57: 1008 | EY57: -1 | EZ57: 618 | FA57: 5000 | FD57: 12514 | FE57: 12031 | FF57: 483 | FG57: 2776 | FH57: 12649 | FI57: 7166 | FJ57: 5483 | FK57: 3058 | FW57: -4089 | FZ57: 0 | GA57: 0
A58: 177 | B58: Juupajoki | C58: 1988 | E58: 3.804123711 | F58: 47.35991379 | G58: -3220.82495 | K58: 49.19869999 | L58: 780.1810865 | M58: 31.07789855 | N58: 9162.977867 | P58: 6571 | Q58: 16778 | R58: 4 | S58: -10203 | T58: 7280 | U58: 4709 | X58: -72 | Y58: 31 | Z58: 1745 | AA58: 788 | AB58: -7 | AD58: 950 | AE58: 54 | AF58: 1 | AI58: 1032 | AJ58: 1894 | AK58: 1702 | AM58: 299 | AN58: -385 | AO58: 802 | AP58: 7280 | AT58: 21 | AV58: 63 | AW58: 1957 | AY58: 1.265658747 | AZ58: 47.00098869 | BA58: -3227.899847 | BE58: 49.81402164 | BF58: 726.6223812 | BG58: 27.14308127 | BH58: 9771.078181 | BJ58: 6800 | BK58: 17075 | BL58: 15 | BM58: -10260 | BN58: 6912 | BO58: 4494 | BR58: -59 | BS58: -2 | BT58: 1085 | BU58: 827 | BV58: 13 | BX58: 271 | BY58: 74 | BZ58: 12 | CC58: 348 | CD58: 2299 | CE58: 1082 | CG58: 19 | CH58: -839 | CI58: 87 | CN58: 21 | CP58: 208 | EO58: -975 | EP58: 37 | EQ58: 38 | ER58: -1108 | ES58: 87 | ET58: 26 | EX58: 0 | EY58: -6 | EZ58: 448 | FA58: 269 | FD58: 6478 | FE58: 5099 | FF58: 1379 | FG58: 52 | FH58: 6359 | FI58: 4681 | FJ58: 1678 | FK58: 58 | FW58: -371 | FZ58: 532 | GA58: -532
A59: 178 | B59: Juva | C59: 6548 | E59: 1.257599499 | F59: 58.22572043 | G59: -4751.985339 | K59: 53.52755707 | L59: 250.4581552 | M59: 8.938864498 | N59: 10226.93952 | P59: 22109 | Q59: 58286 | R59: 122 | S59: -36055 | T59: 19827 | U59: 19937 | X59: -385 | Y59: 302 | Z59: 3626 | AA59: 2354 | AB59: -74 | AD59: 1198 | AE59: 37 | AF59: -5 | AI59: 1184 | AJ59: 1594 | AK59: 3318 | AM59: 915 | AN59: -2804 | AO59: -547 | AP59: 19827 | AT59: 19.75 | AV59: 180 | AW59: 6421 | AY59: 1.625231339 | AZ59: 56.20889446 | BA59: -4725.587915 | BE59: 54.38262289 | BF59: 314.4370036 | BG59: 10.80185568 | BH59: 10624.98053 | BJ59: 23334 | BK59: 59034 | BL59: 81 | BM59: -35619 | BN59: 19218 | BO59: 21308 | BR59: -310 | BS59: 360 | BT59: 4957 | BU59: 2780 | BV59: -199 | BX59: 1978 | BY59: -8 | BZ59: -37 | CC59: 1933 | CD59: 3145 | CE59: 5050 | CG59: -172 | CH59: -2930 | CI59: 871 | CN59: 19.75 | CP59: 110 | EO59: -4585 | EP59: 406 | EQ59: 314 | ER59: -4887 | ES59: 130 | ET59: 578 | EX59: 3140 | EY59: -115 | EZ59: 980 | FA59: 2998 | FD59: 27637 | FE59: 18423 | FF59: 9214 | FG59: 158 | FH59: 27753 | FI59: 14834 | FJ59: 12919 | FK59: 158 | FW59: -3305 | FZ59: 941 | GA59: -941
A60: 179 | B60: Jyväskylä | C60: 137368 | E60: 1.788669697 | F60: 102.700877 | G60: -8818.735077 | K60: 24.9089905 | L60: 224.4190787 | M60: 8.188047809 | N60: 10003.96745 | P60: 553679 | Q60: 1146692 | R60: 252 | S60: -592761 | T60: 490468 | U60: 254098 | X60: -18918 | Y60: 279 | Z60: 133166 | AA60: 122479 | AB60: 0 | AD60: 10687 | AE60: 14229 | AF60: -4357 | AI60: 6419 | AJ60: -33462 | AK60: 121112 | AM60: 5272 | AN60: -65842 | AO60: 10551 | AP60: 490468 | AT60: 20 | AV60: 42 | AW60: 138850 | AY60: 1.133627788 | AZ60: 97.71341452 | BA60: -8203.989917 | BE60: 25.93558347 | BF60: 402.160605 | BG60: 13.97103329 | BH60: 10506.64026 | BJ60: 562405 | BK60: 1165225 | BL60: 543 | BM60: -602277 | BN60: 506959 | BO60: 271325 | BR60: -14050 | BS60: -1101 | BT60: 160856 | BU60: 118271 | BV60: 3878 | BX60: 46463 | BY60: -953 | BZ60: -70 | CC60: 37799 | CD60: 4169 | CE60: 145690 | CG60: -24441 | CH60: -139920 | CI60: 43723 | CN60: 20 | CP60: 27 | EO60: -138010 | EP60: 1159 | EQ60: 26290 | ER60: -134941 | ES60: 545 | ET60: 32429 | EX60: 146671 | EY60: -100550 | EZ60: 161880 | FA60: -36040 | FD60: 1080972 | FE60: 937805 | FF60: 143167 | FG60: 5245 | FH60: 1066245 | FI60: 927435 | FJ60: 138810 | FK60: 5774 | FW60: -90074 | FZ60: 25477 | GA60: -25477
A61: 181 | B61: Jämijärvi | C61: 1948 | E61: 0.5801781737 | F61: 42.43428732 | G61: -3658.110883 | K61: 16.78930366 | L61: 364.476386 | M61: 11.50652695 | N61: 11561.60164 | P61: 9636 | Q61: 20902 | R61: 0 | S61: -11266 | T61: 5874 | U61: 5909 | X61: -93 | Y61: 4 | Z61: 428 | AA61: 578 | AB61: 0 | AD61: -150 | AE61: 6 | AF61: 0 | AI61: -150 | AJ61: -1910 | AK61: 447 | AM61: -116 | AN61: -805 | AO61: -76 | AP61: 5874 | AT61: 21.5 | AV61: 285 | AW61: 1915 | AY61: -0.2463917526 | AZ61: 48.03677082 | BA61: -4105.483029 | BE61: 9.790273007 | BF61: 418.2767624 | BG61: 13.16307235 | BH61: 11598.43342 | BJ61: 9091 | BK61: 20697 | BL61: 0 | BM61: -11606 | BN61: 5372 | BO61: 5988 | BR61: -52 | BS61: 6 | BT61: -292 | BU61: 568 | BV61: 0 | BX61: -860 | BY61: 0 | BZ61: 4 | CC61: -856 | CD61: -2692 | CE61: -297 | CG61: 59 | CH61: -917 | CI61: -834 | CN61: 21.5 | CP61: 296 | EO61: -554 | EP61: 8 | EQ61: 23 | ER61: -538 | ES61: 5 | ET61: -4 | EX61: 884 | EY61: 261 | EZ61: 822 | FA61: 836 | FD61: 6189 | FE61: 5072 | FF61: 1117 | FG61: 50 | FH61: 6848 | FI61: 4998 | FJ61: 1850 | FK61: 50 | FW61: -359 | FZ61: 716 | GA61: -716
A62: 182 | B62: Jämsä | C62: 21542 | E62: 2.518442342 | F62: 42.22664295 | G62: -3040.943274 | K62: 54.07582725 | L62: 553.1055612 | M62: 19.84619 | N62: 10172.40739 | P62: 65660 | Q62: 196738 | R62: 555 | S62: -130523 | T62: 87105 | U62: 60875 | X62: -954 | Y62: 826 | Z62: 17329 | AA62: 12966 | AB62: 0 | AD62: 4363 | AE62: 692 | AF62: -150 | AI62: 4201 | AJ62: 13474 | AK62: 16582 | AM62: -958 | AN62: -6255 | AO62: 3387 | AP62: 87105 | AT62: 21 | AV62: 85 | AW62: 21259 | AY62: 1.742368742 | AZ62: 42.45678034 | BA62: -3192.671339 | BE62: 53.37509537 | BF62: 561.9267134 | BG62: 19.40157249 | BH62: 10571.47561 | BJ62: 64992 | BK62: 199557 | BL62: 434 | BM62: -134131 | BN62: 86941 | BO62: 61338 | BR62: -920 | BS62: 98 | BT62: 13326 | BU62: 14169 | BV62: 31 | BX62: -812 | BY62: -14 | BZ62: 21 | CC62: -826 | CD62: 12454 | CE62: 13211 | CG62: 2060 | CH62: -7246 | CI62: -2905 | CN62: 21 | CP62: 175 | EO62: -14879 | EP62: 205 | EQ62: 1479 | ER62: -16657 | ES62: 0 | ET62: 541 | EX62: 4000 | EY62: 3840 | EZ62: 16816 | FA62: -4415 | FD62: 60355 | FE62: 48760 | FF62: 11595 | FG62: 605 | FH62: 65510 | FI62: 58122 | FJ62: 7388 | FK62: 584 | FW62: -7127 | FZ62: 6948 | GA62: -6948
A63: 186 | B63: Järvenpää | C63: 40900 | E63: 3.028125403 | F63: 91.79509137 | G63: -6601.638142 | K63: 32.94668239 | L63: 602.5672372 | M63: 23.78150339 | N63: 9248.239609 | P63: 130483 | Q63: 317537 | R63: 13 | S63: -187041 | T63: 174872 | U63: 35636 | X63: -2223 | Y63: -52 | Z63: 21192 | AA63: 24575 | AB63: 27 | AD63: -3356 | AE63: 88 | AF63: -195 | AI63: -3549 | AJ63: 42696 | AK63: 13034 | AM63: -5865 | AN63: -5472 | AO63: -28472 | AP63: 174872 | AT63: 19.75 | AV63: 202 | AW63: 41529 | AY63: 4.459643436 | AZ63: 94.9564635 | BA63: -7428.929182 | BE63: 31.28107578 | BF63: 396.2773002 | BG63: 14.52083555 | BH63: 9960.942956 | BJ63: 137385 | BK63: 330798 | BL63: 9 | BM63: -193404 | BN63: 180855 | BO63: 40080 | BR63: -1399 | BS63: -72 | BT63: 26060 | BU63: 25558 | BV63: 0 | BX63: 502 | BY63: -2 | BZ63: -92 | CC63: 111 | CD63: 43742 | CE63: 16554 | CG63: 3085 | CH63: -4714 | CI63: -40313 | CN63: 19.75 | CP63: 174 | EO63: -52372 | EP63: 329 | EQ63: 10537 | ER63: -76160 | ES63: 953 | ET63: 18340 | EX63: 45512 | EY63: 11385 | EZ63: 30479 | FA63: 4378 | FD63: 252287 | FE63: 173492 | FF63: 78795 | FG63: 5 | FH63: 279613 | FI63: 196222 | FJ63: 83391 | FK63: 5 | FW63: -12719 | FZ63: 2326 | GA63: -2326
A64: 202 | B64: Kaarina | C64: 32590 | E64: 3.578458943 | F64: 61.70864856 | G64: -3731.48205 | K64: 39.20694997 | L64: 510.9849647 | M64: 24.02251538 | N64: 7763.945996 | P64: 78640 | Q64: 231808 | R64: 9 | S64: -153159 | T64: 129819 | U64: 34622 | X64: -507 | Y64: 620 | Z64: 11395 | AA64: 11878 | AB64: 0 | AD64: -483 | AE64: 468 | AF64: 25 | AI64: -432 | AJ64: 20480 | AK64: 9137 | AM64: -1405 | AN64: -2226 | AO64: -5170 | AP64: 129819 | AT64: 19.25 | AV64: 263 | AW64: 32738 | AY64: 5.705021521 | AZ64: 59.85712876 | BA64: -3635.591667 | BE64: 39.73797096 | BF64: 626.0003665 | BG64: 29.11476112 | BH64: 7847.913739 | BJ64: 80043 | BK64: 234729 | BL64: 3 | BM64: -154683 | BN64: 137017 | BO64: 36315 | BR64: -600 | BS64: 622 | BT64: 18671 | BU64: 12703 | BV64: -500 | BX64: 5468 | BY64: 38 | BZ64: 33 | CC64: 5530 | CD64: 25281 | CE64: 15938 | CG64: -407 | CH64: -2274 | CI64: 1285 | CN64: 19.25 | CP64: 203 | EO64: -17619 | EP64: 104 | EQ64: 3208 | ER64: -18672 | ES64: 335 | ET64: 3684 | EX64: 635 | EY64: 6334 | EZ64: 4863 | FA64: -1548 | FD64: 105304 | FE64: 38499 | FF64: 66805 | FG64: 1620 | FH64: 106345 | FI64: 39416 | FJ64: 66929 | FK64: 1620 | FW64: -11202 | FZ64: 460 | GA64: -460
A65: 204 | B65: Kaavi | C65: 3194 | E65: 1.54304103 | F65: 50.95818097 | G65: -4722.917971 | K65: 34.71669639 | L65: 609.5804634 | M65: 17.12421687 | N65: 12993.11209 | P65: 13924 | Q65: 34742 | R65: 44 | S65: -20774 | T65: 9268 | U65: 13179 | X65: -242 | Y65: 240 | Z65: 1671 | AA65: 1291 | AB65: 1 | AD65: 381 | AE65: 60 | AF65: -5 | AI65: 377 | AJ65: 1098 | AK65: 1794 | AM65: -242 | AN65: -996 | AO65: -2811 | AP65: 9268 | AT65: 21.25 | AV65: 198 | AW65: 3154 | AY65: 1.773399015 | AZ65: 56.06483615 | BA65: -5748.256183 | BE65: 32.20052871 | BF65: 280.9131262 | BG65: 7.832542143 | BH65: 13090.6785 | BJ65: 14076 | BK65: 35289 | BL65: 9 | BM65: -21204 | BN65: 9193 | BO65: 13624 | BR65: -234 | BS65: 184 | BT65: 1563 | BU65: 1498 | BV65: 0 | BX65: 65 | BY65: -11 | BZ65: -7 | CC65: 43 | CD65: 1142 | CE65: 1543 | CG65: -131 | CH65: -778 | CI65: -3144 | CN65: 21.25 | CP65: 232 | EO65: -5465 | EP65: 737 | EQ65: 123 | ER65: -4939 | ES65: 211 | ET65: 41 | EX65: 4211 | EY65: 17 | EZ65: 3226 | FA65: 479 | FD65: 14180 | FE65: 13074 | FF65: 1106 | FG65: 0 | FH65: 17109 | FI65: 15421 | FJ65: 1688 | FK65: 0 | FW65: -3284 | FZ65: 479 | GA65: -479
A66: 205 | B66: Kajaani | C66: 37622 | E66: 1.576316308 | F66: 80.69971129 | G66: -10616.50098 | K66: 33.89441415 | L66: 437.1910053 | M66: 9.792711969 | N66: 16295.25278 | P66: 338454 | Q66: 527128 | R66: 52 | S66: -188622 | T66: 137353 | U66: 99516 | X66: -5368 | Y66: -633 | Z66: 42246 | AA66: 38766 | AB66: 190 | AD66: 3670 | AE66: 10529 | AF66: 2920 | AI66: 5498 | AJ66: 75548 | AK66: 43658 | AM66: -4668 | AN66: -24711 | AO66: -9977 | AP66: 137353 | AT66: 21 | AV66: 19 | AW66: 37521 | AY66: 1.575348686 | AZ66: 84.62603035 | BA66: -11139.62847 | BE66: 32.07652621 | BF66: 422.9897924 | BG66: 9.153187388 | BH66: 16867.48754 | BJ66: 333843 | BK66: 525991 | BL66: -4 | BM66: -192152 | BN66: 136396 | BO66: 104928 | BR66: -5428 | BS66: -800 | BT66: 42944 | BU66: 37838 | BV66: 116 | BX66: 5222 | BY66: -371 | BZ66: 380 | CC66: 4905 | CD66: 86242 | CE66: 43417 | CG66: -4305 | CH66: -25206 | CI66: -18632 | CN66: 21 | CP66: 28 | EO66: -54181 | EP66: 1267 | EQ66: -721 | ER66: -74676 | ES66: 3823 | ET66: 8804 | EX66: 27219 | EY66: -2825 | EZ66: 29409 | FA66: 16793 | FD66: 305817 | FE66: 280639 | FF66: 25178 | FG66: 138 | FH66: 327093 | FI66: 285372 | FJ66: 41721 | FK66: 262 | FW66: -23714 | FZ66: 9462 | GA66: -9462
A67: 208 | B67: Kalajoki | C67: 12621 | E67: 1.891657105 | F67: 69.63242242 | G67: -3571.111639 | K67: 48.83047346 | L67: 1692.972031 | M67: 61.72159041 | N67: 10011.64725 | P67: 36419 | Q67: 98095 | R67: 48 | S67: -61628 | T67: 38344 | U67: 34248 | X67: -573 | Y67: 471 | Z67: 10862 | AA67: 8351 | AB67: 420 | AD67: 2931 | AE67: 750 | AF67: -226 | AI67: 2680 | AJ67: 18233 | AK67: 10241 | AM67: 783 | AN67: -5422 | AO67: 1762 | AP67: 38344 | AT67: 20 | AV67: 67 | AW67: 12586 | AY67: 3.201789838 | AZ67: 68.79648746 | BA67: -3354.36199 | BE67: 49.22870731 | BF67: 1845.62212 | BG67: 75.01977561 | BH67: 8979.65994 | BJ67: 36431 | BK67: 100091 | BL67: 90 | BM67: -63570 | BN67: 39000 | BO67: 35486 | BR67: -117 | BS67: 92 | BT67: 10891 | BU67: 8959 | BV67: -6 | BX67: 1926 | BY67: 19 | BZ67: 140 | CC67: 1955 | CD67: 23106 | CE67: 9537 | CG67: -552 | CH67: -3264 | CI67: 2534 | CN67: 20 | CP67: 85 | EO67: -21370 | EP67: 1817 | EQ67: 11074 | ER67: -9091 | ES67: 1294 | ET67: 794 | EX67: 11353 | EY67: -7378 | EZ67: 3426 | FA67: -989 | FD67: 54788 | FE67: 33412 | FF67: 21376 | FG67: 689 | FH67: 54062 | FI67: 33529 | FJ67: 20533 | FK67: 677 | FS67: =(EC67/EF67) ->  | FT67: =(FS67/CQ67)*1000 ->  | FW67: -7109 | FZ67: 3053 | GA67: =FZ67*-1 -> -3053
A68: 211 | B68: Kangasala | C68: 30607 | E68: 1.655882874 | F68: 60.70716194 | G68: -3274.152972 | K68: 41.30394974 | L68: 1502.401411 | M68: 60.12487686 | N68: 9120.626001 | P68: 108107 | Q68: 239851 | R68: 40 | S68: -131704 | T68: 121621 | U68: 35982 | X68: -2085 | Y68: 2112 | Z68: 25926 | AA68: 18116 | AB68: 0 | AD68: 7810 | AE68: 1221 | AF68: -455 | AI68: 7347 | AJ68: 47857 | AK68: 24029 | AM68: 1057 | AN68: -14816 | AO68: 6814 | AP68: 121621 | AT68: 21 | AV68: 71 | AW68: 31190 | AY68: 2.080851349 | AZ68: 57.43184174 | BA68: -2791.471626 | BE68: 44.04761495 | BF68: 1736.550176 | BG68: 71.59721644 | BH68: 8852.869509 | BJ68: 107497 | BK68: 241477 | BL68: 53 | BM68: -133927 | BN68: 124961 | BO68: 38639 | BR68: -1725 | BS68: 1391 | BT68: 29339 | BU68: 17886 | BV68: 137 | BX68: 11590 | BY68: -116 | BZ68: 13 | CC68: 10681 | CD68: 59792 | CE68: 27808 | CG68: 648 | CH68: -13190 | CI68: 12523 | CN68: 21 | CP68: 67 | EO68: -21320 | EP68: 891 | EQ68: 3214 | ER68: -19563 | ES68: 1036 | ET68: 3242 | EX68: 7009 | EY68: 254 | EZ68: 8915 | FA68: -1431 | FD68: 114837 | FE68: 100222 | FF68: 14615 | FG68: 46 | FH68: 103137 | FI68: 89341 | FJ68: 13796 | FK68: 144 | FW68: -16580 | FZ68: 7141 | GA68: -7141
A69: 213 | B69: Kangasniemi | C69: 5628 | E69: 2.149047932 | F69: 57.73322798 | G69: -4470.149254 | K69: 35.09365245 | L69: 188.6993603 | M69: 6.28096897 | N69: 10965.70718 | P69: 17191 | Q69: 51318 | R69: 0 | S69: -34127 | T69: 18092 | U69: 19138 | X69: -121 | Y69: 137 | Z69: 3119 | AA69: 2639 | AB69: 0 | AD69: 480 | AE69: 219 | AF69: -1 | AI69: 477 | AJ69: -1251 | AK69: 2564 | AM69: -1767 | AN69: -1369 | AO69: -3924 | AP69: 18092 | AT69: 20 | AV69: 178 | AW69: 5603 | AY69: 2.391304348 | AZ69: 65.504731 | BA69: -4799.92861 | BE69: 31.95625981 | BF69: 238.2652151 | BG69: 8.006884993 | BH69: 10861.50277 | BJ69: 17544 | BK69: 51783 | BL69: 0 | BM69: -34239 | BN69: 17731 | BO69: 19576 | BR69: -170 | BS69: 152 | BT69: 3050 | BU69: 2560 | BV69: 0 | BX69: 490 | BY69: 9 | BZ69: -8 | CC69: 491 | CD69: -1062 | CE69: 3175 | CG69: -2488 | CH69: -1162 | CI69: -1804 | CN69: 20 | CP69: 213 | EO69: -8871 | EP69: 2160 | EQ69: 223 | ER69: -7715 | ES69: 2730 | ET69: 6 | EX69: 8032 | EY69: -1635 | EZ69: 40 | FA69: 6070 | FD69: 23954 | FE69: 16504 | FF69: 7450 | FG69: 912 | FH69: 28939 | FI69: 14601 | FJ69: 14338 | FK69: 808 | FW69: -6479 | FZ69: 1782 | GA69: -1782
A70: 214 | B70: Kankaanpää | C70: 11769 | E70: 1.265924464 | F70: 69.46552921 | G70: -6325.26128 | K70: 32.6699206 | L70: 448.3813408 | M70: 13.21821214 | N70: 12381.34081 | P70: 65020 | Q70: 125620 | R70: 152 | S70: -60448 | T70: 41345 | U70: 27618 | X70: -398 | Y70: 387 | Z70: 8504 | AA70: 6971 | AB70: 0 | AD70: 1533 | AE70: 3773 | AF70: -323 | AI70: 1187 | AJ70: 15037 | AK70: 8813 | AM70: 659 | AN70: -6617 | AO70: -3128 | AP70: 41345 | AT70: 21.5 | AV70: 110 | AW70: 11637 | AY70: 0.9187570523 | AZ70: 73.95384391 | BA70: -7010.7416 | BE70: 24.61037434 | BF70: 622.4112744 | BG70: 17.20841904 | BH70: 13201.68428 | BJ70: 68027 | BK70: 127235 | BL70: 43 | BM70: -59165 | BN70: 40738 | BO70: 28595 | BR70: -371 | BS70: 370 | BT70: 10167 | BU70: 7530 | BV70: 0 | BX70: 2637 | BY70: -783 | BZ70: -1 | CC70: 1623 | CD70: 9547 | CE70: 10789 | CG70: -138 | CH70: -11103 | CI70: -3424 | CN70: 21.5 | CP70: 83 | EO70: -12837 | EP70: 438 | EQ70: 458 | ER70: -14807 | ES70: 73 | ET70: 521 | EX70: 10023 | EY70: -1326 | EZ70: 18893 | FA70: 224 | FD70: 58219 | FE70: 46853 | FF70: 11366 | FG70: 0 | FH70: 66193 | FI70: 54210 | FJ70: 11983 | FK70: 0 | FW70: -7665 | FZ70: 3569 | GA70: -3569
A71: 216 | B71: Kannonkoski | C71: 1462 | E71: 1.456470588 | F71: 51.10097203 | G71: -4367.989056 | K71: 52.04620462 | L71: 2796.853625 | M71: 54.96777401 | N71: 18571.81943 | P71: 14698 | Q71: 23450 | R71: 0 | S71: -8752 | T71: 4311 | U71: 6196 | X71: -45 | Y71: 73 | Z71: 1783 | AA71: 1204 | AB71: -37 | AD71: 542 | AE71: 311 | AF71: 3 | AI71: 555 | AJ71: 10291 | AK71: 1714 | AM71: -302 | AN71: -1201 | AO71: 627 | AP71: 4311 | AT71: 21 | AV71: 10 | AW71: 1424 | AY71: 1.851112817 | AZ71: 50.95128335 | BA71: -4176.264045 | BE71: 52.34353073 | BF71: 3158.005618 | BG71: 62.10150959 | BH71: 18561.09551 | BJ71: 14979 | BK71: 23231 | BL71: 0 | BM71: -8252 | BN71: 4204 | BO71: 6414 | BR71: -29 | BS71: 23 | BT71: 2360 | BU71: 1301 | BV71: 0 | BX71: 1059 | BY71: 9 | BZ71: 3 | CC71: 1071 | CD71: 11362 | CE71: 2375 | CG71: -253 | CH71: -1251 | CI71: 507 | CN71: 21 | CP71: 3 | EO71: -2418 | EP71: 1275 | EQ71: 56 | ER71: -1890 | ES71: 21 | ET71: 1 | EX71: 1300 | EY71: -147 | EZ71: 1665 | FA71: -176 | FD71: 10044 | FE71: 6759 | FF71: 3285 | FG71: 49 | FH71: 10282 | FI71: 7137 | FJ71: 3145 | FK71: 49 | FW71: -568 | FZ71: 707 | GA71: -707
A72: 217 | B72: Kannus | C72: 5590 | E72: 3.027777778 | F72: 59.09433698 | G72: -4255.456172 | K72: 45.00560294 | L72: 1005.366726 | M72: 35.96941907 | N72: 10201.9678 | P72: 25628 | Q72: 52573 | R72: 54 | S72: -26891 | T72: 18567 | U72: 12824 | X72: -156 | Y72: 21 | Z72: 4365 | AA72: 2762 | AB72: 0 | AD72: 1603 | AE72: 586 | AF72: -10 | AI72: 1575 | AJ72: 14498 | AK72: 3947 | AM72: 245 | AN72: -1299 | AO72: 1072 | AP72: 18567 | AT72: 20.5 | AV72: 91 | AW72: 5578 | AY72: 2.364560639 | AZ72: 60.87577939 | BA72: -4219.612764 | BE72: 43.84937497 | BF72: 1202.402295 | BG72: 42.98905981 | BH72: 10209.0355 | BJ72: 25588 | BK72: 52926 | BL72: 148 | BM72: -27190 | BN72: 17171 | BO72: 13214 | BR72: -147 | BS72: 19 | BT72: 3067 | BU72: 2904 | BV72: 0 | BX72: 163 | BY72: -34 | BZ72: -29 | CC72: 100 | CD72: 15556 | CE72: 3021 | CG72: -566 | CH72: -1188 | CI72: 450 | CN72: 20.5 | CP72: 211 | EO72: -2923 | EP72: 18 | EQ72: 30 | ER72: -2631 | ES72: 0 | ET72: 60 | EX72: 199 | EY72: 826 | EZ72: 456 | FA72: 558 | FD72: 22698 | FE72: 8186 | FF72: 14512 | FG72: 50 | FH72: 22524 | FI72: 7856 | FJ72: 14668 | FK72: 52 | FW72: -859 | FZ72: 865 | GA72: -865
A73: 218 | B73: Karijoki | C73: 1369 | E73: 1.69751693 | F73: 28.92073301 | G73: -1598.977356 | K73: 45.97879729 | L73: 1466.033601 | M73: 38.7759369 | N73: 13799.85391 | P73: 9933 | Q73: 18042 | R73: 2 | S73: -8107 | T73: 4072 | U73: 4767 | X73: -29 | Y73: 5 | Z73: 708 | AA73: 449 | AB73: 0 | AD73: 259 | AE73: 5 | AF73: 29 | AI73: 291 | AJ73: 504 | AK73: 706 | AM73: -175 | AN73: -399 | AO73: 311 | AP73: 4072 | AT73: 22 | AV73: 203 | AW73: 1349 | AY73: 2.334146341 | AZ73: 27.89482106 | BA73: -1229.058562 | BE73: 48.83949295 | BF73: 1837.657524 | BG73: 48.59218087 | BH73: 13803.55819 | BJ73: 9804 | BK73: 17798 | BL73: 1 | BM73: -7993 | BN73: 4001 | BO73: 4944 | BR73: -41 | BS73: 4 | BT73: 915 | BU73: 461 | BV73: 0 | BX73: 454 | BY73: -2 | BZ73: 15 | CC73: 460 | CD73: 960 | CE73: 918 | CG73: 117 | CH73: -368 | CI73: 516 | CN73: 22 | CP73: 152 | EO73: -400 | EP73: 3 | EQ73: 2 | ER73: -409 | ES73: 5 | ET73: 2 | EX73: 696 | EY73: 19 | EZ73: 84 | FA73: -11 | FD73: 3383 | FE73: 2912 | FF73: 471 | FG73: 2 | FH73: 3089 | FI73: 2665 | FJ73: 424 | FK73: 2 | FW73: -211 | FZ73: 342 | GA73: -342
A74: 224 | B74: Karkkila | C74: 8969 | E74: 1.176892262 | F74: 62.65830881 | G74: -5650.685695 | K74: 13.85219325 | L74: 753.8187089 | M74: 21.99238036 | N74: 12510.87078 | P74: 50616 | Q74: 96076 | R74: -5 | S74: -45465 | T74: 31852 | U74: 19153 | X74: -485 | Y74: 26 | Z74: 5081 | AA74: 3414 | AB74: 0 | AD74: 1667 | AE74: 30 | AF74: -11 | AI74: 1656 | AJ74: 1541 | AK74: 4587 | AM74: -1581 | AN74: -4242 | AO74: -3895 | AP74: 31852 | AT74: 20.75 | AV74: 172 | AW74: 8911 | AY74: 0.8434610304 | AZ74: 69.7348451 | BA74: -6496.128381 | BE74: 13.47834034 | BF74: 787.1170463 | BG74: 22.53994946 | BH74: 12746.15644 | BJ74: 49149 | BK74: 95747 | BL74: -1 | BM74: -46599 | BN74: 31563 | BO74: 20097 | BR74: -551 | BS74: 16 | BT74: 4526 | BU74: 3776 | BV74: 0 | BX74: 750 | BY74: 1 | BZ74: -2 | CC74: 749 | CD74: 2461 | CE74: 4049 | CG74: 835 | CH74: -5474 | CI74: -7391 | CN74: 20.75 | CP74: 229 | EO74: -11277 | EP74: 2177 | EQ74: 618 | ER74: -11666 | ES74: 5 | ET74: 221 | EX74: 14717 | EY74: -2500 | EZ74: 12685 | FA74: 500 | FD74: 53681 | FE74: 32988 | FF74: 20693 | FG74: 3 | FH74: 61174 | FI74: 39253 | FJ74: 21921 | FK74: 3 | FW74: -8234 | FZ74: 3101 | GA74: -3101
A75: 226 | B75: Karstula | C75: 4268 | E75: 4.739678899 | F75: 53.38104201 | G75: -3904.639175 | K75: 38.12844335 | L75: 2199.390815 | M75: 60.30440369 | N75: 13312.08997 | P75: 28919 | Q75: 52405 | R75: 7 | S75: -23479 | T75: 12328 | U75: 15067 | X75: -126 | Y75: 99 | Z75: 3889 | AA75: 2678 | AB75: 0 | AD75: 1211 | AE75: 195 | AF75: -53 | AI75: 1187 | AJ75: 4010 | AK75: 3865 | AM75: -1664 | AN75: -628 | AO75: 1021 | AP75: 12328 | AT75: 20 | AV75: 54 | AW75: 4232 | AY75: 25.83333333 | AZ75: 53.3445178 | BA75: -3534.499055 | BE75: 38.25681697 | BF75: 2502.599244 | BG75: 70.67766706 | BH75: 12924.14934 | BJ75: 28416 | BK75: 52086 | BL75: 0 | BM75: -23670 | BN75: 11721 | BO75: 15297 | BR75: -7 | BS75: -63 | BT75: 3278 | BU75: 3383 | BV75: 0 | BX75: -105 | BY75: -21 | BZ75: 102 | CC75: -42 | CD75: 4181 | CE75: 3317 | CG75: -14 | CH75: 0 | CI75: 1159 | CN75: 20 | CP75: 109 | EO75: -2883 | EP75: 3 | EQ75: 36 | ER75: -2304 | ES75: 0 | ET75: 146 | EX75: 1205 | EY75: 193 | EZ75: 516 | FA75: -1112 | FD75: 21187 | FE75: 5512 | FF75: 15675 | FG75: 4 | FH75: 20593 | FI75: 6029 | FJ75: 14564 | FK75: -92 | FW75: -1132 | FZ75: 291 | GA75: -291
A76: 230 | B76: Karvia | C76: 2475 | E76: 5.654478976 | F76: 49.09447425 | G76: -4075.151515 | K76: 58.33654129 | L76: 1726.868687 | M76: 42.43193254 | N76: 14854.54545 | P76: 20959 | Q76: 33662 | R76: 0 | S76: -12703 | T76: 6647 | U76: 9113 | X76: -19 | Y76: 4 | Z76: 3042 | AA76: 2352 | AB76: 0 | AD76: 690 | AE76: 1470 | AF76: -134 | AI76: 551 | AJ76: 14739 | AK76: 3123 | AM76: 428 | AN76: -496 | AO76: 679 | AP76: 6647 | AT76: 19.75 | AV76: 8 | AW76: 2449 | AY76: 2.747252747 | AZ76: 51.64570804 | BA76: -4849.734586 | BE76: 49.6931383 | BF76: 1377.705186 | BG76: 30.78775 | BH76: 16333.19722 | BJ76: 21615 | BK76: 34390 | BL76: 11 | BM76: -12764 | BN76: 6248 | BO76: 8717 | BR76: -11 | BS76: 13 | BT76: 2203 | BU76: 2363 | BV76: 0 | BX76: -160 | BY76: -319 | BZ76: 0 | CC76: -594 | CD76: 12736 | CE76: 2165 | CG76: 27 | CH76: -772 | CI76: -923 | CN76: 19.75 | CP76: 74 | EO76: -2545 | EP76: 8 | EQ76: 93 | ER76: -4772 | ES76: 7 | ET76: 1677 | EX76: 849 | EY76: -533 | EZ76: 1464 | FA76: 51 | FD76: 6934 | FE76: 4882 | FF76: 2052 | FG76: 3 | FH76: 7666 | FI76: 5565 | FJ76: 2101 | FK76: 2 | FW76: -580 | FZ76: 17 | GA76: -17
A77: 231 | B77: Kaskinen | C77: 1285 | E77: 0.3702380952 | F77: 49.54533645 | G77: -3627.237354 | K77: 72.05463584 | L77: 340.077821 | M77: 13.48423366 | N77: 9205.447471 | P77: 3860 | Q77: 11248 | R77: 0 | S77: -7388 | T77: 6193 | U77: 1494 | X77: -53 | Y77: 7 | Z77: 253 | AA77: 1105 | AB77: -6 | AD77: -858 | AE77: 0 | AF77: 39 | AI77: -847 | AJ77: 9468 | AK77: 247 | AM77: -118 | AN77: -782 | AO77: 507 | AP77: 6193 | AT77: 21 | AV77: 288 | AW77: 1296 | AY77: 0.05994550409 | AZ77: 55.92196555 | BA77: -4106.481481 | BE77: 65.1786613 | BF77: 681.3271605 | BG77: 23.45669578 | BH77: 10601.85185 | BJ77: 4084 | BK77: 12213 | BL77: 0 | BM77: -8129 | BN77: 6342 | BO77: 1825 | BR77: -50 | BS77: 4 | BT77: -8 | BU77: 1163 | BV77: 6 | BX77: -1165 | BY77: 0 | BZ77: 63 | CC77: -1148 | CD77: 5907 | CE77: -48 | CG77: -16 | CH77: -682 | CI77: -794 | CN77: 21.5 | CP77: 293 | EO77: 260 | EP77: 0 | EQ77: 0 | ER77: -790 | ES77: 18 | ET77: 26 | EX77: 175 | EY77: 0 | EZ77: 1008 | FA77: -17 | FD77: 3980 | FE77: 3980 | FF77: 0 | FG77: 0 | FH77: 4311 | FI77: 4305 | FJ77: 6 | FK77: 0 | FW77: -319 | FZ77: 0 | GA77: 0
A78: 232 | B78: Kauhajoki | C78: 13875 | E78: 1.322761893 | F78: 62.9662552 | G78: -5956.684685 | K78: 27.74239836 | L78: 1366.27027 | M78: 37.05314876 | N78: 13458.73874 | P78: 88704 | Q78: 171759 | R78: 94 | S78: -82961 | T78: 46722 | U78: 43446 | X78: -1410 | Y78: 3359 | Z78: 9156 | AA78: 7701 | AB78: 0 | AD78: 1455 | AE78: 1039 | AF78: -104 | AI78: 1317 | AJ78: -3609 | AK78: 9024 | AM78: 6412 | AN78: -6571 | AO78: 2428 | AP78: 46722 | AT78: 22 | AV78: 127 | AW78: 13772 | AY78: 1.130245495 | AZ78: 65.41741877 | BA78: -6186.029625 | BE78: 26.2848039 | BF78: 1380.482138 | BG78: 36.58717647 | BH78: 13771.92855 | BJ78: 87141 | BK78: 169360 | BL78: 144 | BM78: -82075 | BN78: 45558 | BO78: 44581 | BR78: -1281 | BS78: 1260 | BT78: 8043 | BU78: 8209 | BV78: 0 | BX78: -166 | BY78: -47 | BZ78: -51 | CC78: -302 | CD78: -2123 | CE78: 8006 | CG78: 4285 | CH78: -6966 | CI78: -2890 | CN78: 22 | CP78: 195 | EO78: -6776 | EP78: 7 | EQ78: 173 | ER78: -11829 | ES78: 488 | ET78: 445 | EX78: 4068 | EY78: 300 | EZ78: 8935 | FA78: 1844 | FD78: 86808 | FE78: 70936 | FF78: 15872 | FG78: 108 | FH78: 90620 | FI78: 72623 | FJ78: 17997 | FK78: 150 | FW78: -3452 | FZ78: 3128 | GA78: -3128
A79: 233 | B79: Kauhava | C79: 16784 | E79: 1.094313129 | F79: 60.89998983 | G79: -5376.012869 | K79: 32.55265417 | L79: 1816.968541 | M79: 47.34295983 | N79: 14008.2817 | P79: 114185 | Q79: 202601 | R79: 86 | S79: -88330 | T79: 56605 | U79: 45568 | X79: -1150 | Y79: 42 | Z79: 12735 | AA79: 9849 | AB79: 0 | AD79: 2886 | AE79: 966 | AF79: -46 | AI79: 2951 | AJ79: 17519 | AK79: 12543 | AM79: 4789 | AN79: -11526 | AO79: -7964 | AP79: 56605 | AT79: 21.75 | AV79: 97 | AW79: 16599 | AY79: 1.470919912 | AZ79: 61.29651061 | BA79: -5742.695343 | BE79: 31.71654761 | BF79: 1818.121574 | BG79: 47.07810497 | BH79: 14096.02988 | BJ79: 110472 | BK79: 208223 | BL79: 70 | BM79: -97681 | BN79: 55033 | BO79: 56568 | BR79: -981 | BS79: -23 | BT79: 12916 | BU79: 11107 | BV79: 0 | BX79: 1809 | BY79: -48 | BZ79: 317 | CC79: 1942 | CD79: 21863 | CE79: 12765 | CG79: 4062 | CH79: -8406 | CI79: -5630 | CN79: 21.75 | CP79: 108 | EO79: -22385 | EP79: 1173 | EQ79: 705 | ER79: -18854 | ES79: 67 | ET79: 392 | EX79: 16139 | EY79: -2048 | EZ79: 9432 | FA79: -1427 | FD79: 103703 | FE79: 93675 | FF79: 10028 | FG79: 83 | FH79: 107881 | FI79: 94547 | FJ79: 13334 | FK79: 32 | FW79: -8997 | FZ79: 4056 | GA79: -4056
A80: 235 | B80: Kauniainen | C80: 9486 | E80: 8.527286136 | F80: 33.59460746 | G80: -2323.63483 | K80: 71.91208896 | L80: 883.3017078 | M80: 30.18371758 | N80: 10681.42526 | P80: 42692 | Q80: 91726 | R80: -2 | S80: -49036 | T80: 59940 | U80: 325 | X80: -256 | Y80: 75 | Z80: 11048 | AA80: 8808 | AB80: 0 | AD80: 2240 | AE80: 55 | AF80: 21 | AI80: 2261 | AJ80: 37554 | AK80: 3947 | AM80: -115 | AN80: -841 | AO80: 3305 | AP80: 59940 | AT80: 16.5 | AV80: 14 | AW80: 9397 | AY80: 14.25 | AZ80: 30.5968983 | BA80: -1845.269767 | BE80: 73.64853402 | BF80: 1293.497925 | BG80: 41.93716857 | BH80: 11257.95467 | BJ80: 45374 | BK80: 93074 | BL80: 0 | BM80: -47700 | BN80: 62972 | BO80: 433 | BR80: -198 | BS80: 70 | BT80: 15577 | BU80: 8670 | BV80: 201 | BX80: 7108 | BY80: -1 | BZ80: 111 | CC80: 7239 | CD80: 42805 | CE80: 6721 | CG80: 398 | CH80: -684 | CI80: 4723 | CN80: 16.5 | CP80: 2 | EO80: -8154 | EP80: 10 | EQ80: 7502 | ER80: -11499 | ES80: 7 | ET80: 9494 | EX80: 1346 | EY80: -4072 | EZ80: 114 | FA80: 61 | FD80: 20375 | FE80: 19570 | FF80: 805 | FG80: 4738 | FH80: 19861 | FI80: 18983 | FJ80: 878 | FK80: 4735 | FW80: 1794 | FZ80: 0 | GA80: 0
A81: 236 | B81: Kaustinen | C81: 4305 | E81: 1.189570351 | F81: 105.3863826 | G81: -10365.62137 | K81: 25.30714317 | L81: 757.7235772 | M81: 20.46635153 | N81: 13513.35656 | P81: 21806 | Q81: 44230 | R81: 40 | S81: -22384 | T81: 14441 | U81: 11633 | X81: -307 | Y81: -138 | Z81: 3245 | AA81: 2735 | AB81: -45 | AD81: 465 | AE81: 200 | AF81: -113 | AI81: 337 | AJ81: 5417 | AK81: 2979 | AM81: 450 | AN81: -2667 | AO81: -7556 | AP81: 14441 | AT81: 21.5 | AV81: 99 | AW81: 4298 | AY81: 1.611773203 | AZ81: 106.2341652 | BA81: -10327.1289 | BE81: 27.15320454 | BF81: 1114.006515 | BG81: 33.37891781 | BH81: 12181.71242 | BJ81: 23346 | BK81: 45716 | BL81: 107 | BM81: -22263 | BN81: 14518 | BO81: 12263 | BR81: -257 | BS81: -122 | BT81: 4139 | BU81: 3114 | BV81: 0 | BX81: 1025 | BY81: -10 | BZ81: 0 | CC81: 1015 | CD81: 8030 | CE81: 4124 | CG81: -1263 | CH81: -2445 | CI81: 439 | CN81: 21.5 | CP81: 61 | EO81: -10667 | EP81: 16 | EQ81: 116 | ER81: -3736 | ES81: 0 | ET81: 51 | EX81: 7565 | EY81: 886 | EZ81: 3448 | FA81: 376 | FD81: 41096 | FE81: 34464 | FF81: 6632 | FG81: 27 | FH81: 43081 | FI81: 36141 | FJ81: 6940 | FK81: 23 | FW81: -6540 | FZ81: 1503 | GA81: -1503
A82: 239 | B82: Keitele | C82: 2379 | E82: 1.652463382 | F82: 69.84900725 | G82: -6295.502312 | K82: 36.54766547 | L82: 285.8343842 | M82: 9.254978 | N82: 11272.8037 | P82: 9997 | Q82: 24157 | R82: 10 | S82: -14150 | T82: 7338 | U82: 7898 | X82: -109 | Y82: 151 | Z82: 1128 | AA82: 1070 | AB82: 1 | AD82: 59 | AE82: 739 | AF82: -14 | AI82: 47 | AJ82: 1137 | AK82: 1077 | AM82: -339 | AN82: -638 | AO82: -396 | AP82: 7338 | AT82: 19.5 | AV82: 220 | AW82: 2346 | AY82: 2.125396825 | AZ82: 67.16825739 | BA82: -6309.462916 | BE82: 34.45922049 | BF82: 390.4518329 | BG82: 12.50663973 | BH82: 11395.14066 | BJ82: 10518 | BK82: 24712 | BL82: 9 | BM82: -14185 | BN82: 7106 | BO82: 8360 | BR82: -88 | BS82: 55 | BT82: 1248 | BU82: 976 | BV82: 0 | BX82: 272 | BY82: 0 | BZ82: 0 | CC82: 272 | CD82: 1457 | CE82: 1234 | CG82: 220 | CH82: -539 | CI82: 61 | CN82: 19.5 | CP82: 216 | EO82: -1640 | EP82: 49 | EQ82: 118 | ER82: -1360 | ES82: 31 | ET82: 156 | EX82: 677 | EY82: 568 | EZ82: 415 | FA82: 124 | FD82: 14678 | FE82: 9053 | FF82: 5625 | FG82: 0 | FH82: 15088 | FI82: 9335 | FJ82: 5753 | FK82: 0 | FW82: -700 | FZ82: 61 | GA82: -61
A83: 240 | B83: Kemi | C83: 21758 | E83: 0.9669584245 | F83: 71.56144402 | G83: -6203.879033 | K83: 27.61905881 | L83: 770.1075466 | M83: 24.2602649 | N83: 11586.405 | P83: 101234 | Q83: 218697 | R83: 854 | S83: -116609 | T83: 86704 | U83: 47626 | X83: -4054 | Y83: -63 | Z83: 13604 | AA83: 13760 | AB83: 0 | AD83: -156 | AE83: 438 | AF83: -809 | AI83: -915 | AJ83: -3814 | AK83: 12545 | AM83: 341 | AN83: -14208 | AO83: -1076 | AP83: 86704 | AT83: 21.25 | AV83: 145 | AW83: 21602 | AY83: 1.225214273 | AZ83: 69.76717902 | BA83: -6119.664846 | BE83: 28.53413393 | BF83: 757.2909916 | BG83: 23.49607876 | BH83: 11764.14221 | BJ83: 101524 | BK83: 219573 | BL83: 607 | BM83: -117442 | BN83: 86141 | BO83: 51231 | BR83: -1771 | BS83: 215 | BT83: 18374 | BU83: 14146 | BV83: 0 | BX83: 4228 | BY83: -44 | BZ83: -86 | CC83: 3111 | CD83: -752 | CE83: 14704 | CG83: -1300 | CH83: -14669 | CI83: -1062 | CN83: 21.25 | CP83: 90 | EO83: -14964 | EP83: 645 | EQ83: 698 | ER83: -18058 | ES83: 517 | ET83: 1775 | EX83: 12309 | EY83: 4007 | EZ83: 18194 | FA83: -4994 | FD83: 129158 | FE83: 94142 | FF83: 35016 | FG83: 0 | FH83: 127693 | FI83: 95222 | FJ83: 32471 | FK83: 0 | FW83: -3994 | FZ83: 9559 | GA83: -9559
A84: 320 | B84: Kemijärvi | C84: 7766 | E84: 0.8776993574 | F84: 99.97414494 | G84: -11199.07288 | K84: 32.57189388 | L84: 1497.810971 | M84: 34.80008524 | N84: 15709.76049 | P84: 54025 | Q84: 101115 | R84: 0 | S84: -47090 | T84: 28542 | U84: 25729 | X84: -1236 | Y84: 994 | Z84: 6939 | AA84: 7106 | AB84: 177 | AD84: 10 | AE84: 6764 | AF84: -394 | AI84: -313 | AJ84: 4429 | AK84: 6799 | AM84: -331 | AN84: -8100 | AO84: -1176 | AP84: 28542 | AT84: 20.5 | AV84: 60 | AW84: 7661 | AY84: 1.267345267 | AZ84: 95.87532543 | BA84: -11039.81203 | BE84: 29.25822664 | BF84: 1459.731106 | BG84: 30.69526538 | BH84: 17357.78619 | BJ84: 50692 | BK84: 100658 | BL84: 0 | BM84: -49966 | BN84: 29105 | BO84: 30442 | BR84: -1132 | BS84: 1161 | BT84: 9610 | BU84: 6874 | BV84: 51 | BX84: 2787 | BY84: 68 | BZ84: -350 | CC84: 2117 | CD84: 5754 | CE84: 6249 | CG84: -493 | CH84: -7325 | CI84: 13627 | CN84: 21 | CP84: 17 | EO84: -10947 | EP84: 358 | EQ84: 2614 | ER84: -11135 | ES84: 5112 | ET84: 13401 | EX84: 876 | EY84: 5413 | EZ84: 8467 | FA84: -2499 | FD84: 68959 | FE84: 56536 | FF84: 12423 | FG84: 618 | FH84: 67228 | FI84: 57326 | FJ84: 9902 | FK84: 768 | FW84: -3147 | FZ84: 4403 | GA84: -4403
A85: 241 | B85: Keminmaa | C85: 8388 | E85: 1.109538176 | F85: 64.7939623 | G85: -4299.237005 | K85: 36.6371502 | L85: 908.3214115 | M85: 36.13574937 | N85: 9174.773486 | P85: 27229 | Q85: 69841 | R85: 0 | S85: -42612 | T85: 34578 | U85: 12791 | X85: -574 | Y85: 15 | Z85: 4198 | AA85: 4121 | AB85: 38 | AD85: 115 | AE85: 2 | AF85: 3 | AI85: 118 | AJ85: 2414 | AK85: 4338 | AM85: 776 | AN85: -3726 | AO85: 2555 | AP85: 34578 | AT85: 21.25 | AV85: 210 | AW85: 8316 | AY85: 1.75382716 | AZ85: 62.89141013 | BA85: -4068.783069 | BE85: 38.8540589 | BF85: 1073.833574 | BG85: 40.5464746 | BH85: 9666.666667 | BJ85: 27219 | BK85: 68616 | BL85: -2 | BM85: -41399 | BN85: 35173 | BO85: 13232 | BR85: -450 | BS85: 91 | BT85: 6647 | BU85: 5513 | BV85: -70 | BX85: 1064 | BY85: 0 | BZ85: -8 | CC85: 876 | CD85: 4666 | CE85: 4919 | CG85: 142 | CH85: -3594 | CI85: 783 | CN85: 21.25 | CP85: 102 | EO85: -2791 | EP85: 117 | EQ85: 891 | ER85: -6081 | ES85: 198 | ET85: 1747 | EX85: 4072 | EY85: 346 | EZ85: 5946 | FA85: -316 | FD85: 32598 | FE85: 28563 | FF85: 4035 | FG85: 0 | FH85: 31513 | FI85: 28128 | FJ85: 3385 | FK85: 0 | FW85: -72 | FZ85: 2686 | GA85: -2686
A86: 322 | B86: Kemiönsaari | C86: 6909 | E86: 1.886107635 | F86: 65.84331925 | G86: -5267.332465 | K86: 44.46978206 | L86: 1081.632653 | M86: 33.17172982 | N86: 11901.57765 | P86: 26861 | Q86: 66184 | R86: 3 | S86: -39320 | T86: 22792 | U86: 22532 | X86: -512 | Y86: 9 | Z86: 5501 | AA86: 4393 | AB86: 0 | AD86: 1108 | AE86: 987 | AF86: 0 | AI86: 1098 | AJ86: 17516 | AK86: 5245 | AM86: 374 | AN86: -2669 | AO86: -6994 | AP86: 22792 | AT86: 19.75 | AV86: 88 | AW86: 6872 | AY86: 1.591204037 | AZ86: 60.37756543 | BA86: -5087.892899 | BE86: 45.67232933 | BF86: 725.9895227 | BG86: 24.15676156 | BH86: 10969.44121 | BJ86: 27501 | BK86: 66357 | BL86: 1 | BM86: -38855 | BN86: 22398 | BO86: 23042 | BR86: -481 | BS86: 41 | BT86: 6145 | BU86: 5232 | BV86: 0 | BX86: 913 | BY86: -10 | BZ86: 0 | CC86: 849 | CD86: 18364 | CE86: 5801 | CG86: -360 | CH86: -3685 | CI86: 1444 | CN86: 19.75 | CP86: 76 | EO86: -12830 | EP86: 183 | EQ86: 408 | ER86: -4764 | ES86: 54 | ET86: 353 | EX86: 12755 | EY86: 99 | EZ86: 82 | FA86: 896 | FD86: 36559 | FE86: 32995 | FF86: 3564 | FG86: 1 | FH86: 33966 | FI86: 29609 | FJ86: 4357 | FK86: 1 | FW86: -9482 | FZ86: 3797 | GA86: -3797
A87: 244 | B87: Kempele | C87: 17066 | E87: 6.376738306 | F87: 59.2319784 | G87: -3184.108754 | K87: 45.0369019 | L87: 601.6641275 | M87: 30.64798914 | N87: 7165.475214 | P87: 36481 | Q87: 111522 | R87: -1 | S87: -75042 | T87: 63605 | U87: 21421 | X87: -1022 | Y87: 96 | Z87: 9058 | AA87: 8163 | AB87: 0 | AD87: 895 | AE87: 1180 | AF87: -38 | AI87: 820 | AJ87: 15170 | AK87: 7645 | AM87: -328 | AN87: -552 | AO87: 1242 | AP87: 63605 | AT87: 20.5 | AV87: 193 | AW87: 17297 | AY87: 2.034764522 | AZ87: 57.6706665 | BA87: -2956.524253 | BE87: 45.17556421 | BF87: 963.0571775 | BG87: 45.56175018 | BH87: 7715.152917 | BJ87: 33965 | BK87: 114956 | BL87: -66 | BM87: -81057 | BN87: 65652 | BO87: 29055 | BR87: -929 | BS87: 40 | BT87: 12761 | BU87: 7993 | BV87: 0 | BX87: 4768 | BY87: -3 | BZ87: -3 | CC87: 4743 | CD87: 19699 | CE87: 9737 | CG87: 974 | CH87: -5796 | CI87: 3218 | CN87: 20.5 | CP87: 125 | EO87: -9148 | EP87: 521 | EQ87: 2224 | ER87: -11369 | ES87: 261 | ET87: 4589 | EX87: 7222 | EY87: -5981 | EZ87: 8524 | FA87: -729 | FD87: 52036 | FE87: 44971 | FF87: 7065 | FG87: 2 | FH87: 54039 | FI87: 47344 | FJ87: 6695 | FK87: 29 | FW87: -4878 | FZ87: 2648 | GA87: -2648
A88: 245 | B88: Kerava | C88: 35293 | E88: 2.143841419 | F88: 70.95139162 | G88: -6192.191086 | K88: 53.6196629 | L88: 516.7030289 | M88: 15.76316905 | N88: 11964.38387 | P88: 180346 | Q88: 329702 | R88: -16 | S88: -149372 | T88: 151733 | U88: 34689 | X88: -1568 | Y88: 850 | Z88: 36332 | AA88: 26622 | AB88: 0 | AD88: 9710 | AE88: 6508 | AF88: -249 | AI88: 9300 | AJ88: 152051 | AK88: 31342 | AM88: 5139 | AN88: -16078 | AO88: -11702 | AP88: 151733 | AT88: 19 | AV88: 29 | AW88: 35511 | AY88: 1.690888597 | AZ88: 69.58793224 | BA88: -6004.167723 | BE88: 53.87036316 | BF88: 533.7219453 | BG88: 17.31851205 | BH88: 11248.57087 | BJ88: 179588 | BK88: 327425 | BL88: -29 | BM88: -147866 | BN88: 154077 | BO88: 38434 | BR88: -1168 | BS88: 298 | BT88: 43775 | BU88: 28119 | BV88: 0 | BX88: 15656 | BY88: -149 | BZ88: -1152 | CC88: 14058 | CD88: 166606 | CE88: 37497 | CG88: -3319 | CH88: -25387 | CI88: 3245 | CN88: 19.25 | CP88: 19 | EO88: -73886 | EP88: 15 | EQ88: 30827 | ER88: -44605 | ES88: 11 | ET88: 10342 | EX88: 29717 | EY88: 2870 | EZ88: 26355 | FA88: -2900 | FD88: 170989 | FE88: 136188 | FF88: 34801 | FG88: 152 | FH88: 169055 | FI88: 138659 | FJ88: 30396 | FK88: 152 | FW88: -20246 | FZ88: 16684 | GA88: -16684
A89: 249 | B89: Keuruu | C89: 10117 | E89: 2.898594654 | F89: 101.338466 | G89: -10124.83938 | K89: 32.55713266 | L89: 336.9575961 | M89: 9.578496428 | N89: 12840.17001 | P89: 47241 | Q89: 102520 | R89: 119 | S89: -55160 | T89: 34317 | U89: 31183 | X89: -685 | Y89: 136 | Z89: 9791 | AA89: 8941 | AB89: 0 | AD89: 850 | AE89: 1235 | AF89: -428 | AI89: 567 | AJ89: 5664 | AK89: 9279 | AM89: -411 | AN89: -2901 | AO89: -12490 | AP89: 34317 | AT89: 20.5 | AV89: 43 | AW89: 9992 | AY89: 2.320474777 | AZ89: 112.6927545 | BA89: -11289.53163 | BE89: 27.51375192 | BF89: 510.4083267 | BG89: 14.7514482 | BH89: 12629.20336 | BJ89: 47554 | BK89: 102147 | BL89: 140 | BM89: -54453 | BN89: 33553 | BO89: 31666 | BR89: -659 | BS89: 143 | BT89: 10250 | BU89: 10240 | BV89: -1 | BX89: 9 | BY89: -341 | BZ89: 0 | CC89: -587 | CD89: 10953 | CE89: 10076 | CG89: -967 | CH89: -4020 | CI89: -8845 | CN89: 20.5 | CP89: 44 | EO89: -23733 | EP89: 1689 | EQ89: 275 | ER89: -19298 | ES89: 49 | ET89: 328 | EX89: 3006 | EY89: 13187 | EZ89: 13860 | FA89: -683 | FD89: 85990 | FE89: 42611 | FF89: 43379 | FG89: 0 | FH89: 95266 | FI89: 51951 | FJ89: 43315 | FK89: 0 | FW89: -14999 | FZ89: 2835 | GA89: -2835
A90: 250 | B90: Kihniö | C90: 2038 | E90: 0.4668166479 | F90: 58.94797326 | G90: -4015.701668 | K90: 37.9177242 | L90: 1017.1737 | M90: 36.54230658 | N90: 10159.96075 | P90: 6086 | Q90: 18765 | R90: 4 | S90: -12675 | T90: 6192 | U90: 6866 | X90: -138 | Y90: 26 | Z90: 271 | AA90: 1068 | AB90: 0 | AD90: -797 | AE90: 74 | AF90: -12 | AI90: -822 | AJ90: 28 | AK90: 245 | AM90: -62 | AN90: -745 | AO90: -650 | AP90: 6192 | AT90: 21.5 | AV90: 294 | AW90: 1994 | AY90: 1.28232503 | AZ90: 57.72056908 | BA90: -4012.036108 | BE90: 37.12510132 | BF90: 974.9247743 | BG90: 35.82912543 | BH90: 9931.795386 | BJ90: 5638 | BK90: 18134 | BL90: 3 | BM90: -12493 | BN90: 6100 | BO90: 7451 | BR90: -135 | BS90: 20 | BT90: 943 | BU90: 1137 | BV90: -11 | BX90: -205 | BY90: -13 | BZ90: 1 | CC90: -232 | CD90: -198 | CE90: 921 | CG90: -118 | CH90: -705 | CI90: 382 | CN90: 21.5 | CP90: 241 | EO90: -1030 | EP90: 1 | EQ90: 134 | ER90: -707 | ES90: 10 | ET90: 158 | EX90: 2800 | EY90: -2 | EZ90: 425 | FA90: -25 | FD90: 9432 | FE90: 8697 | FF90: 735 | FG90: 0 | FH90: 9145 | FI90: 8492 | FJ90: 653 | FK90: 36 | FW90: -659 | FZ90: 226 | GA90: -226
A91: 256 | B91: Kinnula | C91: 1745 | E91: 15.38738739 | F91: 49.91649269 | G91: -1691.690544 | K91: 58.15325011 | L91: 1710.028653 | M91: 58.65790607 | N91: 10640.68768 | P91: 6562 | Q91: 17595 | R91: 0 | S91: -11033 | T91: 4784 | U91: 7814 | X91: 71 | Y91: 51 | Z91: 1687 | AA91: 1044 | AB91: 0 | AD91: 643 | AE91: 396 | AF91: 0 | AI91: 643 | AJ91: 6172 | AK91: 1655 | AM91: 51 | AN91: -90 | AO91: 913 | AP91: 4784 | AT91: 20.5 | AV91: 44 | AW91: 1699 | AY91: 13.23157895 | AZ91: 52.41291823 | BA91: -1971.159506 | BE91: 56.06638448 | BF91: 1846.380224 | BG91: 58.35907238 | BH91: 11547.96939 | BJ91: 6500 | BK91: 17762 | BL91: 0 | BM91: -11262 | BN91: 4760 | BO91: 7659 | BR91: 76 | BS91: 12 | BT91: 1245 | BU91: 986 | BV91: 0 | BX91: 259 | BY91: 0 | BZ91: 0 | CC91: 259 | CD91: 6436 | CE91: 1322 | CG91: 216 | CH91: -83 | CI91: -367 | CN91: 20.5 | CP91: 130 | EO91: -831 | EP91: 1 | EQ91: 88 | ER91: -1717 | ES91: 1 | ET91: 27 | EX91: 0 | EY91: -577 | EZ91: 496 | FA91: 109 | FD91: 6932 | FE91: 719 | FF91: 6213 | FG91: 0 | FH91: 7472 | FI91: 1087 | FJ91: 6385 | FK91: 0 | FW91: -543 | FZ91: 115 | GA91: -115
A92: 257 | B92: Kirkkonummi | C92: 38649 | E92: 1.574233042 | F92: 65.20096645 | G92: -4271.1325 | K92: 28.61393923 | L92: 545.0076328 | M92: 22.17538152 | N92: 8970.659008 | P92: 115701 | Q92: 300436 | R92: -2 | S92: -184737 | T92: 178491 | U92: 28225 | X92: -2795 | Y92: 266 | Z92: 19450 | AA92: 18957 | AB92: 0 | AD92: 493 | AE92: 2079 | AF92: 259 | AI92: 809 | AJ92: 21649 | AK92: 18054 | AM92: -11198 | AN92: -11289 | AO92: -10562 | AP92: 178491 | AT92: 19.5 | AV92: 208 | AW92: 39033 | AY92: 1.503052718 | AZ92: 65.24464874 | BA92: -4300.694284 | BE92: 28.40462889 | BF92: 860.8357031 | BG92: 35.18722063 | BH92: 8929.521174 | BJ92: 111256 | BK92: 302460 | BL92: 11 | BM92: -191193 | BN92: 184775 | BO92: 31602 | BR92: -2020 | BS92: 393 | BT92: 23557 | BU92: 19968 | BV92: 0 | BX92: 3589 | BY92: 54 | BZ92: 36 | CC92: 3672 | CD92: 25076 | CE92: 22444 | CG92: 11815 | CH92: -14988 | CI92: -4506 | CN92: 19.5 | CP92: 188 | EO92: -31673 | EP92: 869 | EQ92: 2188 | ER92: -28732 | ES92: 77 | ET92: 1705 | EX92: 3120 | EY92: 13529 | EZ92: 32 | FA92: 30839 | FD92: 147568 | FE92: 119083 | FF92: 28485 | FG92: 1147 | FH92: 163451 | FI92: 104047 | FJ92: 59404 | FK92: 1049 | FW92: -16354 | FZ92: 7251 | GA92: -7251
A93: 260 | B93: Kitee | C93: 10832 | E93: 2.171910308 | F93: 46.77289467 | G93: -3405.465288 | K93: 40.44252392 | L93: 865.4911374 | M93: 30.12691272 | N93: 10485.78287 | P93: 34983 | Q93: 98488 | R93: 2 | S93: -63503 | T93: 35877 | U93: 39657 | X93: -519 | Y93: 422 | Z93: 11934 | AA93: 4912 | AB93: 0 | AD93: 7022 | AE93: 271 | AF93: -175 | AI93: 6812 | AJ93: 7647 | AK93: 11840 | AM93: 667 | AN93: -5192 | AO93: 4109 | AP93: 35877 | AT93: 22.5 | AV93: 20 | AW93: 10719 | AY93: 2.18920373 | AZ93: 42.12669724 | BA93: -2917.809497 | BE93: 46.40659122 | BF93: 879.2797836 | BG93: 30.87944886 | BH93: 10393.22698 | BJ93: 36118 | BK93: 99240 | BL93: 1 | BM93: -63121 | BN93: 34516 | BO93: 40355 | BR93: -364 | BS93: 404 | BT93: 11790 | BU93: 5058 | BV93: 0 | BX93: 6732 | BY93: -25 | BZ93: 11 | CC93: 6638 | CD93: 14282 | CE93: 11717 | CG93: -626 | CH93: -5159 | CI93: 6439 | CN93: 22 | CP93: 34 | EO93: -9306 | EP93: 1298 | EQ93: 277 | ER93: -5968 | ES93: 125 | ET93: 565 | EX93: 1449 | EY93: -231 | EZ93: 3138 | FA93: -2500 | FD93: 34767 | FE93: 26060 | FF93: 8707 | FG93: 64 | FH93: 30246 | FI93: 24056 | FJ93: 6190 | FK93: 662 | FW93: -5539 | FZ93: 3565 | GA93: -3565
A94: 261 | B94: Kittilä | C94: 6416 | E94: 1.682975871 | F94: 97.76870893 | G94: -12480.51746 | K94: 35.07440829 | L94: 1149.937656 | M94: 26.64539365 | N94: 15752.33791 | P94: 45611 | Q94: 82541 | R94: 1344 | S94: -35586 | T94: 27547 | U94: 21182 | X94: -1136 | Y94: -635 | Z94: 11372 | AA94: 8175 | AB94: 106 | AD94: 3303 | AE94: 5702 | AF94: 575 | AI94: 3632 | AJ94: 31335 | AK94: 11322 | AM94: 1917 | AN94: -6277 | AO94: 1857 | AP94: 27547 | AT94: 19.5 | AV94: 1 | AW94: 6383 | AY94: 1.83129164 | AZ94: 82.6306557 | BA94: -11205.70265 | BE94: 36.85198351 | BF94: 843.1771894 | BG94: 19.4134738 | BH94: 15852.89049 | BJ94: 49113 | BK94: 83063 | BL94: 1010 | BM94: -32940 | BN94: 28495 | BO94: 21584 | BR94: -1035 | BS94: -116 | BT94: 15988 | BU94: 8661 | BV94: 4 | BX94: 7331 | BY94: -455 | BZ94: 519 | CC94: 7280 | CD94: 38466 | CE94: 14931 | CG94: 38 | CH94: -8252 | CI94: 7823 | CN94: 20.25 | CP94: 1 | EO94: -10269 | EP94: 650 | EQ94: 154 | ER94: -8136 | ES94: 813 | ET94: 215 | EX94: 7590 | EY94: -2761 | EZ94: 156 | FA94: -605 | FD94: 65256 | FE94: 55854 | FF94: 9402 | FG94: 226 | FH94: 56718 | FI94: 47921 | FJ94: 8797 | FK94: 306 | FW94: -3903 | FZ94: 2822 | GA94: -2822
A95: 263 | B95: Kiuruvesi | C95: 8600 | E95: 1.300438179 | F95: 62.84232307 | G95: -5900 | K95: 34.65522854 | L95: 1419.069767 | M95: 39.32534077 | N95: 13171.16279 | P95: 47488 | Q95: 101128 | R95: 61 | S95: -53579 | T95: 24790 | U95: 34529 | X95: -506 | Y95: 1054 | Z95: 6288 | AA95: 5241 | AB95: 2 | AD95: 1049 | AE95: 130 | AF95: -21 | AI95: 1027 | AJ95: 2084 | AK95: 6313 | AM95: 329 | AN95: -4711 | AO95: -80 | AP95: 24790 | AT95: 20.75 | AV95: 108 | AW95: 8444 | AY95: 1.204559848 | AZ95: 62.3054286 | BA95: -6038.133586 | BE95: 34.97939594 | BF95: 1308.384652 | BG95: 36.07744198 | BH95: 13237.09143 | BJ95: 46966 | BK95: 100500 | BL95: 67 | BM95: -53467 | BN95: 23413 | BO95: 35302 | BR95: -475 | BS95: 445 | BT95: 5218 | BU95: 5236 | BV95: 122 | BX95: 104 | BY95: -16 | BZ95: 88 | CC95: 159 | CD95: 2254 | CE95: 5240 | CG95: 185 | CH95: -4249 | CI95: -490 | CN95: 20.75 | CP95: 180 | EO95: -6620 | EP95: 142 | EQ95: 85 | ER95: -6298 | ES95: 209 | ET95: 359 | EX95: 2571 | EY95: 3268 | EZ95: 6071 | FA95: -2819 | FD95: 67120 | FE95: 35718 | FF95: 31402 | FG95: 99 | FH95: 54562 | FI95: 37261 | FJ95: 17301 | FK95: 99 | FW95: -3242 | FZ95: 3038 | GA95: -3038
A96: 265 | B96: Kivijärvi | C96: 1200 | E96: 1.820224719 | F96: 50.67313948 | G96: -4541.666667 | K96: 42.4615553 | L96: 2474.166667 | M96: 45.39755352 | N96: 19892.5 | P96: 10596 | Q96: 18887 | R96: 0 | S96: -8291 | T96: 3585 | U96: 5800 | X96: -57 | Y96: 31 | Z96: 1068 | AA96: 744 | AB96: 0 | AD96: 324 | AE96: 254 | AF96: 2 | AI96: 326 | AJ96: 2844 | AK96: 1076 | AM96: -698 | AN96: -557 | AO96: -2428 | AP96: 3585 | AT96: 21 | AV96: 61 | AW96: 1161 | AY96: 1.577235772 | AZ96: 49.53280418 | BA96: -4785.529716 | BE96: 39.8379124 | BF96: 2425.495263 | BG96: 49.20955618 | BH96: 17990.52541 | BJ96: 10659 | BK96: 19151 | BL96: 0 | BM96: -8492 | BN96: 3427 | BO96: 5820 | BR96: -62 | BS96: 10 | BT96: 703 | BU96: 1273 | BV96: 0 | BX96: -570 | BY96: 0 | BZ96: -1 | CC96: -572 | CD96: 2250 | CE96: 603 | CG96: 220 | CH96: -419 | CI96: -110 | CN96: 21 | CP96: 186 | EO96: -4356 | EP96: 839 | EQ96: 13 | ER96: -1243 | ES96: 241 | ET96: 289 | EX96: 4452 | EY96: 290 | EZ96: 488 | FA96: 154 | FD96: 7342 | FE96: 6715 | FF96: 627 | FG96: 48 | FH96: 7566 | FI96: 6784 | FJ96: 782 | FK96: 48 | FW96: -3294 | FZ96: 97 | GA96: -97
A97: 271 | B97: Kokemäki | C97: 7591 | E97: 1.185215947 | F97: 64.16657095 | G97: -5204.847846 | K97: 20.8190491 | L97: 579.8972467 | M97: 18.96070333 | N97: 11163.2196 | P97: 33390 | Q97: 74169 | R97: 0 | S97: -40779 | T97: 27021 | U97: 17946 | X97: -385 | Y97: 80 | Z97: 3883 | AA97: 3637 | AB97: 0 | AD97: 246 | AE97: 27 | AF97: 124 | AI97: 369 | AJ97: -820 | AK97: 3927 | AM97: -227 | AN97: -3214 | AO97: -1223 | AP97: 27021 | AT97: 21.25 | AV97: 205 | AW97: 7498 | AY97: 0.9040957015 | AZ97: 64.21765641 | BA97: -5379.567885 | BE97: 21.4357065 | BF97: 677.9141104 | BG97: 20.96141679 | BH97: 11804.48119 | BJ97: 32221 | BK97: 75437 | BL97: 0 | BM97: -43216 | BN97: 26579 | BO97: 21069 | BR97: -295 | BS97: 20 | BT97: 4157 | BU97: 3509 | BV97: 0 | BX97: 648 | BY97: 4 | BZ97: 44 | CC97: 666 | CD97: -127 | CE97: 4465 | CG97: -730 | CH97: -4630 | CI97: -913 | CN97: 21.25 | CP97: 209 | EO97: -6885 | EP97: 1669 | EQ97: 66 | ER97: -8112 | ES97: 2037 | ET97: 697 | EX97: 8175 | EY97: -1336 | EZ97: 3884 | FA97: 2700 | FD97: 35904 | FE97: 20246 | FF97: 15658 | FG97: 15 | FH97: 37974 | FI97: 18987 | FJ97: 18987 | FK97: 15 | FW97: -2439 | FZ97: 2577 | GA97: -2577
A98: 272 | B98: Kokkola | C98: 47570 | E98: 0.4252364661 | F98: 97.97493994 | G98: -9274.395627 | K98: 26.46945369 | L98: 2154.635274 | M98: 52.66623683 | N98: 14932.56254 | P98: 336350 | Q98: 556892 | R98: -495 | S98: -221037 | T98: 182108 | U98: 78907 | X98: -5420 | Y98: -4316 | Z98: 30242 | AA98: 36786 | AB98: -373 | AD98: -6917 | AE98: 3231 | AF98: -624 | AI98: -7772 | AJ98: 51456 | AK98: 34743 | AM98: 1926 | AN98: -78794 | AO98: -26254 | AP98: 182108 | AT98: 21 | AV98: 141 | AW98: 47723 | AY98: 0.4364409364 | AZ98: 91.67705537 | BA98: -9291.746118 | BE98: 26.6963664 | BF98: 1683.129728 | BG98: 39.17050334 | BH98: 15683.80026 | BJ98: 358041 | BK98: 579936 | BL98: -67 | BM98: -221962 | BN98: 183911 | BO98: 86936 | BR98: -5456 | BS98: 1035 | BT98: 44464 | BU98: 40395 | BV98: -52 | BX98: 4017 | BY98: -35 | BZ98: 103 | CC98: 2697 | CD98: 55287 | CE98: 43297 | CG98: -9409 | CH98: -109151 | CI98: 2316 | CN98: 21.5 | CP98: 68 | EO98: -64068 | EP98: 251 | EQ98: 2820 | ER98: -53587 | ES98: 1391 | ET98: 11215 | EX98: 113706 | EY98: -3764 | EZ98: 85469 | FA98: 2344 | FD98: 483081 | FE98: 431511 | FF98: 51570 | FG98: 157 | FH98: 461743 | FI98: 400351 | FJ98: 61392 | FK98: 169 | FW98: -54543 | FZ98: 25357 | GA98: -25357
B99: KOKO MAA (Manner-Suomi) | C99: 5458325 | E99: 1.5 | F99: 78.16553584 | G99: -5903.283516 | K99: 43.11851089 | L99: 1207.195248 | M99: 40.23659993 | N99: 10950.88218 | P99: 23476833 | Q99: 49847855 | R99: 59655 | S99: -26311367 | T99: 21629067 | U99: 9442539 | X99: -435325 | Y99: 136177 | Z99: 4449264 | AA99: 3816180 | AB99: 128426 | AD99: 761510 | AE99: -26951 | AF99: -66137 | AI99: 668422 | AJ99: 9192259 | AK99: 4093841 | AM99: 107003 | AN99: -2758048 | AO99: -1276079 | AT99: 19.85 | AV99: 0 | AW99: 5474085 | AY99: 1.6 | AZ99: 77.6 | BA99: -5949 | BE99: 42.9 | BF99: 1247 | BG99: 41 | BH99: 11169 | BJ99: 23891978 | BK99: 50389944 | BL99: 68081 | BM99: -26429885 | BN99: 21942053 | BO99: 10050212 | BR99: -384607 | BS99: 116459 | BT99: 5294232 | BU99: 3936135 | BV99: 322374 | BX99: 1680471 | BY99: -32889 | BZ99: -15533 | CC99: 1519540 | CD99: 10805452 | CE99: 4883308 | CG99: -144906 | CH99: -3144680 | CI99: -757303 | CN99: 19.89 | CP99: 0 | EO99: -6500580 | EP99: 232603 | EQ99: 898057 | ER99: -7001117 | ES99: 173789 | ET99: 1186717 | EX99: 4070889 | EY99: 20959 | EZ99: 4149527 | FA99: 49387 | FD99: 32689492 | FE99: 27462794 | FF99: 5226698 | FG99: 1096501 | FH99: 33709261 | FI99: 28570196 | FJ99: 5139065 | FK99: 1163381 | FW99: -2544190 | FZ99: 1315633 | GA99: -1315633
A100: 273 | B100: Kolari | C100: 3848 | E100: 2.939944904 | F100: 61.56972019 | G100: -5057.432432 | K100: 40.15768899 | L100: 1273.388773 | M100: 41.7172047 | N100: 11141.37214 | P100: 15992 | Q100: 37756 | R100: 0 | S100: -21764 | T100: 14172 | U100: 12901 | X100: -220 | Y100: 22 | Z100: 5111 | AA100: 3083 | AB100: 40 | AD100: 2068 | AE100: 1000 | AF100: -6 | AI100: 2048 | AJ100: 5972 | AK100: 4742 | AM100: 1040 | AN100: -1590 | AO100: 1684 | AP100: 14172 | AT100: 20 | AV100: 4 | AW100: 3827 | AY100: 3.150278293 | AZ100: 57.36232019 | BA100: -4531.225503 | BE100: 42.97026679 | BF100: 1212.960544 | BG100: 39.16439369 | BH100: 11304.41599 | BJ100: 14886 | BK100: 37908 | BL100: 0 | BM100: -23022 | BN100: 13882 | BO100: 14194 | BR100: -181 | BS100: 34 | BT100: 4907 | BU100: 3109 | BV100: 0 | BX100: 1798 | BY100: -11 | BZ100: 0 | CC100: 1776 | CD100: 8490 | CE100: 4852 | CG100: -457 | CH100: -1430 | CI100: 1430 | CN100: 20 | CP100: 14 | EO100: -3264 | EP100: 150 | EQ100: 56 | ER100: -3719 | ES100: 174 | ET100: 123 | EX100: 35 | EY100: -849 | EZ100: 19 | FA100: -12 | FD100: 13834 | FE100: 12395 | FF100: 1439 | FG100: -50 | FH100: 12473 | FI100: 11128 | FJ100: 1345 | FK100: -17 | FW100: -1684 | FZ100: 1391 | GA100: -1391
A101: 275 | B101: Konnevesi | C101: 2757 | E101: 1.030242935 | F101: 81.05557628 | G101: -6359.085963 | K101: 36.22104317 | L101: 932.8980776 | M101: 28.13751349 | N101: 12101.55967 | P101: 8554 | Q101: 24917 | R101: 3 | S101: -16360 | T101: 8822 | U101: 9434 | X101: 76 | Y101: -30 | Z101: 1942 | AA101: 1276 | AB101: -11 | AD101: 655 | AE101: 0 | AF101: -128 | AI101: 527 | AJ101: 3292 | AK101: 1910 | AM101: 308 | AN101: -1881 | AO101: -4014 | AP101: 8822 | AT101: 21.5 | AV101: 114 | AW101: 2753 | AY101: 0.6652433817 | AZ101: 100.631427 | BA101: -8327.279332 | BE101: 30.79341685 | BF101: 1179.44061 | BG101: 33.12431873 | BH101: 12996.3676 | BJ101: 9089 | BK101: 26265 | BL101: 0 | BM101: -17176 | BN101: 8697 | BO101: 9929 | BR101: -21 | BS101: -27 | BT101: 1402 | BU101: 1410 | BV101: 0 | BX101: -8 | BY101: 0 | BZ101: -30 | CC101: -61 | CD101: 3640 | CE101: 1372 | CG101: -241 | CH101: -2186 | CI101: -5512 | CN101: 21.5 | CP101: 228 | EO101: -6395 | EP101: 402 | EQ101: 69 | ER101: -7140 | ES101: 1 | ET101: 255 | EX101: 4026 | EY101: -662 | EZ101: 9869 | FA101: 551 | FD101: 15282 | FE101: 13443 | FF101: 1839 | FG101: 0 | FH101: 23472 | FI101: 21120 | FJ101: 2352 | FK101: 0 | FW101: -5034 | FZ101: 846 | GA101: -846
A102: 276 | B102: Kontiolahti | C102: 14827 | E102: 0.9906256583 | F102: 67.83854789 | G102: -3896.067984 | K102: 36.86735074 | L102: 495.9870507 | M102: 24.00624257 | N102: 7541.174884 | P102: 30269 | Q102: 95585 | R102: 14 | S102: -65302 | T102: 50282 | U102: 24124 | X102: -1134 | Y102: 272 | Z102: 8242 | AA102: 5482 | AB102: 0 | AD102: 2760 | AE102: 129 | AF102: 59 | AI102: 2820 | AJ102: 20477 | AK102: 7648 | AM102: 1320 | AN102: -8331 | AO102: 1663 | AP102: 50282 | AT102: 20.5 | AV102: 176 | AW102: 14806 | AY102: 1.14240333 | AZ102: 70.45172024 | BA102: -3741.591247 | BE102: 37.12122438 | BF102: 967.040389 | BG102: 46.1357216 | BH102: 7650.682156 | BJ102: 34020 | BK102: 96881 | BL102: 18 | BM102: -62843 | BN102: 50879 | BO102: 22092 | BR102: -1091 | BS102: 275 | BT102: 9312 | BU102: 5631 | BV102: 7 | BX102: 3688 | BY102: 4 | BZ102: 89 | CC102: 3777 | CD102: 24094 | CE102: 8951 | CG102: 230 | CH102: -8012 | CI102: 3014 | CN102: 20.5 | CP102: 173 | EO102: -6708 | EP102: 44 | EQ102: 679 | ER102: -6426 | ES102: 42 | ET102: 447 | EX102: 10114 | EY102: -1501 | EZ102: 16241 | FA102: -3250 | FD102: 60170 | FE102: 48007 | FF102: 12163 | FG102: 0 | FH102: 65149 | FI102: 56210 | FJ102: 8939 | FK102: 834 | FW102: -3483 | FZ102: 5816 | GA102: -5816
A103: 280 | B103: Korsnäs | C103: 2201 | E103: 1.805263158 | F103: 26.76056338 | G103: -1716.946842 | K103: 63.21512418 | L103: 405.2703317 | M103: 14.31183788 | N103: 10335.75647 | P103: 7898 | Q103: 20198 | R103: 0 | S103: -12300 | T103: 6631 | U103: 6345 | X103: -49 | Y103: 8 | Z103: 635 | AA103: 1199 | AB103: 0 | AD103: -564 | AE103: 30 | AF103: 0 | AI103: -564 | AJ103: 7889 | AK103: 640 | AM103: 117 | AN103: -329 | AO103: -1226 | AP103: 6631 | AT103: 21 | AV103: 277 | AW103: 2171 | AY103: 6.689349112 | AZ103: 29.0881859 | BA103: -1800.092123 | BE103: 62.04323409 | BF103: 687.2409028 | BG103: 23.80053319 | BH103: 10539.38277 | BJ103: 7869 | BK103: 19768 | BL103: 0 | BM103: -11899 | BN103: 7043 | BO103: 7121 | BR103: -58 | BS103: -4 | BT103: 2203 | BU103: 1312 | BV103: 0 | BX103: 891 | BY103: 0 | BZ103: 0 | CC103: 891 | CD103: 8844 | CE103: 2178 | CG103: -128 | CH103: -280 | CI103: -144 | CN103: 21 | CP103: 48 | EO103: -2155 | EP103: 151 | EQ103: 138 | ER103: -2757 | ES103: 140 | ET103: 295 | EX103: 1021 | EY103: 100 | EZ103: 879 | FA103: 405 | FD103: 2852 | FE103: 2409 | FF103: 443 | FG103: 1 | FH103: 3834 | FI103: 2928 | FJ103: 906 | FK103: 1 | FW103: -1169 | FZ103: 240 | GA103: -240
A104: 284 | B104: Koski tl | C104: 2399 | E104: 2.974828375 | F104: 26.46722319 | G104: -775.7398916 | K104: 63.24060891 | L104: 1369.32055 | M104: 50.13484696 | N104: 9969.153814 | P104: 9309 | Q104: 22341 | R104: 1 | S104: -13031 | T104: 6865 | U104: 7425 | X104: -21 | Y104: 21 | Z104: 1259 | AA104: 986 | AB104: 0 | AD104: 273 | AE104: 368 | AF104: 23 | AI104: 296 | AJ104: 3810 | AK104: 1317 | AM104: 41 | AN104: -396 | AO104: 400 | AP104: 6865 | AT104: 19.5 | AV104: 197 | AW104: 2416 | AY104: 3.768328446 | AZ104: 25.54154272 | BA104: -760.3476821 | BE104: 63.34431186 | BF104: 1245.860927 | BG104: 44.14553783 | BH104: 10300.9106 | BJ104: 9567 | BK104: 22621 | BL104: 0 | BM104: -13054 | BN104: 6785 | BO104: 7515 | BR104: -1 | BS104: 21 | BT104: 1266 | BU104: 1026 | BV104: 0 | BX104: 240 | BY104: 0 | BZ104: 127 | CC104: 367 | CD104: 4359 | CE104: 1267 | CG104: -90 | CH104: -322 | CI104: -211 | CN104: 19.5 | CP104: 219 | EO104: -1134 | EP104: 194 | EQ104: 23 | ER104: -1863 | ES104: 264 | ET104: 121 | EX104: 177 | EY104: 3 | EZ104: 53 | FA104: -6 | FD104: 2358 | FE104: 2029 | FF104: 329 | FG104: 33 | FH104: 1760 | FI104: 1412 | FJ104: 348 | FK104: 10 | FW104: -807 | FZ104: 100 | GA104: -100
A105: 285 | B105: Kotka | C105: 54319 | E105: 0.9558320713 | F105: 114.8069163 | G105: -11021.57624 | K105: 31.93086356 | L105: 482.2253723 | M105: 14.50519624 | N105: 12134.4281 | P105: 263790 | Q105: 526583 | R105: 2147 | S105: -260646 | T105: 209667 | U105: 114086 | X105: -9457 | Y105: -2117 | Z105: 51533 | AA105: 52390 | AB105: 0 | AD105: -857 | AE105: 49069 | AF105: -1148 | AI105: -3717 | AJ105: -48525 | AK105: 50661 | AM105: 4882 | AN105: -54362 | AO105: 1538 | AP105: 209667 | AT105: 20.5 | AV105: 49 | AW105: 54187 | AY105: 1.398844881 | AZ105: 112.8295137 | BA105: -10734.36433 | BE105: 26.99260126 | BF105: 982.4865743 | BG105: 29.42827114 | BH105: 12185.81948 | BJ105: 282298 | BK105: 538861 | BL105: 4292 | BM105: -252271 | BN105: 208149 | BO105: 123450 | BR105: -8262 | BS105: -2912 | BT105: 68154 | BU105: 56064 | BV105: 159 | BX105: 12249 | BY105: -2760 | BZ105: 0 | CC105: 6757 | CD105: -41678 | CE105: 63463 | CG105: -8056 | CH105: -46332 | CI105: 11002 | CN105: 20.5 | CP105: 16 | EO105: -66020 | EP105: 1811 | EQ105: 15086 | ER105: -63637 | ES105: 189 | ET105: 10987 | EX105: 44051 | EY105: 12034 | EZ105: 49080 | FA105: 16080 | FD105: 574971 | FE105: 446817 | FF105: 128154 | FG105: 1448 | FH105: 594337 | FI105: 437167 | FJ105: 157170 | FK105: 1382 | FW105: -21858 | FZ105: 26950 | GA105: -26950
A106: 286 | B106: Kouvola | C106: 85855 | E106: 1.281484302 | F106: 62.45666346 | G106: -4241.476909 | K106: 39.72922603 | L106: 846.2873449 | M106: 31.72269139 | N106: 9737.347854 | P106: 295395 | Q106: 746779 | R106: 1143 | S106: -450241 | T106: 331432 | U106: 166672 | X106: -6448 | Y106: 5687 | Z106: 47102 | AA106: 37615 | AB106: 0 | AD106: 9487 | AE106: 3143 | AF106: -3106 | AI106: 6442 | AJ106: 2829 | AK106: 43721 | AM106: 8226 | AN106: -35276 | AO106: 1242 | AP106: 331432 | AT106: 20.5 | AV106: 185 | AW106: 85306 | AY106: 1.480935373 | AZ106: 59.25817189 | BA106: -4144.60882 | BE106: 41.32662284 | BF106: 681.0189201 | BG106: 25.06293902 | BH106: 9917.907298 | BJ106: 291984 | BK106: 748987 | BL106: 122 | BM106: -456881 | BN106: 339413 | BO106: 175852 | BR106: -5400 | BS106: 2640 | BT106: 55624 | BU106: 37804 | BV106: 1492 | BX106: 19312 | BY106: -40 | BZ106: 2 | CC106: 16903 | CD106: 19071 | CE106: 51597 | CG106: -7800 | CH106: -35695 | CI106: 9272 | CN106: 20.75 | CP106: 163 | EO106: -46331 | EP106: 951 | EQ106: 2901 | ER106: -54219 | ES106: 2165 | ET106: 9729 | EX106: 53558 | EY106: -3432 | EZ106: 19762 | FA106: 1874 | FD106: 347634 | FE106: 312152 | FF106: 35482 | FG106: 5204 | FH106: 333587 | FI106: 296268 | FJ106: 37319 | FK106: 5179 | FW106: -28284 | FZ106: 21744 | GA106: -21744
A107: 287 | B107: Kristiinankaupunki | C107: 6793 | E107: 0.8828491097 | F107: 61.53402712 | G107: -4607.24275 | K107: 31.3205097 | L107: 714.8535257 | M107: 24.9025641 | N107: 10477.69763 | P107: 23289 | Q107: 61144 | R107: 0 | S107: -37855 | T107: 23238 | U107: 19391 | X107: -620 | Y107: -72 | Z107: 4082 | AA107: 2962 | AB107: 0 | AD107: 1120 | AE107: 0 | AF107: 0 | AI107: 1120 | AJ107: 1965 | AK107: 3205 | AM107: 203 | AN107: -4707 | AO107: -23 | AP107: 23238 | AT107: 21.5 | AV107: 157 | AW107: 6727 | AY107: 2.077993814 | AZ107: 51.30441144 | BA107: -3922.40226 | BE107: 39.76690511 | BF107: 832.7634904 | BG107: 31.7553968 | BH107: 9571.874535 | BJ107: 24125 | BK107: 58948 | BL107: 0 | BM107: -34823 | BN107: 23253 | BO107: 20967 | BR107: -500 | BS107: 6 | BT107: 8903 | BU107: 3057 | BV107: 0 | BX107: 5846 | BY107: 0 | BZ107: 5 | CC107: 5835 | CD107: 7763 | CE107: 6115 | CG107: 1391 | CH107: -4024 | CI107: 8016 | CN107: 21.5 | CP107: 12 | EO107: -4271 | EP107: 2 | EQ107: 1041 | ER107: -855 | ES107: 0 | ET107: 2756 | EX107: 3572 | EY107: 500 | EZ107: 0 | FA107: -246 | FD107: 30938 | FE107: 26206 | FF107: 4732 | FG107: 3 | FH107: 27071 | FI107: 22608 | FJ107: 4463 | FK107: 2 | FW107: -2515 | FZ107: 2310 | GA107: -2310
A108: 288 | B108: Kruunupyy | C108: 6682 | E108: 0.8807114382 | F108: 57.03080945 | G108: -4152.648908 | K108: 28.00034113 | L108: 407.0637534 | M108: 15.53677621 | N108: 9563.005088 | P108: 19740 | Q108: 55775 | R108: 25 | S108: -36010 | T108: 22777 | U108: 16004 | X108: -418 | Y108: 77 | Z108: 2430 | AA108: 2297 | AB108: 170 | AD108: 303 | AE108: 77 | AF108: 124 | AI108: 427 | AJ108: 6821 | AK108: 2309 | AM108: -1374 | AN108: -2819 | AO108: -2386 | AP108: 22777 | AT108: 20.75 | AV108: 259 | AW108: 6620 | AY108: 0.9667341626 | AZ108: 60.35452302 | BA108: -4274.320242 | BE108: 26.82672652 | BF108: 711.6314199 | BG108: 27.10629611 | BH108: 9582.477341 | BJ108: 20736 | BK108: 56429 | BL108: 8 | BM108: -35685 | BN108: 22338 | BO108: 16499 | BR108: -392 | BS108: 176 | BT108: 2936 | BU108: 2488 | BV108: -1 | BX108: 447 | BY108: -1 | BZ108: 141 | CC108: 587 | CD108: 7276 | CE108: 2297 | CG108: 139 | CH108: -3051 | CI108: -849 | CN108: 20.75 | CP108: 248 | EO108: -4844 | EP108: 11 | EQ108: 138 | ER108: -3531 | ES108: 120 | ET108: 265 | EX108: 4415 | EY108: 129 | EZ108: 3698 | FA108: -201 | FD108: 24292 | FE108: 18294 | FF108: 5998 | FG108: 9 | FH108: 24642 | FI108: 18618 | FJ108: 6024 | FK108: 9 | FW108: -2737 | FZ108: 1528 | GA108: -1528
A109: 290 | B109: Kuhmo | C109: 8806 | E109: 0.7732576474 | F109: 36.50610864 | G109: -1295.821031 | K109: 51.73047544 | L109: 2823.188735 | M109: 73.51869106 | N109: 14016.35249 | P109: 49095 | Q109: 106887 | R109: 0 | S109: -57792 | T109: 29580 | U109: 32479 | X109: -257 | Y109: 594 | Z109: 4604 | AA109: 4231 | AB109: 44 | AD109: 417 | AE109: 2626 | AF109: 1 | AI109: 300 | AJ109: 6370 | AK109: 4544 | AM109: 250 | AN109: -6042 | AO109: -3860 | AP109: 29580 | AT109: 21.5 | AV109: 200 | AW109: 8647 | AY109: 1.269351338 | AZ109: 41.52617085 | BA109: -1649.473806 | BE109: 46.44024214 | BF109: 3095.755753 | BG109: 81.78290129 | BH109: 13816.46814 | BJ109: 48786 | BK109: 105791 | BL109: 0 | BM109: -57005 | BN109: 28707 | BO109: 32534 | BR109: -209 | BS109: 992 | BT109: 5019 | BU109: 4329 | BV109: 294 | BX109: 984 | BY109: -69 | BZ109: -48 | CC109: 839 | CD109: 7259 | CE109: 5307 | CG109: -355 | CH109: -3902 | CI109: -3057 | CN109: 21.5 | CP109: 199 | EO109: -9864 | EP109: 1447 | EQ109: 13 | ER109: -9022 | ES109: 414 | ET109: 244 | EX109: 5283 | EY109: 1815 | EZ109: 8376 | FA109: 1920 | FD109: 27624 | FE109: 19441 | FF109: 8183 | FG109: 6 | FH109: 33946 | FI109: 23764 | FJ109: 10182 | FK109: 53 | FW109: -8048 | FZ109: 3111 | GA109: -3111
A110: 291 | B110: Kuhmoinen | C110: 2334 | E110: 1.867954911 | F110: 32.43196619 | G110: -1362.896315 | K110: 67.71310994 | L110: 1526.13539 | M110: 53.69110056 | N110: 10374.89289 | P110: 4716 | Q110: 20932 | R110: 0 | S110: -16216 | T110: 8155 | U110: 10316 | X110: 49 | Y110: -40 | Z110: 2264 | AA110: 1396 | AB110: -2 | AD110: 866 | AE110: 15 | AF110: -9 | AI110: 855 | AJ110: 4056 | AK110: 2142 | AM110: 621 | AN110: -1186 | AO110: 390 | AP110: 8155 | AT110: 20.75 | AV110: 41 | AW110: 2286 | AY110: 4.710526316 | AZ110: 45.93138523 | BA110: -1678.040245 | BE110: 60.97268807 | BF110: 2699.03762 | BG110: 90.07839686 | BH110: 10936.57043 | BJ110: 4341 | BK110: 21187 | BL110: 1 | BM110: -16845 | BN110: 8267 | BO110: 10594 | BR110: 72 | BS110: 12 | BT110: 2100 | BU110: 1638 | BV110: 3 | BX110: 465 | BY110: 89 | BZ110: 0 | CC110: 552 | CD110: 4452 | CE110: 2115 | CG110: 31 | CH110: -408 | CI110: -1119 | CN110: 20.75 | CP110: 71 | EO110: -1951 | EP110: 0 | EQ110: 199 | ER110: -3285 | ES110: 0 | ET110: 51 | EX110: 1680 | EY110: -2005 | EZ110: 4277 | FA110: -1033 | FD110: 5395 | FE110: 3765 | FF110: 1630 | FG110: 60 | FH110: 8266 | FI110: 7680 | FJ110: 586 | FK110: 59 | FW110: -1465 | FZ110: 780 | GA110: -780
A111: 297 | B111: Kuopio | C111: 112119 | E111: 1.404960683 | F111: 95.07425633 | G111: -8009.231263 | K111: 26.07759198 | L111: 1497.658738 | M111: 46.4096252 | N111: 11778.70834 | P111: 545201 | Q111: 1076403 | R111: 245 | S111: -530957 | T111: 429383 | U111: 226189 | X111: -15880 | Y111: 1872 | Z111: 110607 | AA111: 99054 | AB111: 309 | AD111: 11862 | AE111: 26449 | AF111: -3023 | AI111: 7871 | AJ111: -40109 | AK111: 101817 | AM111: 6536 | AN111: -73888 | AO111: -10047 | AP111: 429383 | AT111: 20.5 | AV111: 36 | AW111: 113013 | AY111: 1.267232977 | AZ111: 91.71306925 | BA111: -7782.538292 | BE111: 25.54107681 | BF111: 1653.057613 | BG111: 50.6704255 | BH111: 11907.65664 | BJ111: 557569 | BK111: 1092468 | BL111: 418 | BM111: -534481 | BN111: 429134 | BO111: 244730 | BR111: -14502 | BS111: 1935 | BT111: 126816 | BU111: 99407 | BV111: 1392 | BX111: 28801 | BY111: -1448 | BZ111: -99 | CC111: 23931 | CD111: -15766 | CE111: 122135 | CG111: 11284 | CH111: -96930 | CI111: 2828 | CN111: 20.5 | CP111: 30 | EO111: -152797 | EP111: 2787 | EQ111: 38146 | ER111: -140518 | ES111: 1450 | ET111: 19761 | EX111: 88818 | EY111: -42 | EZ111: 95976 | FA111: -577 | FD111: 908508 | FE111: 836072 | FF111: 72436 | FG111: 0 | FH111: 906583 | FI111: 821194 | FJ111: 85389 | FK111: 0 | FW111: -31934 | FZ111: 12990 | GA111: -12990
A112: 300 | B112: Kuortane | C112: 3715 | E112: 3.584775087 | F112: 48.63338656 | G112: -4176.850606 | K112: 42.6641081 | L112: 813.7281292 | M112: 24.98629982 | N112: 11886.94482 | P112: 18955 | Q112: 41184 | R112: 10 | S112: -22219 | T112: 11000 | U112: 13254 | X112: -85 | Y112: 15 | Z112: 1965 | AA112: 1927 | AB112: 0 | AD112: 38 | AE112: 49 | AF112: -5 | AI112: 22 | AJ112: 1212 | AK112: 1890 | AM112: 85 | AN112: -471 | AO112: 40 | AP112: 11000 | AT112: 21 | AV112: 195 | AW112: 3690 | AY112: 7.745327103 | AZ112: 37.47126863 | BA112: -3939.837398 | BE112: 45.24140463 | BF112: 860.1626016 | BG112: 21.53484395 | BH112: 14579.13279 | BJ112: 28594 | BK112: 50665 | BL112: 3 | BM112: -22068 | BN112: 11111 | BO112: 14243 | BR112: -78 | BS112: 10 | BT112: 3218 | BU112: 1918 | BV112: 0 | BX112: 1300 | BY112: -13 | BZ112: -31 | CC112: 1256 | CD112: 2696 | CE112: 3189 | CG112: 40 | CH112: -331 | CI112: 767 | CN112: 21 | CP112: 84 | EO112: -2292 | EP112: 165 | EQ112: 277 | ER112: -2687 | ES112: 58 | ET112: 207 | EX112: 13 | EY112: 275 | EZ112: 522 | FA112: 440 | FD112: 14639 | FE112: 6621 | FF112: 8018 | FG112: 1160 | FH112: 15320 | FI112: 6827 | FJ112: 8493 | FK112: 1145 | FW112: -1284 | FZ112: 0 | GA112: 0
A113: 301 | B113: Kurikka | C113: 13958 | E113: 1.037238408 | F113: 68.91266502 | G113: -3788.938243 | K113: 49.18615509 | L113: 2518.842241 | M113: 83.57377775 | N113: 11000.78808 | P113: 62198 | Q113: 137356 | R113: 14 | S113: -75144 | T113: 39915 | U113: 35747 | X113: -800 | Y113: 9154 | Z113: 8872 | AA113: 9126 | AB113: 0 | AD113: -254 | AE113: 518 | AF113: -40 | AI113: -262 | AJ113: 30170 | AK113: 8542 | AM113: 2128 | AN113: -8509 | AO113: 3283 | AP113: 39915 | AT113: 19 | AV113: 142 | AW113: 21501 | AY113: 0.6236913205 | AZ113: 74.74671569 | BA113: -5058.462397 | BE113: 39.21505411 | BF113: 2157.946142 | BG113: 65.30998126 | BH113: 12060.18325 | BJ113: 93598 | BK113: 217471 | BL113: 14 | BM113: -123859 | BN113: 63169 | BO113: 66796 | BR113: -1034 | BS113: 8361 | BT113: 13433 | BU113: 16033 | BV113: 0 | BX113: -2600 | BY113: -61 | BZ113: 59 | CC113: -2670 | CD113: 13876 | CE113: 13345 | CG113: 4238 | CH113: -22347 | CI113: -1066 | CN113: 20 | CP113: 176 | EO113: -6370 | EP113: 364 | EQ113: 747 | ER113: -17529 | ES113: 173 | ET113: 2945 | EX113: 5495 | EY113: 164 | EZ113: 26290 | FA113: -4131 | FD113: 73476 | FE113: 63525 | FF113: 9951 | FG113: 521 | FH113: 132104 | FI113: 111679 | FJ113: 20425 | FK113: 335 | FW113: -2227 | FZ113: 1962 | GA113: -1962
A114: 304 | B114: Kustavi | C114: 895 | E114: 1.69058296 | F114: 48.54651163 | G114: -4094.972067 | K114: 54.46317363 | L114: 938.547486 | M114: 26.61458333 | N114: 12871.50838 | P114: 4617 | Q114: 10261 | R114: 1 | S114: -5643 | T114: 4028 | U114: 2363 | X114: -69 | Y114: 6 | Z114: 685 | AA114: 463 | AB114: 0 | AD114: 222 | AE114: 6 | AF114: 0 | AI114: 222 | AJ114: 2573 | AK114: 699 | AM114: -78 | AN114: -377 | AO114: 60 | AP114: 4028 | AT114: 19.25 | AV114: 96 | AW114: 908 | AY114: 2.538461538 | AZ114: 49.47701503 | BA114: -4014.317181 | BE114: 55.05451713 | BF114: 1112.334802 | BG114: 31.27332881 | BH114: 12982.37885 | BJ114: 4652 | BK114: 10297 | BL114: 0 | BM114: -5645 | BN114: 4233 | BO114: 2492 | BR114: -51 | BS114: 9 | BT114: 1038 | BU114: 489 | BV114: 0 | BX114: 549 | BY114: 0 | BZ114: -407 | CC114: 142 | CD114: 2716 | CE114: 1027 | CG114: -134 | CH114: -378 | CI114: 38 | CN114: 19.25 | CP114: 29 | EO114: -807 | EP114: 150 | EQ114: 18 | ER114: -1061 | ES114: 63 | ET114: 9 | EX114: 40 | EY114: 1 | EZ114: 686 | FA114: -4 | FD114: 4055 | FE114: 3674 | FF114: 381 | FG114: 1 | FH114: 4353 | FI114: 3904 | FJ114: 449 | FK114: 1 | FW114: -495 | FZ114: 174 | GA114: -174
A115: 305 | B115: Kuusamo | C115: 15688 | E115: 1.41056493 | F115: 57.1128502 | G115: -2690.91025 | K115: 50.12859959 | L115: 1937.914329 | M115: 74.49219615 | N115: 9495.474248 | P115: 44788 | Q115: 134359 | R115: 20 | S115: -89551 | T115: 52714 | U115: 44846 | X115: -1051 | Y115: 1553 | Z115: 8511 | AA115: 7241 | AB115: 0 | AD115: 1270 | AE115: 1386 | AF115: 618 | AI115: 1897 | AJ115: 14617 | AK115: 8386 | AM115: 1107 | AN115: -5713 | AO115: 2354 | AP115: 52714 | AT115: 20 | AV115: 189 | AW115: 15533 | AY115: 1.802641126 | AZ115: 53.63277969 | BA115: -2342.303483 | BE115: 50.9240979 | BF115: 2152.900277 | BG115: 79.69212739 | BH115: 9860.554948 | BJ115: 49234 | BK115: 136667 | BL115: 1 | BM115: -87432 | BN115: 51794 | BO115: 46600 | BR115: -982 | BS115: 1489 | BT115: 11469 | BU115: 8409 | BV115: 0 | BX115: 3060 | BY115: 2 | BZ115: 538 | CC115: 3438 | CD115: 18557 | CE115: 10312 | CG115: -711 | CH115: -5938 | CI115: 3144 | CN115: 20 | CP115: 123 | EO115: -7205 | EP115: 1064 | EQ115: 109 | ER115: -9362 | ES115: 753 | ET115: 1441 | EX115: 5629 | EY115: -472 | EZ115: 7170 | FA115: -313 | FD115: 59721 | FE115: 52520 | FF115: 7201 | FG115: 412 | FH115: 60769 | FI115: 53959 | FJ115: 6810 | FK115: 572 | FW115: -4293 | FZ115: 4686 | GA115: -4686
A116: 312 | B116: Kyyjärvi | C116: 1379 | E116: 1.611995104 | F116: 85.79220504 | G116: -5588.832487 | K116: 31.70242128 | L116: 4602.610587 | M116: 104.3209348 | N116: 16103.69833 | P116: 9829 | Q116: 18019 | R116: 2 | S116: -8188 | T116: 4527 | U116: 4528 | X116: -46 | Y116: 434 | Z116: 1255 | AA116: 978 | AB116: 0 | AD116: 277 | AE116: 995 | AF116: -7 | AI116: 271 | AJ116: 1024 | AK116: 1261 | AM116: -1383 | AN116: -755 | AO116: -1844 | AP116: 4527 | AT116: 20.5 | AV116: 55 | AW116: 1375 | AY116: -0.7781299525 | AZ116: 95.44004924 | BA116: -6812.363636 | BE116: 22.10188356 | BF116: 4785.454545 | BG116: 117.2590567 | BH116: 14896 | BJ116: 9707 | BK116: 18494 | BL116: 0 | BM116: -8787 | BN116: 3907 | BO116: 4259 | BR116: -22 | BS116: 108 | BT116: -535 | BU116: 1080 | BV116: 0 | BX116: -1615 | BY116: 0 | BZ116: 0 | CC116: -1615 | CD116: -393 | CE116: -529 | CG116: 1102 | CH116: -587 | CI116: -1833 | CN116: 20.5 | CP116: 297 | EO116: -3284 | EP116: 170 | EQ116: 9 | ER116: -1332 | ES116: 23 | ET116: 5 | EX116: 2864 | EY116: 62 | EZ116: 1097 | FA116: 175 | FD116: 13813 | FE116: 13144 | FF116: 669 | FG116: 65 | FH116: 14499 | FI116: 13673 | FJ116: 826 | FK116: 66 | FW116: -1092 | FZ116: 780 | GA116: -780
A117: 316 | B117: Kärkölä | C117: 4604 | E117: 1.246022032 | F117: 50.96090126 | G117: -3638.140747 | K117: 21.49405654 | L117: 519.1138141 | M117: 19.42699982 | N117: 9753.258036 | P117: 18128 | Q117: 41180 | R117: 0 | S117: -23052 | T117: 16170 | U117: 7954 | X117: -99 | Y117: -77 | Z117: 896 | AA117: 1828 | AB117: -9 | AD117: -941 | AE117: 41 | AF117: 0 | AI117: -947 | AJ117: -4440 | AK117: 921 | AM117: 89 | AN117: -695 | AO117: -1414 | AP117: 16170 | AT117: 21.75 | AV117: 289 | AW117: 4540 | AY117: 1.601097896 | AZ117: 37.34266402 | BA117: -2425.330396 | BE117: 39.49695564 | BF117: 591.6299559 | BG117: 22.44071599 | BH117: 9622.907489 | BJ117: 17070 | BK117: 40138 | BL117: 0 | BM117: -23068 | BN117: 16223 | BO117: 8576 | BR117: -147 | BS117: 15 | BT117: 1599 | BU117: 1610 | BV117: 4842 | BX117: 4831 | BY117: -10 | BZ117: 1 | CC117: 4812 | CD117: 333 | CE117: 6476 | CG117: 479 | CH117: -942 | CI117: 5408 | CN117: 21.75 | CP117: 265 | EO117: -2824 | EP117: 389 | EQ117: 100 | ER117: -2444 | ES117: 35 | ET117: 1341 | EX117: 5 | EY117: 2488 | EZ117: 213 | FA117: -6000 | FD117: 17292 | FE117: 10564 | FF117: 6728 | FG117: 370 | FH117: 10567 | FI117: 9884 | FJ117: 683 | FK117: 9 | FW117: -1571 | FZ117: 524 | GA117: -524
A118: 317 | B118: Kärsämäki | C118: 2658 | E118: 1.037625861 | F118: 86.46945382 | G118: -4362.302483 | K118: 29.96981339 | L118: 3711.813394 | M118: 115.9136705 | N118: 11688.11136 | P118: 11066 | Q118: 27568 | R118: 7 | S118: -16495 | T118: 7179 | U118: 10793 | X118: -162 | Y118: 453 | Z118: 1768 | AA118: 1364 | AB118: 0 | AD118: 404 | AE118: 14 | AF118: -2 | AI118: 476 | AJ118: 4158 | AK118: 1734 | AM118: 247 | AN118: -1697 | AO118: 570 | AP118: 7179 | AT118: 21.5 | AV118: 124 | AW118: 2655 | AY118: 0.8609680742 | AZ118: 60.05462294 | BA118: -3720.903955 | BE118: 30.91522005 | BF118: 4282.862524 | BG118: 93.57476214 | BH118: 16705.83804 | BJ118: 24223 | BK118: 40199 | BL118: 0 | BM118: -15976 | BN118: 7027 | BO118: 11223 | BR118: -171 | BS118: 226 | BT118: 2329 | BU118: 1328 | BV118: 0 | BX118: 1001 | BY118: 2 | BZ118: -86 | CC118: 906 | CD118: 4960 | CE118: 2263 | CG118: -846 | CH118: -2734 | CI118: 1409 | CN118: 21.5 | CP118: 81 | EO118: -1535 | EP118: 358 | EQ118: 13 | ER118: -1014 | ES118: 7 | ET118: 153 | EX118: 1613 | EY118: -1191 | EZ118: 1685 | FA118: 658 | FD118: 18919 | FE118: 16367 | FF118: 2552 | FG118: 1 | FH118: 18529 | FI118: 15498 | FJ118: 3031 | FK118: -388 | FW118: -815 | FZ118: 1691 | GA118: -1691
A119: 398 | B119: Lahti | C119: 103918 | E119: 1.460938136 | F119: 100.4419069 | G119: -8928.356974 | K119: 31.86873165 | L119: 1384.861141 | M119: 40.74095217 | N119: 12407.03247 | P119: 541891 | Q119: 1036673 | R119: 118 | S119: -494664 | T119: 388657 | U119: 226483 | X119: -20323 | Y119: 4561 | Z119: 104714 | AA119: 102951 | AB119: -495 | AD119: 1268 | AE119: 14205 | AF119: -3357 | AI119: -1063 | AJ119: 91284 | AK119: 100702 | AM119: 359 | AN119: -65083 | AO119: -47995 | AP119: 388657 | AT119: 20.25 | AV119: 32 | AW119: 119452 | AY119: 1.599793974 | AZ119: 97.00834651 | BA119: -8462.780029 | BE119: 31.63864483 | BF119: 947.2842648 | BG119: 29.88562491 | BH119: 11569.40026 | BJ119: 558052 | BK119: 1118146 | BL119: 36 | BM119: -560058 | BN119: 444753 | BO119: 265390 | BR119: -20261 | BS119: -2135 | BT119: 127689 | BU119: 117466 | BV119: -135 | BX119: 10088 | BY119: 390 | BZ119: -10 | CC119: 4043 | CD119: 132152 | CE119: 120232 | CG119: -11331 | CH119: -71793 | CI119: -37650 | CN119: 20.25 | CP119: 38 | EO119: -162941 | EP119: 4582 | EQ119: 9662 | ER119: -167825 | ES119: 574 | ET119: 9369 | EX119: 132724 | EY119: -10607 | EZ119: 75096 | FA119: -8331 | FD119: 942838 | FE119: 885610 | FF119: 57228 | FG119: 11332 | FH119: 989489 | FI119: 921308 | FJ119: 68181 | FK119: 10796 | FW119: -73899 | FZ119: 19835 | GA119: -19835
A120: 399 | B120: Laihia | C120: 8090 | E120: 2.352063213 | F120: 60.07333566 | G120: -3922.991347 | K120: 35.69292288 | L120: 329.1718171 | M120: 14.12249731 | N120: 8507.540173 | P120: 19646 | Q120: 60379 | R120: 0 | S120: -40733 | T120: 29757 | U120: 13595 | X120: -303 | Y120: 41 | Z120: 2357 | AA120: 3096 | AB120: 0 | AD120: -739 | AE120: 927 | AF120: -21 | AI120: -743 | AJ120: 980 | AK120: 2395 | AM120: -64 | AN120: -817 | AO120: -4349 | AP120: 29757 | AT120: 21.5 | AV120: 276 | AW120: 8139 | AY120: 0.766798419 | AZ120: 65.11146572 | BA120: -4347.339968 | BE120: 30.83537493 | BF120: 371.667281 | BG120: 15.90431125 | BH120: 8529.67195 | BJ120: 19205 | BK120: 61821 | BL120: 0 | BM120: -42616 | BN120: 29150 | BO120: 14938 | BR120: -278 | BS120: 73 | BT120: 1267 | BU120: 2897 | BV120: 0 | BX120: -1630 | BY120: 4 | BZ120: 21 | CC120: -1633 | CD120: -423 | CE120: 1161 | CG120: 620 | CH120: -1739 | CI120: -3601 | CN120: 21.5 | CP120: 287 | EO120: -7207 | EP120: 127 | EQ120: 336 | ER120: -5515 | ES120: 253 | ET120: 500 | EX120: 1566 | EY120: 2774 | EZ120: 6736 | FA120: -1479 | FD120: 27854 | FE120: 15361 | FF120: 12493 | FG120: 250 | FH120: 31671 | FI120: 20657 | FJ120: 11014 | FK120: 102 | FW120: -2706 | FZ120: 926 | GA120: -926
A121: 400 | B121: Laitila | C121: 8520 | E121: 2.674193548 | F121: 54.78644203 | G121: -4303.99061 | K121: 46.20385859 | L121: 413.8497653 | M121: 14.15441298 | N121: 10671.94836 | P121: 36875 | Q121: 80389 | R121: 10 | S121: -43504 | T121: 29254 | U121: 19164 | X121: -259 | Y121: 47 | Z121: 4702 | AA121: 4113 | AB121: 0 | AD121: 589 | AE121: 1478 | AF121: 7 | AI121: 498 | AJ121: 7427 | AK121: 4926 | AM121: 549 | AN121: -1588 | AO121: -3366 | AP121: 29254 | AT121: 20.75 | AV121: 182 | AW121: 8520 | AY121: 3.676705593 | AZ121: 54.88197672 | BA121: -4210.915493 | BE121: 45.04755852 | BF121: 451.8779343 | BG121: 15.83184056 | BH121: 10417.95775 | BJ121: 37761 | BK121: 81043 | BL121: 17 | BM121: -43265 | BN121: 28683 | BO121: 20488 | BR121: -180 | BS121: 71 | BT121: 5797 | BU121: 4354 | BV121: 0 | BX121: 1443 | BY121: -118 | BZ121: 0 | CC121: 1355 | CD121: 9292 | CE121: 5959 | CG121: -1450 | CH121: -1442 | CI121: 596 | CN121: 20.75 | CP121: 150 | EO121: -8644 | EP121: 239 | EQ121: 113 | ER121: -6121 | ES121: 587 | ET121: 171 | EX121: 3189 | EY121: 862 | EZ121: 118 | FA121: 2304 | FD121: 31506 | FE121: 17694 | FF121: 13812 | FG121: 328 | FH121: 32541 | FI121: 16479 | FJ121: 16062 | FK121: 328 | FW121: -3648 | FZ121: 271 | GA121: -271
A122: 407 | B122: Lapinjärvi | C122: 2774 | E122: 2.668367347 | F122: 61.00046318 | G122: -4838.13987 | K122: 38.03749903 | L122: 497.8370584 | M122: 19.06448563 | N122: 9531.362653 | P122: 10461 | Q122: 24587 | R122: -1 | S122: -14127 | T122: 8824 | U122: 6623 | X122: -251 | Y122: 765 | Z122: 1834 | AA122: 1446 | AB122: 18 | AD122: 406 | AE122: 8 | AF122: 0 | AI122: 406 | AJ122: 940 | AK122: 1677 | AM122: -45 | AN122: -526 | AO122: 1002 | AP122: 8824 | AT122: 20.5 | AV122: 125 | AW122: 2739 | AY122: 0.4791231733 | AZ122: 64.77577928 | BA122: -5028.842643 | BE122: 34.48682019 | BF122: 401.9715225 | BG122: 14.91869919 | BH122: 9834.611172 | BJ122: 9028 | BK122: 24905 | BL122: 0 | BM122: -15877 | BN122: 8481 | BO122: 7065 | BR122: -199 | BS122: 783 | BT122: 253 | BU122: 1476 | BV122: 0 | BX122: -1223 | BY122: 0 | BZ122: -1 | CC122: -1224 | CD122: -421 | CE122: 245 | CG122: -41 | CH122: -752 | CI122: -329 | CN122: 20.5 | CP122: 289 | EO122: -1039 | EP122: 35 | EQ122: 329 | ER122: -1046 | ES122: 1 | ET122: 471 | EX122: 125 | EY122: -704 | EZ122: 5 | FA122: 852 | FD122: 12523 | FE122: 10904 | FF122: 1619 | FG122: 0 | FH122: 12629 | FI122: 10116 | FJ122: 2513 | FK122: 0 | FW122: -121 | FZ122: 213 | GA122: -213
A123: 402 | B123: Lapinlahti | C123: 9982 | E123: 1.288093066 | F123: 72.60819578 | G123: -5803.045482 | K123: 34.51469343 | L123: 515.0270487 | M123: 17.78049936 | N123: 10572.53055 | P123: 34508 | Q123: 92586 | R123: 115 | S123: -57963 | T123: 29928 | U123: 32980 | X123: -658 | Y123: 675 | Z123: 4962 | AA123: 5499 | AB123: 3 | AD123: -534 | AE123: 600 | AF123: -91 | AI123: -587 | AJ123: 249 | AK123: 4740 | AM123: -1749 | AN123: -3699 | AO123: -1140 | AP123: 29928 | AT123: 20.25 | AV123: 211 | AW123: 9882 | AY123: 0.6826594533 | AZ123: 73.64533276 | BA123: -6211.596843 | BE123: 32.71728856 | BF123: 347.9052823 | BG123: 11.41818546 | BH123: 11121.33171 | BJ123: 35233 | BK123: 93723 | BL123: 109 | BM123: -58381 | BN123: 29107 | BO123: 33673 | BR123: -526 | BS123: 368 | BT123: 4241 | BU123: 5565 | BV123: 43 | BX123: -1281 | BY123: 30 | BZ123: -4 | CC123: -1309 | CD123: -1062 | CE123: 4181 | CG123: 306 | CH123: -6470 | CI123: -3747 | CN123: 20.25 | CP123: 253 | EO123: -8483 | EP123: 530 | EQ123: 2073 | ER123: -9085 | ES123: 302 | ET123: 855 | EX123: 6030 | EY123: 370 | EZ123: 7683 | FA123: -14 | FD123: 58639 | FE123: 52125 | FF123: 6514 | FG123: 907 | FH123: 59777 | FI123: 52673 | FJ123: 7104 | FK123: 907 | FW123: -3283 | FZ123: 1488 | GA123: -1488
A124: 403 | B124: Lappajärvi | C124: 3215 | E124: 3.282278481 | F124: 59.08232189 | G124: -5510.108865 | K124: 47.3495653 | L124: 1021.150855 | M124: 28.91498962 | N124: 12890.20218 | P124: 16195 | Q124: 36111 | R124: 9 | S124: -19907 | T124: 10293 | U124: 12153 | X124: -157 | Y124: 35 | Z124: 2417 | AA124: 1829 | AB124: 0 | AD124: 588 | AE124: 2820 | AF124: -12 | AI124: 574 | AJ124: 1662 | AK124: 2362 | AM124: 330 | AN124: -614 | AO124: -1292 | AP124: 10293 | AT124: 21 | AV124: 100 | AW124: 3176 | AY124: 2.976165803 | AZ124: 58.97599591 | BA124: -5346.662469 | BE124: 42.04593179 | BF124: 1217.254408 | BG124: 35.68495056 | BH124: 12450.56675 | BJ124: 16234 | BK124: 36321 | BL124: 5 | BM124: -20082 | BN124: 10354 | BO124: 12572 | BR124: -154 | BS124: 19 | BT124: 2709 | BU124: 1667 | BV124: 0 | BX124: 1042 | BY124: 7 | BZ124: 9 | CC124: 1064 | CD124: 2732 | CE124: 2744 | CG124: -226 | CH124: -802 | CI124: 687 | CN124: 21 | CP124: 87 | EO124: -4529 | EP124: 709 | EQ124: 166 | ER124: -2244 | ES124: 180 | ET124: 7 | EX124: 1476 | EY124: -899 | EZ124: 686 | FA124: 852 | FD124: 17239 | FE124: 10140 | FF124: 7099 | FG124: 8 | FH124: 17969 | FI124: 9974 | FJ124: 7995 | FK124: 7 | FW124: -2784 | FZ124: 651 | GA124: -651
A125: 405 | B125: Lappeenranta | C125: 72875 | E125: 0.859459343 | F125: 96.56071773 | G125: -8422.696398 | K125: 26.80879158 | L125: 608.3704974 | M125: 19.54543917 | N125: 11360.97427 | P125: 323407 | Q125: 653464 | R125: 328 | S125: -329729 | T125: 294643 | U125: 115039 | X125: -8131 | Y125: -630 | Z125: 71192 | AA125: 53279 | AB125: 0 | AD125: 17913 | AE125: 7310 | AF125: -3167 | AI125: 14541 | AJ125: 32324 | AK125: 67057 | AM125: 14893 | AN125: -84236 | AO125: -3852 | AP125: 294643 | AT125: 21 | AV125: 40 | AW125: 72872 | AY125: 1.783575568 | AZ125: 88.22540215 | BA125: -8258.219892 | BE125: 28.84841154 | BF125: 602.3438358 | BG125: 18.97463623 | BH125: 11586.80975 | BJ125: 376468 | BK125: 693585 | BL125: 1327 | BM125: -315790 | BN125: 293913 | BO125: 122300 | BR125: -6879 | BS125: -627 | BT125: 92917 | BU125: 49567 | BV125: 0 | BX125: 43350 | BY125: -662 | BZ125: -29 | CC125: 38395 | CD125: 69752 | CE125: 88675 | CG125: -3557 | CH125: -48978 | CI125: 13696 | CN125: 21 | CP125: 15 | EO125: -80488 | EP125: 4124 | EQ125: 5455 | ER125: -93568 | ES125: 2452 | ET125: 16137 | EX125: 71263 | EY125: -1392 | EZ125: 18999 | FA125: 18336 | FD125: 536161 | FE125: 467845 | FF125: 68316 | FG125: 428 | FH125: 520003 | FI125: 421960 | FJ125: 98043 | FK125: 428 | FW125: -24237 | FZ125: 21416 | GA125: -21416
A126: 408 | B126: Lapua | C126: 14609 | E126: 0.6278588808 | F126: 92.55362045 | G126: -7096.242043 | K126: 26.27338147 | L126: 633.7189404 | M126: 22.91118042 | N126: 10095.83134 | P126: 44243 | Q126: 119037 | R126: 46 | S126: -74748 | T126: 48434 | U126: 36285 | X126: -1245 | Y126: 340 | Z126: 9066 | AA126: 8314 | AB126: 3 | AD126: 755 | AE126: 364 | AF126: -25 | AI126: 779 | AJ126: 11300 | AK126: 8894 | AM126: 495 | AN126: -15184 | AO126: -1099 | AP126: 48434 | AT126: 21 | AV126: 147 | AW126: 14575 | AY126: 1.408137317 | AZ126: 89.82512648 | BA126: -6882.744425 | BE126: 27.48898838 | BF126: 736.1921098 | BG126: 28.43219816 | BH126: 9450.909091 | BJ126: 43967 | BK126: 118806 | BL126: 59 | BM126: -74780 | BN126: 48256 | BO126: 39415 | BR126: -1306 | BS126: 386 | BT126: 11971 | BU126: 8802 | BV126: 0 | BX126: 3169 | BY126: -38 | BZ126: 16 | CC126: 3119 | CD126: 14497 | CE126: 11471 | CG126: -761 | CH126: -8119 | CI126: 3163 | CN126: 21 | CP126: 97 | EO126: -11987 | EP126: 1403 | EQ126: 591 | ER126: -9436 | ES126: 33 | ET126: 1095 | EX126: 6854 | EY126: 9420 | EZ126: 5944 | FA126: 452 | FD126: 92101 | FE126: 68998 | FF126: 23103 | FG126: 31 | FH126: 90378 | FI126: 66609 | FJ126: 23769 | FK126: 23 | FW126: -6601 | FZ126: 2937 | GA126: -2937
A127: 410 | B127: Laukaa | C127: 18865 | E127: 2.211729194 | F127: 82.13460848 | G127: -5833.87225 | K127: 20.72602944 | L127: 239.4911211 | M127: 9.87041515 | N127: 8856.188709 | P127: 41431 | Q127: 137892 | R127: 18 | S127: -96443 | T127: 65306 | U127: 40906 | X127: -214 | Y127: 439 | Z127: 9994 | AA127: 10371 | AB127: 0 | AD127: -377 | AE127: 5 | AF127: -947 | AI127: -1324 | AJ127: -6933 | AK127: 9662 | AM127: 574 | AN127: -4374 | AO127: -6890 | AP127: 65306 | AT127: 21.5 | AV127: 194 | AW127: 18970 | AY127: 3.662452107 | AZ127: 89.2525024 | BA127: -6337.691091 | BE127: 18.73640281 | BF127: 389.4043226 | BG127: 16.27740818 | BH127: 8731.892462 | BJ127: 41588 | BK127: 142812 | BL127: 0 | BM127: -101224 | BN127: 66746 | BO127: 43720 | BR127: -252 | BS127: 262 | BT127: 9252 | BU127: 9020 | BV127: 0 | BX127: 232 | BY127: 0 | BZ127: -8 | CC127: 82 | CD127: -3969 | CE127: 9293 | CG127: -1570 | CH127: -2303 | CI127: -9258 | CN127: 21.5 | CP127: 234 | EO127: -21744 | EP127: 1216 | EQ127: 3976 | ER127: -19898 | ES127: 410 | ET127: 937 | EX127: 14144 | EY127: -3983 | EZ127: 5312 | FA127: 8928 | FD127: 100056 | FE127: 33546 | FF127: 66510 | FG127: 278 | FH127: 112039 | FI127: 38635 | FJ127: 73404 | FK127: 303 | FW127: -16820 | FZ127: 63 | GA127: -63
A128: 416 | B128: Lemi | C128: 3073 | E128: 1.347663551 | F128: 48.93757607 | G128: -3552.554507 | K128: 33.12982748 | L128: 410.3481939 | M128: 13.62900121 | N128: 10989.58672 | P128: 12487 | Q128: 27327 | R128: 10 | S128: -14830 | T128: 10385 | U128: 5883 | X128: -134 | Y128: 3 | Z128: 1307 | AA128: 1026 | AB128: 0 | AD128: 281 | AE128: 0 | AF128: -1 | AI128: 280 | AJ128: 79 | AK128: 1296 | AM128: 262 | AN128: -935 | AO128: -1807 | AP128: 10385 | AT128: 21 | AV128: 238 | AW128: 3076 | AY128: 2.470277411 | AZ128: 43.61220757 | BA128: -3402.795839 | BE128: 35.73366441 | BF128: 464.5643693 | BG128: 16.40204403 | BH128: 10338.10143 | BJ128: 14123 | BK128: 29337 | BL128: 29 | BM128: -15185 | BN128: 10848 | BO128: 6190 | BR128: -138 | BS128: 16 | BT128: 1731 | BU128: 1103 | BV128: 0 | BX128: 628 | BY128: 0 | BZ128: -29 | CC128: 599 | CD128: 679 | CE128: 1693 | CG128: -49 | CH128: -618 | CI128: 519 | CN128: 21 | CP128: 206 | EO128: -5409 | EP128: 1852 | EQ128: 454 | ER128: -1657 | ES128: 391 | ET128: 92 | EX128: 2764 | EY128: -302 | EZ128: -117 | FA128: 250 | FD128: 10533 | FE128: 9598 | FF128: 935 | FG128: -45 | FH128: 9791 | FI128: 8872 | FJ128: 919 | FK128: 2 | FW128: -648 | FZ128: 110 | GA128: -110
A129: 418 | B129: Lempäälä | C129: 22536 | E129: 0.8839434276 | F129: 83.89298036 | G129: -5767.039404 | K129: 27.44679251 | L129: 265.086972 | M129: 11.21217419 | N129: 8629.614838 | P129: 56824 | Q129: 159803 | R129: -21 | S129: -103000 | T129: 88376 | U129: 24937 | X129: -1217 | Y129: 288 | Z129: 9384 | AA129: 14012 | AB129: 0 | AD129: -4628 | AE129: 878 | AF129: -10 | AI129: -4645 | AJ129: 4729 | AK129: 7481 | AM129: 634 | AN129: -10779 | AO129: -11511 | AP129: 88376 | AT129: 20.5 | AV129: 243 | AW129: 22745 | AY129: 1.580713644 | AZ129: 78.31622893 | BA129: -5431.479446 | BE129: 28.6583808 | BF129: 357.3532645 | BG129: 16.10605921 | BH129: 8098.439217 | BJ129: 58520 | BK129: 158752 | BL129: 33 | BM129: -100199 | BN129: 92783 | BO129: 26429 | BR129: -813 | BS129: 188 | BT129: 18388 | BU129: 15066 | BV129: 69 | BX129: 3391 | BY129: -76 | BZ129: 7 | CC129: 3209 | CD129: 9188 | CE129: 16127 | CG129: -998 | CH129: -11276 | CI129: 6206 | CN129: 20.5 | CP129: 100 | EO129: -22486 | EP129: 1187 | EQ129: 2307 | ER129: -12980 | ES129: 232 | ET129: 2827 | EX129: 19900 | EY129: 1573 | EZ129: 7522 | FA129: -248 | FD129: 116371 | FE129: 101866 | FF129: 14505 | FG129: 291 | FH129: 112685 | FI129: 98403 | FJ129: 14282 | FK129: 259 | FW129: -16666 | FZ129: 5084 | GA129: -5084
A130: 420 | B130: Leppävirta | C130: 9953 | E130: 2.659303882 | F130: 50.59265622 | G130: -3315.382297 | K130: 48.73607789 | L130: 1009.544861 | M130: 37.35315985 | N130: 9864.864865 | P130: 34235 | Q130: 85930 | R130: 33 | S130: -51662 | T130: 33099 | U130: 25806 | X130: -526 | Y130: 656 | Z130: 7373 | AA130: 5733 | AB130: 0 | AD130: 1640 | AE130: 116 | AF130: 160 | AI130: 1803 | AJ130: 4509 | AK130: 7164 | AM130: 1045 | AN130: -2415 | AO130: 485 | AP130: 33099 | AT130: 20 | AV130: 104 | AW130: 9865 | AY130: 2.19552378 | AZ130: 47.4157327 | BA130: -3187.531678 | BE130: 49.75716966 | BF130: 982.1591485 | BG130: 36.38059625 | BH130: 9853.82666 | BJ130: 35218 | BK130: 88431 | BL130: 31 | BM130: -53182 | BN130: 33186 | BO130: 26710 | BR130: -458 | BS130: 291 | BT130: 6547 | BU130: 6232 | BV130: 0 | BX130: 315 | BY130: -21 | BZ130: -224 | CC130: 62 | CD130: 4770 | CE130: 6493 | CG130: 110 | CH130: -2701 | CI130: 1306 | CN130: 20 | CP130: 157 | EO130: -8916 | EP130: 1521 | EQ130: 716 | ER130: -5486 | ES130: 169 | ET130: 130 | EX130: 3670 | EY130: 62 | EZ130: 1460 | FA130: 40 | FD130: 36288 | FE130: 33604 | FF130: 2684 | FG130: 509 | FH130: 35078 | FI130: 32315 | FJ130: 2763 | FK130: 509 | FW130: -2634 | FZ130: 611 | GA130: -611
A131: 421 | B131: Lestijärvi | C131: 798 | E131: 7.193548387 | F131: 37.82778172 | G131: -2051.378446 | K131: 66.62775427 | L131: 2045.112782 | M131: 54.1576507 | N131: 13783.20802 | P131: 5690 | Q131: 10427 | R131: 11 | S131: -4726 | T131: 2448 | U131: 3150 | X131: -23 | Y131: 2 | Z131: 851 | AA131: 554 | AB131: 45 | AD131: 342 | AE131: 0 | AF131: -57 | AI131: 285 | AJ131: 3185 | AK131: 832 | AM131: 212 | AN131: -83 | AO131: 453 | AP131: 2448 | AT131: 20 | AV131: 24 | AW131: 811 | AY131: 2.237885463 | AZ131: 42.19368458 | BA131: -2717.632552 | BE131: 64.85555634 | BF131: 1786.683107 | BG131: 43.66980431 | BH131: 14933.41554 | BJ131: 6001 | BK131: 10907 | BL131: 26 | BM131: -4880 | BN131: 2256 | BO131: 3112 | BR131: -24 | BS131: 6 | BT131: 470 | BU131: 566 | BV131: 49 | BX131: -47 | BY131: 0 | BZ131: 0 | CC131: -47 | CD131: 3246 | CE131: 521 | CG131: 45 | CH131: -189 | CI131: -426 | CN131: 21 | CP131: 200 | EO131: -443 | EP131: 52 | EQ131: 12 | ER131: -976 | ES131: 29 | ET131: 0 | EX131: 176 | EY131: -264 | EZ131: 62 | FA131: 3 | FD131: 2921 | FE131: 2861 | FF131: 60 | FG131: -682 | FH131: 3242 | FI131: 3173 | FJ131: 69 | FK131: 0 | FS131: =(EC131/EF131) ->  | FT131: =(FS131/CQ131)*1000 ->  | FW131: -43 | FZ131: 502 | GA131: =FZ131*-1 -> -502
A132: 422 | B132: Lieksa | C132: 11772 | E132: 1.569637462 | F132: 53.80706579 | G132: -3010.788311 | K132: 46.84160587 | L132: 1223.58138 | M132: 40.50400228 | N132: 11026.24873 | P132: 39216 | Q132: 114874 | R132: 2 | S132: -75656 | T132: 40772 | U132: 44386 | X132: -452 | Y132: 598 | Z132: 9648 | AA132: 6807 | AB132: 0 | AD132: 2841 | AE132: 25 | AF132: -44 | AI132: 2799 | AJ132: 24485 | AK132: 9912 | AM132: -952 | AN132: -5877 | AO132: 4261 | AP132: 40772 | AT132: 21 | AV132: 81 | AW132: 11580 | AY132: 1.854195874 | AZ132: 52.44774433 | BA132: -2807.944732 | BE132: 48.50796396 | BF132: 1262.867012 | BG132: 42.21308364 | BH132: 10919.51641 | BJ132: 38796 | BK132: 115486 | BL132: -3 | BM132: -76693 | BN132: 39660 | BO132: 45454 | BR132: -447 | BS132: 569 | BT132: 8543 | BU132: 6017 | BV132: 0 | BX132: 2526 | BY132: 5 | BZ132: 14 | CC132: 2534 | CD132: 27357 | CE132: 8543 | CG132: -773 | CH132: -4278 | CI132: 3486 | CN132: 21 | CP132: 126 | EO132: -8190 | EP132: 1719 | EQ132: 820 | ER132: -5225 | ES132: 67 | ET132: 101 | EX132: 1365 | EY132: 3038 | EZ132: 2021 | FA132: 476 | FD132: 50057 | FE132: 38448 | FF132: 11609 | FG132: 70 | FH132: 48278 | FI132: 36354 | FJ132: 11924 | FK132: 769 | FW132: -2868 | FZ132: 1317 | GA132: -1317
A133: 423 | B133: Lieto | C133: 19263 | E133: 1.336808704 | F133: 60.88525874 | G133: -4135.492914 | K133: 28.62183796 | L133: 278.9804288 | M133: 12.42185323 | N133: 8197.477029 | P133: 55091 | Q133: 141947 | R133: 5 | S133: -86851 | T133: 72610 | U133: 23012 | X133: -865 | Y133: 55 | Z133: 7961 | AA133: 7540 | AB133: 0 | AD133: 421 | AE133: 61 | AF133: -107 | AI133: 333 | AJ133: 5480 | AK133: 6152 | AM133: -129 | AN133: -5732 | AO133: -81 | AP133: 72610 | AT133: 19.5 | AV133: 245 | AW133: 19418 | AY133: 0.9870838639 | AZ133: 65.65901712 | BA133: -4277.165517 | BE133: 28.09273479 | BF133: 550.8291276 | BG133: 23.07570456 | BH133: 8712.740756 | BJ133: 55532 | BK133: 142880 | BL133: 2 | BM133: -87346 | BN133: 75363 | BO133: 22796 | BR133: -654 | BS133: 27 | BT133: 10186 | BU133: 8122 | BV133: 0 | BX133: 2064 | BY133: -49 | BZ133: 0 | CC133: 1986 | CD133: 8452 | CE133: 8505 | CG133: -437 | CH133: -10328 | CI133: -3160 | CN133: 19.5 | CP133: 218 | EO133: -9327 | EP133: 128 | EQ133: 2966 | ER133: -15222 | ES133: 1305 | ET133: 2252 | EX133: 1415 | EY133: 40 | EZ133: 9209 | FA133: 9976 | FD133: 67246 | FE133: 44878 | FF133: 22368 | FG133: 0 | FH133: 76102 | FI133: 43178 | FJ133: 32924 | FK133: 0 | FW133: -4444 | FZ133: 2603 | GA133: -2603
A134: 425 | B134: Liminka | C134: 9937 | E134: 2.199335548 | F134: 51.73507365 | G134: -2906.511019 | K134: 56.08590854 | L134: 557.9148636 | M134: 26.80211921 | N134: 7597.866559 | P134: 22656 | Q134: 68475 | R134: 10 | S134: -45809 | T134: 29551 | U134: 24101 | X134: -256 | Y134: 87 | Z134: 7674 | AA134: 5966 | AB134: 0 | AD134: 1708 | AE134: 1854 | AF134: 18 | AI134: 1776 | AJ134: 29125 | AK134: 7007 | AM134: 193 | AN134: -3342 | AO134: 5043 | AP134: 29551 | AT134: 20.5 | AV134: 95 | AW134: 10000 | AY134: 1.526711813 | AZ134: 47.24062656 | BA134: -2664.6 | BE134: 54.78353338 | BF134: 545.3 | BG134: 24.65037217 | BH134: 8074.3 | BJ134: 20265 | BK134: 72301 | BL134: 1 | BM134: -52035 | BN134: 29958 | BO134: 28110 | BR134: -230 | BS134: 51 | BT134: 5854 | BU134: 7482 | BV134: 0 | BX134: -1628 | BY134: 57 | BZ134: -3 | CC134: -1611 | CD134: 27359 | CE134: 5640 | CG134: 348 | CH134: -3754 | CI134: 2319 | CN134: 20.5 | CP134: 194 | EO134: -3402 | EP134: 489 | EQ134: 949 | ER134: -4451 | ES134: 225 | ET134: 905 | EX134: 3989 | EY134: -6048 | EZ134: 347 | FA134: 947 | FD134: 25511 | FE134: 17870 | FF134: 7641 | FG134: 687 | FH134: 23100 | FI134: 15187 | FJ134: 7913 | FK134: 695 | FW134: -1696 | FZ134: 1949 | GA134: -1949
A135: 426 | B135: Liperi | C135: 12338 | E135: 0.98063024 | F135: 66.11806901 | G135: -4522.288864 | K135: 25.44420753 | L135: 651.7263738 | M135: 25.51633152 | N135: 9322.661696 | P135: 35380 | Q135: 97306 | R135: -8 | S135: -61934 | T135: 40300 | U135: 28039 | X135: -854 | Y135: 351 | Z135: 5902 | AA135: 3981 | AB135: 0 | AD135: 1921 | AE135: 45 | AF135: -84 | AI135: 1842 | AJ135: 7471 | AK135: 5556 | AM135: 630 | AN135: -6036 | AO135: -3474 | AP135: 40300 | AT135: 21.5 | AV135: 216 | AW135: 12301 | AY135: 0.9538502817 | AZ135: 62.02661499 | BA135: -4315.584099 | BE135: 27.00113726 | BF135: 631.9811397 | BG135: 25.50570787 | BH135: 9043.980164 | BJ135: 35280 | BK135: 98314 | BL135: -229 | BM135: -63263 | BN135: 40284 | BO135: 29715 | BR135: -699 | BS135: 341 | BT135: 6378 | BU135: 5081 | BV135: 0 | BX135: 1297 | BY135: 6 | BZ135: 8 | CC135: 1202 | CD135: 8680 | CE135: 6580 | CG135: 298 | CH135: -6722 | CI135: 3236 | CN135: 21.5 | CP135: 223 | EO135: -10750 | EP135: 1300 | EQ135: 420 | ER135: -4775 | ES135: 37 | ET135: 1394 | EX135: 6716 | EY135: 2999 | EZ135: 6024 | FA135: -1000 | FD135: 51062 | FE135: 39696 | FF135: 11366 | FG135: 0 | FH135: 49363 | FI135: 38409 | FJ135: 10954 | FK135: 686 | FW135: -6728 | FZ135: 3322 | GA135: -3322
A136: 444 | B136: Lohja | C136: 47353 | E136: 1.809206234 | F136: 53.97515454 | G136: -4038.117965 | K136: 39.22267579 | L136: 387.4939286 | M136: 14.78144712 | N136: 9568.432834 | P136: 158874 | Q136: 396729 | R136: -80 | S136: -237935 | T136: 187476 | U136: 75055 | X136: -2236 | Y136: 298 | Z136: 22658 | AA136: 22020 | AB136: 0 | AD136: 638 | AE136: 361 | AF136: -383 | AI136: 267 | AJ136: 19887 | AK136: 19790 | AM136: -89 | AN136: -11495 | AO136: -17302 | AP136: 187476 | AT136: 20.5 | AV136: 215 | AW136: 47149 | AY136: 1.933333333 | AZ136: 57.73136854 | BA136: -4409.998091 | BE136: 36.78454174 | BF136: 381.6199707 | BG136: 14.35711085 | BH136: 9701.902479 | BJ136: 156079 | BK136: 402266 | BL136: 128 | BM136: -246059 | BN136: 190131 | BO136: 81722 | BR136: -1846 | BS136: 165 | BT136: 24113 | BU136: 26207 | BV136: 0 | BX136: -2094 | BY136: 40 | BZ136: -7 | CC136: -2387 | CD136: 16931 | CE136: 22434 | CG136: -3182 | CH136: -11555 | CI136: -16335 | CN136: 20.5 | CP136: 226 | EO136: -41878 | EP136: 1447 | EQ136: 3339 | ER136: -41049 | ES136: 70 | ET136: 2210 | EX136: 23756 | EY136: 6000 | EZ136: 30326 | FA136: -2000 | FD136: 163673 | FE136: 128956 | FF136: 34717 | FG136: 58 | FH136: 180376 | FI136: 125647 | FJ136: 54729 | FK136: 86 | FW136: -21738 | FZ136: 5677 | GA136: -5677
A137: 430 | B137: Loimaa | C137: 16467 | E137: 1.318010458 | F137: 47.96919907 | G137: -3796.319913 | K137: 40.82929542 | L137: 616.5057388 | M137: 21.96451752 | N137: 10244.91407 | P137: 61502 | Q137: 155253 | R137: 8 | S137: -93743 | T137: 54007 | U137: 50460 | X137: -712 | Y137: 106 | Z137: 10118 | AA137: 8087 | AB137: 0 | AD137: 2031 | AE137: 3015 | AF137: -65 | AI137: 1747 | AJ137: 11396 | AK137: 10108 | AM137: 417 | AN137: -7503 | AO137: 5233 | AP137: 54007 | AT137: 20.5 | AV137: 149 | AW137: 16267 | AY137: 1.056973966 | AZ137: 45.11347063 | BA137: -3677.752505 | BE137: 39.21183643 | BF137: 491.1169853 | BG137: 16.58949327 | BH137: 10805.49579 | BJ137: 65627 | BK137: 163078 | BL137: 3 | BM137: -97448 | BN137: 53725 | BO137: 52058 | BR137: -500 | BS137: 64 | BT137: 7899 | BU137: 8068 | BV137: 0 | BX137: -169 | BY137: -298 | BZ137: 0 | CC137: -458 | CD137: 11153 | CE137: 6997 | CG137: -2196 | CH137: -7446 | CI137: 2653 | CN137: 20.5 | CP137: 235 | EO137: -5981 | EP137: 397 | EQ137: 709 | ER137: -5459 | ES137: 30 | ET137: 1085 | EX137: 4566 | EY137: -24 | EZ137: -423 | FA137: 2920 | FD137: 57704 | FE137: 42892 | FF137: 14812 | FG137: 0 | FH137: 53500 | FI137: 35942 | FJ137: 17558 | FK137: 88 | FW137: -2590 | FZ137: 8094 | GA137: -8094
A138: 433 | B138: Loppi | C138: 8175 | E138: 0.8251442212 | F138: 51.06223482 | G138: -3677.308869 | K138: 44.09982805 | L138: 240.1223242 | M138: 9.807342212 | N138: 8936.636086 | P138: 23852 | Q138: 62584 | R138: -21 | S138: -38753 | T138: 27605 | U138: 15242 | X138: -501 | Y138: 49 | Z138: 3642 | AA138: 2874 | AB138: 0 | AD138: 768 | AE138: 26 | AF138: 4 | AI138: 769 | AJ138: 11375 | AK138: 3619 | AM138: 239 | AN138: -4521 | AO138: -1256 | AP138: 27605 | AT138: 20.5 | AV138: 232 | AW138: 8098 | AY138: 1.152587441 | AZ138: 55.32412451 | BA138: -4058.656458 | BE138: 42.71559362 | BF138: 369.2269696 | BG138: 14.14325333 | BH138: 9528.772536 | BJ138: 24289 | BK138: 63233 | BL138: -47 | BM138: -38991 | BN138: 28572 | BO138: 15986 | BR138: -444 | BS138: 51 | BT138: 5174 | BU138: 3316 | BV138: 0 | BX138: 1858 | BY138: 0 | BZ138: 2 | CC138: 1860 | CD138: 12888 | CE138: 4500 | CG138: -231 | CH138: -4428 | CI138: -4047 | CN138: 21.5 | CP138: 168 | EO138: -5443 | EP138: 0 | EQ138: 568 | ER138: -9038 | ES138: 139 | ET138: 352 | EX138: 5513 | EY138: -793 | EZ138: 9566 | FA138: -500 | FD138: 25685 | FE138: 16781 | FF138: 8904 | FG138: 52 | FH138: 30269 | FI138: 21920 | FJ138: 8349 | FK138: 48 | FW138: -4264 | FZ138: 3878 | GA138: -3878
A139: 434 | B139: Loviisa | C139: 15311 | E139: 1.165736935 | F139: 49.5309982 | G139: -3255.110705 | K139: 41.10012017 | L139: 795.310561 | M139: 28.66691821 | N139: 10126.2491 | P139: 54705 | Q139: 138834 | R139: -4 | S139: -84133 | T139: 65765 | U139: 24732 | X139: -611 | Y139: 1509 | Z139: 7262 | AA139: 6351 | AB139: 6 | AD139: 917 | AE139: 248 | AF139: -38 | AI139: 880 | AJ139: 3672 | AK139: 6322 | AM139: -4160 | AN139: -6133 | AO139: 1192 | AP139: 65765 | AT139: 19.75 | AV139: 219 | AW139: 15208 | AY139: 1.939768051 | AZ139: 51.08309416 | BA139: -3440.886376 | BE139: 40.7273313 | BF139: 760.0604945 | BG139: 27.23996668 | BH139: 10184.37664 | BJ139: 50698 | BK139: 137554 | BL139: -3 | BM139: -86859 | BN139: 65884 | BO139: 29758 | BR139: -482 | BS139: 1538 | BT139: 9839 | BU139: 7986 | BV139: -130 | BX139: 1723 | BY139: 5 | BZ139: -2 | CC139: 1664 | CD139: 6164 | CE139: 9080 | CG139: -1077 | CH139: -4815 | CI139: -1547 | CN139: 19.75 | CP139: 165 | EO139: -9119 | EP139: 3842 | EQ139: 147 | ER139: -11798 | ES139: 549 | ET139: 622 | EX139: 10383 | EY139: 2240 | EZ139: 9119 | FA139: -2943 | FD139: 52400 | FE139: 37874 | FF139: 14526 | FG139: 36 | FH139: 54364 | FI139: 41551 | FJ139: 12813 | FK139: 89 | FW139: -1394 | FZ139: 3602 | GA139: -3602
A140: 435 | B140: Luhanka | C140: 761 | F140: 33 | G140: 0 | K140: 65.9 | L140: 0 | N140: 0 | T140: 2522 | X140: 0 | Y140: 0 | AD140: 0 | AN140: 0 | AT140: 19 | AV140: 301 | AW140: 756 | AY140: 1.002849003 | AZ140: 46.80956511 | BA140: -1927.248677 | BE140: 59.46087138 | BF140: 2342.592593 | BG140: 72.46804933 | BH140: 11798.9418 | BJ140: 2653 | BK140: 7645 | BL140: 0 | BM140: -4992 | BN140: 2329 | BO140: 3089 | BR140: -6 | BS140: -95 | BT140: 325 | BU140: 302 | BV140: 68 | BX140: 91 | BY140: 0 | BZ140: 0 | CC140: 89 | CD140: 2354 | CE140: 398 | CG140: -108 | CH140: -324 | CI140: -357 | CN140: 18.5 | CP140: 252 | EO140: 0 | ER140: -746 | ES140: -1 | ET140: -8 | EZ140: 391 | FA140: 53 | FG140: 0 | FH140: 1996 | FI140: 1996 | FJ140: 0 | FK140: 174 | FW140: -30 | FZ140: 138 | GA140: -138
A141: 436 | B141: Lumijoki | C141: 2076 | E141: 1.415019763 | F141: 64.52851496 | G141: -4670.038536 | K141: 29.9661263 | L141: 423.4104046 | M141: 17.90174088 | N141: 8632.947977 | P141: 5631 | Q141: 16656 | R141: 3 | S141: -11022 | T141: 5439 | U141: 6640 | X141: -103 | Y141: 14 | Z141: 968 | AA141: 1028 | AB141: 0 | AD141: -60 | AE141: 147 | AF141: 5 | AI141: -55 | AJ141: 1103 | AK141: 930 | AM141: -30 | AN141: -653 | AO141: 473 | AP141: 5439 | AT141: 20.5 | AV141: 225 | AW141: 2105 | AY141: 1.509803922 | AZ141: 61.03866906 | BA141: -4309.738717 | BE141: 30.14765435 | BF141: 365.7957245 | BG141: 15.64169635 | BH141: 8535.866983 | BJ141: 5599 | BK141: 16644 | BL141: 0 | BM141: -11045 | BN141: 5353 | BO141: 6840 | BR141: -76 | BS141: 2 | BT141: 1074 | BU141: 1032 | BV141: 0 | BX141: 42 | BY141: -8 | BZ141: -1 | CC141: 18 | CD141: 1007 | CE141: 1068 | CG141: -64 | CH141: -684 | CI141: 674 | CN141: 20.75 | CP141: 227 | EO141: -484 | EP141: 0 | EQ141: 27 | ER141: -557 | ES141: 105 | ET141: 58 | EX141: 4 | EY141: 7 | EZ141: 118 | FA141: -4 | FD141: 8183 | FE141: 5408 | FF141: 2775 | FG141: 0 | FH141: 7613 | FI141: 4864 | FJ141: 2749 | FK141: 5 | FW141: -145 | FZ141: 318 | GA141: -318
A142: 440 | B142: Luoto | C142: 5147 | E142: 1.534290844 | F142: 75.18640024 | G142: -3164.561881 | K142: 45.05128861 | L142: 1621.332815 | M142: 81.28969843 | N142: 7279.968914 | P142: 8947 | Q142: 32549 | R142: 0 | S142: -23602 | T142: 14929 | U142: 13007 | X142: -85 | Y142: -78 | Z142: 4171 | AA142: 1877 | AB142: 0 | AD142: 2294 | AE142: 0 | AF142: -95 | AI142: 2199 | AJ142: 13471 | AK142: 4044 | AM142: -1004 | AN142: -2683 | AO142: 2512 | AP142: 14929 | AT142: 20 | AV142: 83 | AW142: 5176 | AY142: 2.54763263 | AZ142: 71.71940283 | BA142: -3021.251932 | BE142: 47.04545888 | BF142: 1759.080371 | BG142: 83.43773538 | BH142: 7695.131376 | BJ142: 8975 | BK142: 33423 | BL142: 0 | BM142: -24448 | BN142: 14899 | BO142: 13703 | BR142: 1 | BS142: 234 | BT142: 4389 | BU142: 1990 | BV142: 0 | BX142: 2399 | BY142: 0 | BZ142: -176 | CC142: 2223 | CD142: 15683 | CE142: 4207 | CG142: -516 | CH142: -1676 | CI142: 222 | CN142: 19.5 | CP142: 91 | EO142: -1747 | EP142: 65 | EQ142: 150 | ER142: -4383 | ES142: 128 | ET142: 270 | EX142: 4 | EY142: 638 | EZ142: 57 | FA142: 3126 | FD142: 20319 | FE142: 11799 | FF142: 8520 | FG142: 570 | FH142: 21252 | FI142: 9747 | FJ142: 11505 | FK142: 0 | FW142: -783 | FZ142: 1337 | GA142: -1337
A143: 441 | B143: Luumäki | C143: 4860 | E143: 5.405 | F143: 46.38462901 | G143: -456.5843621 | K143: 61.58625788 | L143: 3733.950617 | M143: 113.9553548 | N143: 11959.87654 | P143: 21954 | Q143: 49087 | R143: -37 | S143: -27170 | T143: 16971 | U143: 11872 | X143: 37 | Y143: 298 | Z143: 2008 | AA143: 2862 | AB143: 0 | AD143: -854 | AE143: 666 | AF143: -20 | AI143: -872 | AJ143: 19349 | AK143: 2081 | AM143: -26 | AN143: -246 | AO143: -5108 | AP143: 16971 | AT143: 19.75 | AV143: 246 | AW143: 4831 | AY143: 3.63556338 | AZ143: 44.78230163 | BA143: -726.764645 | BE143: 59.42395641 | BF143: 3433.864624 | BG143: 106.9785336 | BH143: 11716.00083 | BJ143: 23629 | BK143: 50849 | BL143: 8 | BM143: -27212 | BN143: 16444 | BO143: 12316 | BR143: -59 | BS143: 412 | BT143: 1901 | BU143: 3056 | BV143: 0 | BX143: -1155 | BY143: 0 | BZ143: -2 | CC143: -1199 | CD143: 17497 | CE143: 1917 | CG143: -150 | CH143: -404 | CI143: -2421 | CN143: 19.75 | CP143: 258 | EO143: -8561 | EP143: 1241 | EQ143: 131 | ER143: -5129 | ES143: 648 | ET143: 143 | EX143: 5993 | EY143: 323 | EZ143: 839 | FA143: 23 | FD143: 16800 | FE143: 14204 | FF143: 2596 | FG143: 26 | FH143: 17273 | FI143: 16300 | FJ143: 973 | FK143: 0 | FW143: -2907 | FZ143: 0 | GA143: 0
A144: 442 | B144: Luvia | C144: 3349 | E144: 0.4456342669 | F144: 64.2424017 | G144: -3978.799642 | K144: 19.27018705 | L144: 654.5237384 | M144: 24.94559287 | N144: 9576.888623 | P144: 9979 | Q144: 26348 | R144: 0 | S144: -16369 | T144: 12105 | U144: 4797 | X144: -109 | Y144: 8 | Z144: 432 | AA144: 994 | AB144: 0 | AD144: -562 | AE144: 31 | AF144: -5 | AI144: -572 | AJ144: -2571 | AK144: 457 | AM144: 104 | AN144: -1105 | AO144: -2694 | AP144: 12105 | AT144: 20.5 | AV144: 295 | AW144: 3348 | AY144: -0.004799040192 | AZ144: 76.62385592 | BA144: -5557.945042 | BE144: 12.68189544 | BF144: 162.7837515 | BG144: 5.652081262 | BH144: 10512.24612 | BJ144: 10087 | BK144: 27113 | BL144: 0 | BM144: -17026 | BN144: 12001 | BO144: 5008 | BR144: -112 | BS144: 8 | BT144: -121 | BU144: 975 | BV144: 0 | BX144: -1096 | BY144: -1 | BZ144: -6 | CC144: -1103 | CD144: -3673 | CE144: -144 | CG144: 255 | CH144: -1554 | CI144: -5284 | CN144: 20.5 | CP144: 294 | EO144: -4504 | EP144: 1388 | EQ144: -35 | ER144: -6393 | ES144: 1230 | ET144: 23 | EX144: 4924 | EY144: -234 | EZ144: 4961 | FA144: -198 | FD144: 12575 | FE144: 11098 | FF144: 1477 | FG144: 0 | FH144: 15892 | FI144: 14437 | FJ144: 1455 | FK144: 17 | FW144: -2789 | FZ144: 515 | GA144: -515
A145: 475 | B145: Maalahti | C145: 5545 | E145: 2.429725363 | F145: 54.54499194 | G145: -4892.335437 | K145: 38.96968474 | L145: 342.651037 | M145: 10.63944034 | N145: 11755.09468 | P145: 23941 | Q145: 55964 | R145: 0 | S145: -32023 | T145: 19355 | U145: 15659 | X145: -164 | Y145: 14 | Z145: 2841 | AA145: 2407 | AB145: 0 | AD145: 434 | AE145: 145 | AF145: -26 | AI145: 406 | AJ145: 4099 | AK145: 2898 | AM145: 276 | AN145: -1071 | AO145: -3448 | AP145: 19355 | AT145: 21.5 | AV145: 204 | AW145: 5517 | AY145: 1.483050847 | AZ145: 57.10298959 | BA145: -5411.274243 | BE145: 37.81911527 | BF145: 318.4701831 | BG145: 9.667088741 | BH145: 12024.46982 | BJ145: 23790 | BK145: 55995 | BL145: -10 | BM145: -32215 | BN145: 19218 | BO145: 16833 | BR145: -151 | BS145: 7 | BT145: 3692 | BU145: 3353 | BV145: 0 | BX145: 339 | BY145: 0 | BZ145: 9 | CC145: 309 | CD145: 5062 | CE145: 3602 | CG145: 570 | CH145: -2438 | CI145: -3172 | CN145: 21.5 | CP145: 154 | EO145: -7927 | EP145: 1577 | EQ145: 4 | ER145: -7723 | ES145: 740 | ET145: 209 | EX145: 0 | EY145: 4234 | EZ145: 13640 | FA145: -9036 | FD145: 21899 | FE145: 7502 | FF145: 14397 | FG145: 13 | FH145: 24064 | FI145: 18704 | FJ145: 5360 | FK145: 27 | FW145: -5862 | FZ145: 597 | GA145: -597
A146: 480 | B146: Marttila | C146: 2028 | E146: 1.512544803 | F146: 35.3424015 | G146: -2230.769231 | K146: 50.4681855 | L146: 419.6252465 | M146: 17.96812634 | N146: 8524.161736 | P146: 6048 | Q146: 16219 | R146: 0 | S146: -10171 | T146: 6211 | U146: 4797 | X146: -62 | Y146: 3 | Z146: 778 | AA146: 707 | AB146: 0 | AD146: 71 | AE146: 0 | AF146: -48 | AI146: 23 | AJ146: 1970 | AK146: 723 | AM146: 91 | AN146: -492 | AO146: 319 | AP146: 6211 | AT146: 20.25 | AV146: 255 | AW146: 2021 | AY146: -25.94230769 | AZ146: 36.26825875 | BA146: -1968.332509 | BE146: 48.2038835 | BF146: 595.2498763 | BG146: 25.85497262 | BH146: 8403.26571 | BJ146: 6124 | BK146: 15912 | BL146: 0 | BM146: -9788 | BN146: 6078 | BO146: 5050 | BR146: -41 | BS146: 6 | BT146: 1305 | BU146: 754 | BV146: 0 | BX146: 551 | BY146: 0 | BZ146: -485 | CC146: 66 | CD146: 2086 | CE146: 1278 | CG146: -426 | CH146: 96 | CI146: 478 | CN146: 20.25 | CP146: 166 | EO146: -508 | EP146: 3 | EQ146: 101 | ER146: -1122 | ES146: 284 | ET146: 38 | EX146: 0 | EY146: 0 | EZ146: 0 | FA146: 0 | FD146: 3952 | FE146: 3510 | FF146: 442 | FG146: 2 | FH146: 4050 | FI146: 3545 | FJ146: 505 | FK146: 2 | FW146: -287 | FZ146: 251 | GA146: -251
A147: 481 | B147: Masku | C147: 9706 | E147: 1.564659126 | F147: 60.06650234 | G147: -4091.283742 | K147: 35.6190941 | L147: 248.4030497 | M147: 9.464053342 | N147: 9580.156604 | P147: 28211 | Q147: 72808 | R147: 3 | S147: -44594 | T147: 39478 | U147: 10203 | X147: -222 | Y147: 26 | Z147: 4891 | AA147: 3624 | AB147: 5829 | AD147: 7096 | AE147: 17 | AF147: 63 | AI147: 7160 | AJ147: 1725 | AK147: 9077 | AM147: -226 | AN147: -3044 | AO147: 10242 | AP147: 39478 | AT147: 20.75 | AV147: 207 | AW147: 9675 | AY147: 1.705465165 | AZ147: 62.02640922 | BA147: -4480.723514 | BE147: 26.99527213 | BF147: 339.121447 | BG147: 13.96365566 | BH147: 8864.392765 | BJ147: 32799 | BK147: 78227 | BL147: 1 | BM147: -45427 | BN147: 39164 | BO147: 10281 | BR147: -139 | BS147: -22 | BT147: 3857 | BU147: 6174 | BV147: 0 | BX147: -2317 | BY147: 1 | BZ147: 23 | CC147: -2326 | CD147: -1800 | CE147: 3078 | CG147: 421 | CH147: -2166 | CI147: -538 | CN147: 20.75 | CP147: 257 | EO147: -12480 | EP147: 52 | EQ147: 13593 | ER147: -5066 | ES147: 55 | ET147: 1395 | EX147: 0 | EY147: 0 | EZ147: -1500 | FA147: 3000 | FD147: 35961 | FE147: 15117 | FF147: 20844 | FG147: 4398 | FH147: 37464 | FI147: 13707 | FJ147: 23757 | FK147: 0 | FW147: -442 | FZ147: 1909 | GA147: -1909
A148: 483 | B148: Merijärvi | C148: 1134 | E148: 1.198910082 | F148: 42.49576913 | G148: -1222.222222 | K148: 60.63992282 | L148: 2577.601411 | M148: 90.87691652 | N148: 10352.73369 | P148: 4528 | Q148: 10958 | R148: 3 | S148: -6427 | T148: 2782 | U148: 3917 | X148: -33 | Y148: 167 | Z148: 406 | AA148: 542 | AB148: 0 | AD148: -136 | AE148: 35 | AF148: 5 | AI148: -131 | AJ148: 2937 | AK148: 392 | AM148: 3 | AN148: -333 | AO148: 133 | AP148: 2782 | AT148: 21 | AV148: 262 | AW148: 1131 | AY148: 1.149051491 | AZ148: 46.25 | BA148: -1059.239611 | BE148: 57.13710651 | BF148: 3041.556145 | BG148: 110.1693428 | BH148: 10076.92308 | BJ148: 4214 | BK148: 10765 | BL148: 0 | BM148: -6551 | BN148: 2484 | BO148: 4342 | BR148: -26 | BS148: 148 | BT148: 397 | BU148: 542 | BV148: 0 | BX148: -145 | BY148: -1 | BZ148: 0 | CC148: -148 | CD148: 2809 | CE148: 430 | CG148: -8 | CH148: -342 | CI148: 200 | CN148: 21.5 | CP148: 266 | EO148: -402 | EP148: 0 | EQ148: 143 | ER148: -252 | ES148: 0 | ET148: 22 | EX148: 504 | EY148: -75 | EZ148: 408 | FA148: -3 | FD148: 3230 | FE148: 2480 | FF148: 750 | FG148: 68 | FH148: 3301 | FI148: 2163 | FJ148: 1138 | FK148: 80 | FW148: -105 | FZ148: 373 | GA148: -373
A149: 484 | B149: Merikarvia | C149: 3185 | E149: 6.176781003 | F149: 22.65747793 | G149: -367.3469388 | K149: 73.64795744 | L149: 1406.279435 | M149: 49.60057646 | N149: 10348.50863 | P149: 10473 | Q149: 30824 | R149: -12 | S149: -20363 | T149: 10052 | U149: 12559 | X149: -35 | Y149: 83 | Z149: 2296 | AA149: 1497 | AB149: 0 | AD149: 799 | AE149: 56 | AF149: -1 | AI149: 798 | AJ149: 5911 | AK149: 2309 | AM149: 133 | AN149: -334 | AO149: 757 | AP149: 10052 | AT149: 19.5 | AV149: 111 | AW149: 3169 | AY149: 5.108024691 | AZ149: 21.56893228 | BA149: -239.5077311 | BE149: 75.13835086 | BF149: 1363.521616 | BG149: 48.59543984 | BH149: 10241.40107 | BJ149: 10576 | BK149: 30552 | BL149: -2 | BM149: -19978 | BN149: 9100 | BO149: 12486 | BR149: -22 | BS149: 41 | BT149: 1627 | BU149: 1515 | BV149: 0 | BX149: 112 | BY149: -10 | BZ149: 0 | CC149: 98 | CD149: 6012 | CE149: 1637 | CG149: 93 | CH149: -296 | CI149: 272 | CN149: 19.5 | CP149: 225 | EO149: -1750 | EP149: 89 | EQ149: 109 | ER149: -1578 | ES149: 59 | ET149: 154 | EX149: 279 | EY149: -122 | EZ149: 15 | FA149: -67 | FD149: 2927 | FE149: 2566 | FF149: 361 | FG149: 0 | FH149: 2584 | FI149: 2272 | FJ149: 312 | FK149: 0 | FW149: -1239 | FZ149: 322 | GA149: -322
A150: 489 | B150: Miehikkälä | C150: 2085 | E150: 2.301369863 | F150: 44.37168142 | G150: -4429.736211 | K150: 54.56555068 | L150: 1217.745803 | M150: 30.03321775 | N150: 14799.52038 | P150: 14493 | Q150: 26228 | R150: -2 | S150: -11737 | T150: 6041 | U150: 7716 | X150: -80 | Y150: -15 | Z150: 1925 | AA150: 1014 | AB150: 0 | AD150: 911 | AE150: 429 | AF150: -84 | AI150: 827 | AJ150: 3133 | AK150: 1916 | AM150: 170 | AN150: -785 | AO150: -1148 | AP150: 6041 | AT150: 20 | AV150: 52 | AW150: 2034 | AY150: 2.680738786 | AZ150: 43.00556718 | BA150: -4481.317601 | BE150: 54.71436199 | BF150: 899.2133727 | BG150: 23.23246911 | BH150: 14127.3353 | BJ150: 14552 | BK150: 26200 | BL150: 0 | BM150: -11648 | BN150: 5918 | BO150: 7731 | BR150: -57 | BS150: 19 | BT150: 1963 | BU150: 1304 | BV150: 0 | BX150: 659 | BY150: 0 | BZ150: 6 | CC150: 683 | CD150: 5252 | CE150: 1806 | CG150: -424 | CH150: -689 | CI150: 69 | CN150: 20 | CP150: 60 | EO150: -3719 | EP150: 600 | EQ150: 55 | ER150: -1737 | ES150: 155 | ET150: -155 | EX150: 0 | EY150: 2014 | EZ150: 90 | FA150: -56 | FD150: 8934 | FE150: 6180 | FF150: 2754 | FG150: 133 | FH150: 8280 | FI150: 5582 | FJ150: 2698 | FK150: 133 | FW150: -2915 | FZ150: 105 | GA150: -105
A151: 491 | B151: Mikkeli | C151: 54665 | E151: 1.37762084 | F151: 94.50724077 | G151: -8683.892802 | K151: 34.08610974 | L151: 499.4786426 | M151: 15.98712811 | N151: 11403.5306 | P151: 245585 | Q151: 528406 | R151: 386 | S151: -282435 | T151: 197227 | U151: 136132 | X151: -3690 | Y151: -1340 | Z151: 45894 | AA151: 41440 | AB151: 0 | AD151: 4454 | AE151: 10272 | AF151: -1775 | AI151: 2077 | AJ151: 57524 | AK151: 43326 | AM151: -1672 | AN151: -32152 | AO151: -5779 | AP151: 197227 | AT151: 20 | AV151: 74 | AW151: 54517 | AY151: 1.478639427 | AZ151: 98.44066674 | BA151: -9024.157602 | BE151: 31.98791166 | BF151: 713.6306106 | BG151: 21.58674938 | BH151: 12066.43799 | BJ151: 253655 | BK151: 533898 | BL151: 168 | BM151: -280075 | BN151: 196606 | BO151: 141338 | BR151: -4357 | BS151: -1982 | BT151: 51530 | BU151: 41542 | BV151: 14 | BX151: 10002 | BY151: -407 | BZ151: -88 | CC151: 7599 | CD151: 64536 | CE151: 48670 | CG151: -6254 | CH151: -33279 | CI151: -14860 | CN151: 20 | CP151: 66 | EO151: -55217 | EP151: 615 | EQ151: 5497 | ER151: -82947 | ES151: 1822 | ET151: 17595 | EX151: 22444 | EY151: 18330 | EZ151: 81170 | FA151: -16596 | FD151: 443077 | FE151: 312198 | FF151: 130879 | FG151: 25438 | FH151: 476923 | FI151: 354484 | FJ151: 122439 | FK151: 25081 | FW151: -26097 | FZ151: 23127 | GA151: -23127
A152: 494 | B152: Muhos | C152: 9063 | E152: 0.6308643838 | F152: 66.37299771 | G152: -5427.672956 | K152: 32.22755312 | L152: 316.5618449 | M152: 9.764235829 | N152: 11833.49884 | P152: 34859 | Q152: 83292 | R152: 9 | S152: -48424 | T152: 28775 | U152: 23766 | X152: -525 | Y152: 37 | Z152: 3629 | AA152: 4048 | AB152: 0 | AD152: -419 | AE152: 36 | AF152: 21 | AI152: -399 | AJ152: 113 | AK152: 3286 | AM152: 19 | AN152: -6076 | AO152: -11814 | AP152: 28775 | AT152: 20.5 | AV152: 248 | AW152: 8995 | AY152: 0.9594288002 | AZ152: 65.49127088 | BA152: -5392.773763 | BE152: 34.14655436 | BF152: 458.5881045 | BG152: 15.51758789 | BH152: 10786.77043 | BJ152: 34471 | BK152: 82654 | BL152: 49 | BM152: -48134 | BN152: 29671 | BO152: 25615 | BR152: -462 | BS152: 11 | BT152: 6701 | BU152: 4640 | BV152: 0 | BX152: 2061 | BY152: -3 | BZ152: -5 | CC152: 2046 | CD152: 3227 | CE152: 6651 | CG152: -214 | CH152: -7005 | CI152: 604 | CN152: 20.5 | CP152: 119 | EO152: -17287 | EP152: 1791 | EQ152: 396 | ER152: -6812 | ES152: 482 | ET152: 283 | EX152: 8523 | EY152: 8524 | EZ152: 9132 | FA152: -21 | FD152: 43414 | FE152: 29199 | FF152: 14215 | FG152: 2 | FH152: 45520 | FI152: 30333 | FJ152: 15187 | FK152: 80 | FW152: -13925 | FZ152: 3680 | GA152: -3680
A153: 495 | B153: Multia | C153: 1710 | E153: 1.913123845 | F153: 33.1042144 | G153: -1702.923977 | K153: 56.34941559 | L153: 782.4561404 | M153: 32.33167825 | N153: 8833.333333 | P153: 2539 | Q153: 13399 | R153: 0 | S153: -10860 | T153: 5357 | U153: 6507 | X153: -22 | Y153: 27 | Z153: 1009 | AA153: 678 | AB153: 0 | AD153: 331 | AE153: 370 | AF153: -13 | AI153: 318 | AJ153: 213 | AK153: 1007 | AM153: 498 | AN153: -515 | AO153: -123 | AP153: 5357 | AT153: 21 | AV153: 165 | AW153: 1663 | AY153: 2.901345291 | AZ153: 35.95490263 | BA153: -1453.998797 | BE153: 51.71102662 | BF153: 1367.408298 | BG153: 56.52093973 | BH153: 8830.426939 | BJ153: 2587 | BK153: 13361 | BL153: 1 | BM153: -10773 | BN153: 5588 | BO153: 6460 | BR153: -16 | BS153: 13 | BT153: 1272 | BU153: 593 | BV153: 0 | BX153: 679 | BY153: 0 | BZ153: -43 | CC153: 636 | CD153: 861 | CE153: 1251 | CG153: 416 | CH153: -424 | CI153: 489 | CN153: 21.75 | CP153: 112 | EO153: -1158 | EP153: 19 | EQ153: 9 | ER153: -805 | ES153: 2 | ET153: 41 | EX153: 9 | EY153: 0 | EZ153: 345 | FA153: 361 | FD153: 2717 | FE153: 1903 | FF153: 814 | FG153: 57 | FH153: 2999 | FI153: 1820 | FJ153: 1179 | FK153: 80 | FW153: -197 | FZ153: 562 | GA153: -562
A154: 498 | B154: Muonio | C154: 2358 | E154: 0.8934476424 | F154: 55.78254715 | G154: -4872.773537 | K154: 12.41286392 | L154: 739.6098388 | M154: 23.23126893 | N154: 11620.44105 | P154: 9203 | Q154: 24687 | R154: 0 | S154: -15484 | T154: 8404 | U154: 8532 | X154: -172 | Y154: 4 | Z154: 1284 | AA154: 1027 | AB154: 16 | AD154: 273 | AE154: 14 | AF154: -73 | AI154: 200 | AJ154: -816 | AK154: 1267 | AM154: 68 | AN154: -1458 | AO154: 317 | AP154: 8404 | AT154: 21 | AV154: 187 | AW154: 2350 | AY154: 0.9736164736 | AZ154: 57.48565467 | BA154: -5057.446809 | BE154: 15.21996343 | BF154: 889.3617021 | BG154: 26.44010814 | BH154: 12277.44681 | BJ154: 8628 | BK154: 25328 | BL154: 0 | BM154: -16700 | BN154: 8540 | BO154: 9670 | BR154: -132 | BS154: 1 | BT154: 1379 | BU154: 1032 | BV154: 0 | BX154: 347 | BY154: 0 | BZ154: 4 | CC154: 358 | CD154: -132 | CE154: 1360 | CG154: -107 | CH154: -1420 | CI154: -429 | CN154: 21 | CP154: 193 | EO154: -1021 | EP154: 68 | EQ154: 3 | ER154: -1953 | ES154: 85 | ET154: 79 | EX154: 1024 | EY154: 404 | EZ154: 1511 | FA154: 22 | FD154: 11207 | FE154: 7044 | FF154: 4163 | FG154: 72 | FH154: 11316 | FI154: 7122 | FJ154: 4194 | FK154: 35 | FW154: -650 | FZ154: 1194 | GA154: -1194
A155: 499 | B155: Mustasaari | C155: 19302 | E155: 1.197381968 | F155: 65.59076511 | G155: -4688.736918 | K155: 34.47262241 | L155: 313.5944462 | M155: 12.96312921 | N155: 8829.810382 | P155: 56963 | Q155: 151971 | R155: 186 | S155: -94822 | T155: 75158 | U155: 27621 | X155: -691 | Y155: 162 | Z155: 7428 | AA155: 9007 | AB155: 0 | AD155: -1579 | AE155: 1026 | AF155: -21 | AI155: -1587 | AJ155: 5255 | AK155: 6695 | AM155: 1417 | AN155: -6086 | AO155: -3593 | AP155: 75158 | AT155: 20.75 | AV155: 254 | AW155: 19380 | AY155: 1.915331116 | AZ155: 64.10585375 | BA155: -4676.522188 | BE155: 34.8863921 | BF155: 301.0319917 | BG155: 12.54342819 | BH155: 8759.700722 | BJ155: 56883 | BK155: 150521 | BL155: 66 | BM155: -93572 | BN155: 75915 | BO155: 30106 | BR155: -632 | BS155: 207 | BT155: 12024 | BU155: 9033 | BV155: 0 | BX155: 2991 | BY155: 17 | BZ155: 21 | CC155: 3037 | CD155: 8892 | CE155: 11493 | CG155: 254 | CH155: -5970 | CI155: -176 | CN155: 20.75 | CP155: 178 | EO155: -11576 | EP155: 634 | EQ155: 654 | ER155: -12552 | ES155: 197 | ET155: 686 | EX155: 0 | EY155: 10364 | EZ155: 11646 | FA155: -5103 | FD155: 76858 | FE155: 42095 | FF155: 34763 | FG155: 56 | FH155: 77432 | FI155: 45768 | FJ155: 31664 | FK155: 44 | FW155: -8345 | FZ155: 1610 | GA155: -1610
A156: 500 | B156: Muurame | C156: 9791 | E156: 1.303808487 | F156: 89.12530553 | G156: -5782.759677 | K156: 26.89190587 | L156: 147.686651 | M156: 6.476427712 | N156: 8323.358186 | P156: 22327 | Q156: 64986 | R156: 17 | S156: -42642 | T156: 36837 | U156: 11615 | X156: -557 | Y156: 173 | Z156: 5426 | AA156: 5850 | AB156: 0 | AD156: -424 | AE156: 5 | AF156: -52 | AI156: -475 | AJ156: 2517 | AK156: 4357 | AM156: 759 | AN156: -4030 | AO156: -4022 | AP156: 36837 | AT156: 19.5 | AV156: 179 | AW156: 9941 | AY156: 1.676117251 | AZ156: 84.86777603 | BA156: -5683.43225 | BE156: 27.7717305 | BF156: 231.0632733 | BG156: 10.75816096 | BH156: 7839.452771 | BJ156: 24022 | BK156: 67618 | BL156: 18 | BM156: -43578 | BN156: 37688 | BO156: 12747 | BR156: -454 | BS156: 113 | BT156: 6516 | BU156: 5967 | BV156: 0 | BX156: 549 | BY156: 2 | BZ156: 9 | CC156: 528 | CD156: 3585 | CE156: 5638 | CG156: 1318 | CH156: -3702 | CI156: 590 | CN156: 19.5 | CP156: 162 | EO156: -11891 | EP156: 898 | EQ156: 2614 | ER156: -6132 | ES156: 80 | ET156: 1004 | EX156: 0 | EY156: 6090 | EZ156: 1881 | FA156: 89 | FD156: 50886 | FE156: 27547 | FF156: 23339 | FG156: 94 | FH156: 49454 | FI156: 28583 | FJ156: 20871 | FK156: 0 | FW156: -7389 | FZ156: 3083 | GA156: -3083
A157: 503 | B157: Mynämäki | C157: 7859 | E157: 0.4883806713 | F157: 45.6899995 | G157: -3659.371421 | K157: 40.29639756 | L157: 466.8532892 | M157: 15.64212629 | N157: 10893.75239 | P157: 35992 | Q157: 78918 | R157: 92 | S157: -42834 | T157: 25815 | U157: 18309 | X157: -197 | Y157: 21 | Z157: 1114 | AA157: 3237 | AB157: 0 | AD157: -2123 | AE157: 546 | AF157: 299 | AI157: -1808 | AJ157: 2160 | AK157: 722 | AM157: -47 | AN157: -2501 | AO157: -1836 | AP157: 25815 | AT157: 20.5 | AV157: 292 | AW157: 7842 | AY157: 1.709210526 | AZ157: 43.37174208 | BA157: -3413.414945 | BE157: 40.51469665 | BF157: 519.000255 | BG157: 18.00470252 | BH157: 10521.42311 | BJ157: 36048 | BK157: 78080 | BL157: -26 | BM157: -42058 | BN157: 27071 | BO157: 18720 | BR157: -117 | BS157: 142 | BT157: 3758 | BU157: 3386 | BV157: 0 | BX157: 372 | BY157: 17 | BZ157: 0 | CC157: 389 | CD157: 2484 | CE157: 3706 | CG157: -460 | CH157: -2141 | CI157: 1815 | CN157: 21 | CP157: 238 | EO157: -3939 | EP157: 149 | EQ157: 1232 | ER157: -2133 | ES157: 175 | ET157: 67 | EX157: 187 | EY157: 3740 | EZ157: 2081 | FA157: -309 | FD157: 23538 | FE157: 13562 | FF157: 9976 | FG157: 0 | FH157: 23169 | FI157: 13473 | FJ157: 9696 | FK157: 0 | FW157: -2113 | FZ157: 1263 | GA157: -1263
A158: 504 | B158: Myrskylä | C158: 1969 | E158: 9.270491803 | F158: 38.34203409 | G158: -2158.456069 | K158: 58.2063385 | L158: 553.5804977 | M158: 23.35622872 | N158: 8651.091925 | P158: 4796 | Q158: 14981 | R158: -63 | S158: -10248 | T158: 6349 | U158: 4754 | X158: -40 | Y158: 274 | Z158: 1089 | AA158: 626 | AB158: 0 | AD158: 463 | AE158: 0 | AF158: 0 | AI158: 463 | AJ158: 1975 | AK158: 1161 | AM158: 612 | AN158: -80 | AO158: 43 | AP158: 6349 | AT158: 21.5 | AV158: 181 | AW158: 1986 | AY158: 6.416666667 | AZ158: 39.58190328 | BA158: -1807.15005 | BE158: 54.902219 | BF158: 1140.986908 | BG158: 51.22251811 | BH158: 8130.41289 | BJ158: 5025 | BK158: 15851 | BL158: 7 | BM158: -10819 | BN158: 6374 | BO158: 4626 | BR158: -34 | BS158: 279 | BT158: 426 | BU158: 688 | BV158: 0 | BX158: -262 | BY158: 0 | BZ158: 0 | CC158: -262 | CD158: 1680 | CE158: 425 | CG158: 268 | CH158: -36 | CI158: 308 | CN158: 21.5 | CP158: 283 | EO158: -1929 | EP158: 807 | EQ158: 4 | ER158: -220 | ES158: 90 | ET158: 13 | EX158: 5 | EY158: 24 | EZ158: 1118 | FA158: -1198 | FD158: 3640 | FE158: 1296 | FF158: 2344 | FG158: 2 | FH158: 3525 | FI158: 2379 | FJ158: 1146 | FK158: 2 | FW158: -386 | FZ158: 33 | GA158: -33
A159: 505 | B159: Mäntsälä | C159: 20685 | E159: 1.638215161 | F159: 97.0293434 | G159: -8028.861494 | K159: 27.21662376 | L159: 357.6021271 | M159: 12.05831517 | N159: 10824.46217 | P159: 87738 | Q159: 175089 | R159: -5 | S159: -87356 | T159: 78707 | U159: 26307 | X159: -1577 | Y159: 62 | Z159: 16143 | AA159: 13785 | AB159: 0 | AD159: 2358 | AE159: 359 | AF159: 469 | AI159: 2781 | AJ159: 16550 | AK159: 15878 | AM159: -420 | AN159: -8591 | AO159: -19988 | AP159: 78707 | AT159: 20.5 | AV159: 92 | AW159: 20853 | AY159: 1.711057728 | AZ159: 101.9362713 | BA159: -8445.739222 | BE159: 27.88643378 | BF159: 505.3469525 | BG159: 17.24241962 | BH159: 10697.54951 | BJ159: 87192 | BK159: 176725 | BL159: -1 | BM159: -89534 | BN159: 79624 | BO159: 32278 | BR159: -1448 | BS159: 405 | BT159: 21325 | BU159: 12399 | BV159: 0 | BX159: 8926 | BY159: -45 | BZ159: -5 | CC159: 9010 | CD159: 25719 | CE159: 20208 | CG159: -2739 | CH159: -11853 | CI159: -10538 | CN159: 20.5 | CP159: 46 | EO159: -36789 | EP159: 12 | EQ159: 911 | ER159: -32848 | ES159: 13 | ET159: 2089 | EX159: 13834 | EY159: 10939 | EZ159: 28768 | FA159: -2093 | FD159: 132314 | FE159: 89810 | FF159: 42504 | FG159: 15 | FH159: 147157 | FI159: 109141 | FJ159: 38016 | FK159: 12 | FW159: -15663 | FZ159: 4931 | GA159: -4931
A160: 508 | B160: Mänttä-Vilppula | C160: 10604 | E160: -2.633279483 | F160: 53.07384532 | G160: -5022.255753 | K160: 34.70062172 | L160: 463.3157299 | M160: 13.66521371 | N160: 12375.23576 | P160: 58055 | Q160: 120784 | R160: -51 | S160: -62780 | T160: 41718 | U160: 28942 | X160: -808 | Y160: 154 | Z160: 7226 | AA160: 5196 | AB160: 0 | AD160: 2030 | AE160: 708 | AF160: -155 | AI160: 1847 | AJ160: -958 | AK160: 7002 | AM160: 898 | AN160: 4019 | AO160: -4143 | AP160: 41718 | AT160: 22 | AV160: 120 | AW160: 10448 | AY160: 1.599830795 | AZ160: 60.81486195 | BA160: -5536.753446 | BE160: 31.48500793 | BF160: 918.931853 | BG160: 25.15714399 | BH160: 13332.59954 | BJ160: 57123 | BK160: 124489 | BL160: -75 | BM160: -67441 | BN160: 40518 | BO160: 32786 | BR160: -689 | BS160: 1681 | BT160: 6855 | BU160: 6441 | BV160: 509 | BX160: 923 | BY160: -152 | BZ160: 16 | CC160: 703 | CD160: 898 | CE160: 7499 | CG160: -1729 | CH160: -4019 | CI160: -280 | CN160: 22 | CP160: 161 | EO160: -13323 | EP160: 1937 | EQ160: 241 | ER160: -9899 | ES160: 1397 | ET160: 723 | EX160: 9373 | EY160: -923 | EZ160: 19726 | FA160: -6858 | FD160: 54001 | FE160: 42298 | FF160: 11703 | FG160: 0 | FH160: 63676 | FI160: 58831 | FJ160: 4845 | FK160: 47 | FW160: -7216 | FZ160: 2013 | GA160: -2013
A161: 507 | B161: Mäntyharju | C161: 6159 | E161: 1.912070344 | F161: 51.15439767 | G161: -4044.650106 | K161: 40.77015338 | L161: 382.8543595 | M161: 13.35863289 | N161: 10460.78909 | P161: 22698 | Q161: 57342 | R161: 0 | S161: -34644 | T161: 21219 | U161: 18150 | X161: -297 | Y161: 59 | Z161: 4487 | AA161: 2968 | AB161: 35 | AD161: 1554 | AE161: 32 | AF161: -34 | AI161: 1493 | AJ161: 5975 | AK161: 3308 | AM161: 670 | AN161: -2205 | AO161: -447 | AP161: 21219 | AT161: 19.75 | AV161: 109 | AW161: 6097 | AY161: 1.610864366 | AZ161: 58.71096388 | BA161: -4993.767427 | BE161: 38.26292622 | BF161: 369.5259964 | BG161: 11.84252592 | BH161: 11389.20781 | BJ161: 23380 | BK161: 57656 | BL161: 0 | BM161: -34276 | BN161: 20164 | BO161: 18642 | BR161: -411 | BS161: 184 | BT161: 4303 | BU161: 3311 | BV161: 67 | BX161: 1059 | BY161: -57 | BZ161: 138 | CC161: 1067 | CD161: 6858 | CE161: 4273 | CG161: 802 | CH161: -2515 | CI161: -2525 | CN161: 19.75 | CP161: 143 | EO161: -4399 | EP161: 252 | EQ161: 392 | ER161: -7285 | ES161: 34 | ET161: 453 | EX161: 4050 | EY161: -1855 | EZ161: 5561 | FA161: 532 | FD161: 22911 | FE161: 19463 | FF161: 3448 | FG161: 1899 | FH161: 28032 | FI161: 24240 | FJ161: 3792 | FK161: 4844 | FW161: -3371 | FZ161: 328 | GA161: -328
A162: 529 | B162: Naantali | C162: 18961 | E162: 3.214312268 | F162: 70.11707948 | G162: -5100.944043 | K162: 47.88638262 | L162: 517.6942144 | M162: 20.99156316 | N162: 9001.634935 | P162: 73341 | Q162: 153318 | R162: 20 | S162: -79957 | T162: 80410 | U162: 16219 | X162: -1108 | Y162: 444 | Z162: 16008 | AA162: 13894 | AB162: 0 | AD162: 2114 | AE162: 75 | AF162: -73 | AI162: 2045 | AJ162: 53241 | AK162: 14719 | AM162: 3217 | AN162: -4095 | AO162: 4912 | AP162: 80410 | AT162: 18.5 | AV162: 73 | AW162: 19068 | AY162: 2.987464976 | AZ162: 62.06318584 | BA162: -4674.428362 | BE162: 49.60917307 | BF162: 476.5051395 | BG162: 18.60089067 | BH162: 9350.325152 | BJ162: 77348 | BK162: 158651 | BL162: 16 | BM162: -81287 | BN162: 83015 | BO162: 17430 | BR162: -924 | BS162: 1005 | BT162: 19239 | BU162: 13015 | BV162: 336 | BX162: 6560 | BY162: -11 | BZ162: 10 | CC162: 5933 | CD162: 57043 | CE162: 17589 | CG162: 1960 | CH162: -5762 | CI162: 6685 | CN162: 18.5 | CP162: 51 | EO162: -11769 | EP162: 20 | EQ162: 1942 | ER162: -12800 | ES162: 72 | ET162: 1824 | EX162: 4640 | EY162: -7854 | EZ162: 1296 | FA162: -2895 | FD162: 81240 | FE162: 45057 | FF162: 36183 | FG162: 1055 | FH162: 74050 | FI162: 38161 | FJ162: 35889 | FK162: 1620 | FW162: -5764 | FZ162: 735 | GA162: -735
A163: 531 | B163: Nakkila | C163: 5651 | E163: 1.510080645 | F163: 36.79360144 | G163: -1814.546098 | K163: 41.57850497 | L163: 954.167404 | M163: 36.23722634 | N163: 9610.865334 | P163: 21160 | Q163: 51173 | R163: 0 | S163: -30013 | T163: 19068 | U163: 13159 | X163: -128 | Y163: 31 | Z163: 2117 | AA163: 2593 | AB163: 0 | AD163: -476 | AE163: 142 | AF163: 189 | AI163: -260 | AJ163: 1114 | AK163: 1971 | AM163: 268 | AN163: -1358 | AO163: 717 | AP163: 19068 | AT163: 20.75 | AV163: 256 | AW163: 5548 | AY163: 2.58490566 | AZ163: 32.72642824 | BA163: -1400.144196 | BE163: 46.43046319 | BF163: 1124.188897 | BG163: 42.90273642 | BH163: 9564.167267 | BJ163: 20963 | BK163: 50184 | BL163: 13 | BM163: -29208 | BN163: 19552 | BO163: 13310 | BR163: -104 | BS163: 40 | BT163: 3590 | BU163: 2192 | BV163: 0 | BX163: 1398 | BY163: 0 | BZ163: 0 | CC163: 1372 | CD163: 2684 | CE163: 3603 | CG163: 432 | CH163: -1322 | CI163: 2317 | CN163: 20.75 | CP163: 164 | EO163: -1634 | EP163: 42 | EQ163: 338 | ER163: -1438 | ES163: 15 | ET163: 137 | EX163: 461 | EY163: -57 | EZ163: 81 | FA163: -295 | FD163: 11616 | FE163: 9077 | FF163: 2539 | FG163: 0 | FH163: 9485 | FI163: 7846 | FJ163: 1639 | FK163: 0 | FW163: -783 | FZ163: 402 | GA163: -402
A164: 535 | B164: Nivala | C164: 10876 | E164: 0.4670869129 | F164: 81.51819693 | G164: -7489.977933 | K164: 29.72901414 | L164: 2248.436925 | M164: 57.194825 | N164: 14348.84149 | P164: 69815 | Q164: 132036 | R164: 48 | S164: -62173 | T164: 31573 | U164: 37619 | X164: -940 | Y164: 1183 | Z164: 7262 | AA164: 6099 | AB164: -468 | AD164: 695 | AE164: 934 | AF164: 153 | AI164: 843 | AJ164: 8580 | AK164: 6062 | AM164: -77 | AN164: -16815 | AO164: 1786 | AP164: 31573 | AT164: 21.5 | AV164: 123 | AW164: 10889 | AY164: 1.492601726 | AZ164: 85.45418563 | BA164: -7225.640555 | BE164: 29.59339452 | BF164: 2688.768482 | BG164: 75.78895484 | BH164: 12949.12297 | BJ164: 65967 | BK164: 128643 | BL164: 100 | BM164: -62576 | BN164: 30159 | BO164: 40305 | BR164: -724 | BS164: 1677 | BT164: 8841 | BU164: 6074 | BV164: -317 | BX164: 2450 | BY164: 0 | BZ164: -144 | CC164: 2437 | CD164: 10654 | CE164: 7065 | CG164: -1227 | CH164: -5645 | CI164: 2678 | CN164: 21.5 | CP164: 99 | EO164: -6159 | EP164: 190 | EQ164: 1693 | ER164: -6001 | ES164: 22 | ET164: 1592 | EX164: 14693 | EY164: -379 | EZ164: 6259 | FA164: 1605 | FD164: 93330 | FE164: 59988 | FF164: 33342 | FG164: 2 | FH164: 95573 | FI164: 60997 | FJ164: 34576 | FK164: 27 | FW164: -2982 | FZ164: 6414 | GA164: -6414
A165: 536 | B165: Nokia | C165: 33162 | E165: 1.071872282 | F165: 58.56451632 | G165: -3242.657258 | K165: 39.63006305 | L165: 793.2573427 | M165: 35.38202173 | N165: 8183.22176 | P165: 82333 | Q165: 230862 | R165: 22 | S165: -148507 | T165: 124420 | U165: 40634 | X165: -1600 | Y165: 582 | Z165: 15529 | AA165: 15851 | AB165: -5200 | AD165: -5522 | AE165: 682 | AF165: -271 | AI165: -5861 | AJ165: 16596 | AK165: -911 | AM165: -231 | AN165: -14372 | AO165: -22415 | AP165: 124420 | AT165: 19.75 | AV165: 223 | AW165: 33210 | AY165: 1.57012239 | AZ165: 66.84674205 | BA165: -3524.390244 | BE165: 35.86336026 | BF165: 1167.208672 | BG165: 51.81308319 | BH165: 8222.463114 | BJ165: 88473 | BK165: 234781 | BL165: 44 | BM165: -146264 | BN165: 126432 | BO165: 41284 | BR165: -1550 | BS165: 274 | BT165: 20176 | BU165: 19338 | BV165: -2878 | BX165: -2040 | BY165: -141 | BZ165: -346 | CC165: -2527 | CD165: 14102 | CE165: 9195 | CG165: -4391 | CH165: -12257 | CI165: -12205 | CN165: 19.75 | CP165: 185 | EO165: -24065 | EP165: 701 | EQ165: 1860 | ER165: -24020 | ES165: 499 | ET165: 2121 | EX165: 36198 | EY165: -25 | EZ165: 35799 | FA165: -294 | FD165: 104735 | FE165: 92668 | FF165: 12067 | FG165: 10 | FH165: 127983 | FI165: 115624 | FJ165: 12359 | FK165: 80 | FW165: -11716 | FZ165: 8256 | GA165: -8256
A166: 538 | B166: Nousiainen | C166: 4859 | E166: 0.8404040404 | F166: 45.70382299 | G166: -3312.615765 | K166: 39.30123464 | L166: 250.2572546 | M166: 9.1949451 | N166: 9934.142828 | P166: 20092 | Q166: 43970 | R166: 2 | S166: -23876 | T166: 17122 | U166: 8117 | X166: -137 | Y166: -117 | Z166: 1109 | AA166: 1572 | AB166: 262 | AD166: -201 | AE166: 14 | AF166: 0 | AI166: -201 | AJ166: 133 | AK166: 1234 | AM166: -1160 | AN166: -1346 | AO166: -246 | AP166: 17122 | AT166: 21 | AV166: 283 | AW166: 4815 | AY166: 0.8917378917 | AZ166: 43.37237244 | BA166: -3292.627207 | BE166: 39.50726955 | BF166: 250.674974 | BG166: 9.273670694 | BH166: 9866.251298 | BJ166: 19982 | BK166: 44826 | BL166: 1 | BM166: -24843 | BN166: 17484 | BO166: 8727 | BR166: -93 | BS166: -117 | BT166: 1158 | BU166: 1525 | BV166: 0 | BX166: -367 | BY166: -1 | BZ166: 0 | CC166: -368 | CD166: -235 | CE166: 945 | CG166: 446 | CH166: -1310 | CI166: 225 | CN166: 21 | CP166: 282 | EO166: -2668 | EP166: 773 | EQ166: 415 | ER166: -1128 | ES166: 137 | ET166: 271 | EX166: 1772 | EY166: 264 | EZ166: 40 | FA166: 95 | FD166: 13133 | FE166: 10229 | FF166: 2904 | FG166: 0 | FH166: 11867 | FI166: 8919 | FJ166: 2948 | FK166: 0 | FW166: -1619 | FZ166: 775 | GA166: -775
A167: 541 | B167: Nurmes | C167: 7996 | E167: 2.048275862 | F167: 41.39287059 | G167: -2606.678339 | K167: 54.09535083 | L167: 1279.514757 | M167: 40.10821 | N167: 11644.07204 | P167: 34985 | Q167: 82647 | R167: 12 | S167: -47650 | T167: 25272 | U167: 30017 | X167: -363 | Y167: 312 | Z167: 7588 | AA167: 6231 | AB167: 0 | AD167: 1357 | AE167: 278 | AF167: -134 | AI167: 1230 | AJ167: 18483 | AK167: 7467 | AM167: -281 | AN167: -3484 | AO167: 1316 | AP167: 25272 | AT167: 20.5 | AV167: 48 | AW167: 7885 | AY167: 2.38269348 | AZ167: 39.7975623 | BA167: -2470.133164 | BE167: 55.16957663 | BF167: 1267.08941 | BG167: 39.53250005 | BH167: 11698.922 | BJ167: 34297 | BK167: 82587 | BL167: 10 | BM167: -48280 | BN167: 24215 | BO167: 31491 | BR167: -287 | BS167: 327 | BT167: 7466 | BU167: 6128 | BV167: 0 | BX167: 1338 | BY167: 7 | BZ167: 87 | CC167: 1333 | CD167: 19726 | CE167: 7297 | CG167: -57 | CH167: -2928 | CI167: 1823 | CN167: 20.5 | CP167: 65 | EO167: -6409 | EP167: 191 | EQ167: 67 | ER167: -5892 | ES167: 315 | ET167: 103 | EX167: 4559 | EY167: 62 | EZ167: 822 | FA167: -40 | FD167: 24393 | FE167: 21275 | FF167: 3118 | FG167: 70 | FH167: 22307 | FI167: 19161 | FJ167: 3146 | FK167: 522 | FW167: -2664 | FZ167: 1157 | GA167: -1157
A168: 543 | B168: Nurmijärvi | C168: 41897 | E168: 2.64351145 | F168: 83.11340507 | G168: -5282.884216 | K168: 39.14294482 | L168: 809.6283743 | M168: 34.75463515 | N168: 8502.876101 | P168: 122302 | Q168: 301632 | R168: -9 | S168: -179339 | T168: 177418 | U168: 28872 | X168: -1716 | Y168: 673 | Z168: 25908 | AA168: 24370 | AB168: 0 | AD168: 1538 | AE168: 355 | AF168: -842 | AI168: 715 | AJ168: 80466 | AK168: 23130 | AM168: 1463 | AN168: -8684 | AO168: -15145 | AP168: 177418 | AT168: 19.5 | AV168: 148 | AW168: 42010 | AY168: 3.533875339 | AZ168: 88.52574002 | BA168: -5781.956677 | BE168: 37.68383396 | BF168: 833.6348488 | BG168: 34.42038781 | BH168: 8840.014282 | BJ168: 124498 | BK168: 305434 | BL168: -2 | BM168: -180938 | BN168: 181341 | BO168: 33477 | BR168: -1945 | BS168: 1227 | BT168: 33162 | BU168: 25792 | BV168: 0 | BX168: 7370 | BY168: 5 | BZ168: -6 | CC168: 6229 | CD168: 86997 | CE168: 30070 | CG168: -4613 | CH168: -7917 | CI168: -20250 | CN168: 19.5 | CP168: 105 | EO168: -43514 | EP168: 370 | EQ168: 4869 | ER168: -53943 | ES168: 517 | ET168: 3106 | EX168: 27724 | EY168: -4579 | EZ168: 23860 | FA168: 8570 | FD168: 183029 | FE168: 169819 | FF168: 13210 | FG168: 1795 | FH168: 207442 | FI168: 185662 | FJ168: 21780 | FK168: 3495 | FW168: -16754 | FZ168: 9170 | GA168: -9170
A169: 545 | B169: Närpiö | C169: 9387 | E169: 7.75 | F169: 71.318956 | G169: -3983.913924 | K169: 42.60194036 | L169: 1900.394162 | M169: 72.396929 | N169: 9581.122829 | P169: 31551 | Q169: 80501 | R169: 0 | S169: -48950 | T169: 30924 | U169: 23540 | X169: -404 | Y169: 457 | Z169: 5567 | AA169: 4558 | AB169: 0 | AD169: 1009 | AE169: 801 | AF169: -283 | AI169: 726 | AJ169: 6235 | AK169: 6150 | AM169: 482 | AN169: -32 | AO169: -1727 | AP169: 30924 | AT169: 21 | AV169: 164 | AW169: 9439 | AY169: 14.17150761 | AZ169: 72.17650052 | BA169: -4059.222375 | BE169: 42.16257007 | BF169: 2211.674966 | BG169: 83.14862505 | BH169: 9708.655578 | BJ169: 31773 | BK169: 81189 | BL169: 0 | BM169: -49416 | BN169: 30875 | BO169: 27754 | BR169: -333 | BS169: 643 | BT169: 9523 | BU169: 4729 | BV169: 0 | BX169: 4794 | BY169: 0 | BZ169: -3145 | CC169: 1269 | CD169: 13739 | CE169: 6980 | CG169: 52 | CH169: 0 | CI169: -1463 | CN169: 21 | CP169: 52 | EO169: -8299 | EP169: 105 | EQ169: 317 | ER169: -9504 | ES169: 568 | ET169: 493 | EX169: 0 | EY169: 731 | EZ169: 387 | FA169: 2692 | FD169: 47721 | FE169: 40384 | FF169: 7337 | FG169: 628 | FH169: 50826 | FI169: 40770 | FJ169: 10056 | FK169: 0 | FW169: -3390 | FZ169: 1743 | GA169: -1743
A170: 560 | B170: Orimattila | C170: 16326 | E170: 1.200761421 | F170: 55.94859397 | G170: -3673.83315 | K170: 42.00149281 | L170: 734.9626363 | M170: 28.87798365 | N170: 9289.476908 | P170: 56180 | Q170: 133427 | R170: 0 | S170: -77247 | T170: 53705 | U170: 31577 | X170: -909 | Y170: 1415 | Z170: 8541 | AA170: 7802 | AB170: 867 | AD170: 1606 | AE170: 517 | AF170: -78 | AI170: 1461 | AJ170: 11831 | AK170: 9242 | AM170: -1481 | AN170: -6959 | AO170: -29 | AP170: 53705 | AT170: 20.5 | AV170: 199 | AW170: 16279 | AY170: 1.472553403 | AZ170: 51.12000647 | BA170: -3387.124516 | BE170: 43.41946001 | BF170: 892.3766816 | BG170: 34.51739425 | BH170: 9436.329013 | BJ170: 59377 | BK170: 137982 | BL170: 2 | BM170: -78603 | BN170: 55641 | BO170: 33374 | BR170: -744 | BS170: 1429 | BT170: 11097 | BU170: 7841 | BV170: -10 | BX170: 3246 | BY170: -100 | BZ170: -6 | CC170: 3027 | CD170: 14755 | CE170: 10831 | CG170: 987 | CH170: -7292 | CI170: 4083 | CN170: 20.75 | CP170: 149 | EO170: -10236 | EP170: 157 | EQ170: 808 | ER170: -7500 | ES170: 98 | ET170: 654 | EX170: 5060 | EY170: 2276 | EZ170: 7022 | FA170: -2943 | FD170: 56107 | FE170: 42092 | FF170: 14015 | FG170: 100 | FH170: 53017 | FI170: 41686 | FJ170: 11331 | FK170: 97 | FW170: -6261 | FZ170: 3606 | GA170: -3606
A171: 561 | B171: Oripää | C171: 1377 | E171: 1.748071979 | F171: 48.49422106 | G171: -3494.553377 | K171: 46.02660913 | L171: 224.4008715 | M171: 8.836179881 | N171: 9269.426289 | P171: 3987 | Q171: 11612 | R171: 0 | S171: -7625 | T171: 4201 | U171: 4098 | X171: -60 | Y171: 1 | Z171: 615 | AA171: 540 | AB171: 122 | AD171: 197 | AE171: 0 | AF171: 15 | AI171: 212 | AJ171: 1283 | AK171: 756 | AM171: -69 | AN171: -324 | AO171: 11 | AP171: 4201 | AT171: 19.5 | AV171: 230 | AW171: 1363 | AY171: 1.973958333 | AZ171: 44.63910867 | BA171: -3280.264123 | BE171: 45.65016624 | BF171: 151.8708731 | BG171: 6.065751445 | BH171: 9138.66471 | BJ171: 4458 | BK171: 11634 | BL171: 0 | BM171: -7176 | BN171: 4068 | BO171: 3860 | BR171: -42 | BS171: 2 | BT171: 712 | BU171: 589 | BV171: 0 | BX171: 123 | BY171: 0 | BZ171: 15 | CC171: 138 | CD171: 1422 | CE171: 706 | CG171: -173 | CH171: -338 | CI171: 312 | CN171: 19.5 | CP171: 221 | EO171: -753 | EP171: 4 | EQ171: 4 | ER171: -437 | ES171: 41 | ET171: 2 | EX171: 0 | EY171: 152 | EZ171: 0 | FA171: 349 | FD171: 4392 | FE171: 3504 | FF171: 888 | FG171: 5 | FH171: 4191 | FI171: 2953 | FJ171: 1238 | FK171: 1 | FW171: -662 | FZ171: 52 | GA171: -52
A172: 562 | B172: Orivesi | C172: 9408 | E172: 1.012212759 | F172: 56.38753056 | G172: -3899.978741 | K172: 31.90659859 | L172: 525.8290816 | M172: 19.656597 | N172: 9764.030612 | P172: 27807 | Q172: 78936 | R172: 84 | S172: -51045 | T172: 33402 | U172: 23863 | X172: -577 | Y172: 14 | Z172: 5657 | AA172: 4361 | AB172: -605 | AD172: 691 | AE172: 222 | AF172: 129 | AI172: 785 | AJ172: 2560 | AK172: 5596 | AM172: -707 | AN172: -5581 | AO172: -421 | AP172: 33402 | AT172: 22.25 | AV172: 156 | AW172: 9312 | AY172: 1.570826953 | AZ172: 54.4106113 | BA172: -3618.234536 | BE172: 35.13452287 | BF172: 843.75 | BG172: 31.54033544 | BH172: 9764.282646 | BJ172: 27769 | BK172: 78760 | BL172: 194 | BM172: -50797 | BN172: 33802 | BO172: 25129 | BR172: -499 | BS172: 19 | BT172: 7654 | BU172: 4560 | BV172: 55 | BX172: 3149 | BY172: -60 | BZ172: 192 | CC172: 3242 | CD172: 6009 | CE172: 7553 | CG172: 1361 | CH172: -4672 | CI172: 2738 | CN172: 22.25 | CP172: 96 | EO172: -6379 | EP172: 58 | EQ172: 304 | ER172: -6810 | ES172: 1663 | ET172: 332 | EX172: 3907 | EY172: 1918 | EZ172: 6959 | FA172: -2129 | FD172: 37963 | FE172: 31258 | FF172: 6705 | FG172: 15 | FH172: 37871 | FI172: 32709 | FJ172: 5162 | FK172: 42 | FW172: -2030 | FZ172: 1919 | GA172: -1919
A173: 563 | B173: Oulainen | C173: 7610 | E173: 2.052868852 | F173: 64.82146085 | G173: -3914.191853 | K173: 40.52362442 | L173: 2176.215506 | M173: 72.00863661 | N173: 11030.88042 | P173: 29224 | Q173: 73003 | R173: 17 | S173: -43762 | T173: 25293 | U173: 22945 | X173: -358 | Y173: 520 | Z173: 4638 | AA173: 3513 | AB173: 0 | AD173: 1125 | AE173: 220 | AF173: -56 | AI173: 1068 | AJ173: 5375 | AK173: 4515 | AM173: 321 | AN173: -2069 | AO173: -2114 | AP173: 25293 | AT173: 21.75 | AV173: 152 | AW173: 7514 | AY173: 1.984765625 | AZ173: 66.74126789 | BA173: -4140.005323 | BE173: 39.69338609 | BF173: 2402.448762 | BG173: 76.88065901 | BH173: 11405.90897 | BJ173: 30220 | BK173: 75485 | BL173: 1 | BM173: -45264 | BN173: 24921 | BO173: 24393 | BR173: -219 | BS173: 1003 | BT173: 4834 | BU173: 3617 | BV173: 0 | BX173: 1217 | BY173: -3 | BZ173: -8 | CC173: 1198 | CD173: 6573 | CE173: 5032 | CG173: -54 | CH173: -2313 | CI173: -1364 | CN173: 21.75 | CP173: 167 | EO173: -8348 | EP173: 1642 | EQ173: 77 | ER173: -7532 | ES173: 634 | ET173: 502 | EX173: 587 | EY173: 3673 | EZ173: 2074 | FA173: 3480 | FD173: 39848 | FE173: 16752 | FF173: 23096 | FG173: 162 | FH173: 43093 | FI173: 16744 | FJ173: 26349 | FK173: 148 | FW173: -5758 | FZ173: 2649 | GA173: -2649
A174: 564 | B174: Oulu | C174: 198525 | E174: 1.39333752 | F174: 68.74895219 | G174: -4699.574361 | K174: 49.92087908 | L174: 1009.54036 | M174: 36.13159721 | N174: 10198.33774 | P174: 776479 | Q174: 1694369 | R174: -2116 | S174: -920006 | T174: 734160 | U174: 362319 | X174: -11227 | Y174: 1215 | Z174: 166461 | AA174: 149293 | AB174: 0 | AD174: 17168 | AE174: 16337 | AF174: -5614 | AI174: 8918 | AJ174: 639776 | AK174: 184842 | AM174: -19508 | AN174: -115724 | AO174: 5253 | AP174: 734160 | AT174: 20 | AV174: 75 | AW174: 200526 | AY174: 2.358988118 | AZ174: 65.86010168 | BA174: -4525.717363 | BE174: 49.87741838 | BF174: 1054.267277 | BG174: 37.86989241 | BH174: 10161.30577 | BJ174: 829752 | BK174: 1742649 | BL174: 991 | BM174: -911906 | BN174: 740967 | BO174: 380684 | BR174: -12580 | BS174: 3138 | BT174: 200303 | BU174: 147785 | BV174: 0 | BX174: 52518 | BY174: -3064 | BZ174: -182 | CC174: 40455 | CD174: 676948 | CE174: 190618 | CG174: -11838 | CH174: -76207 | CI174: 13357 | CN174: 20 | CP174: 54 | EO174: -197597 | EP174: 1240 | EQ174: 16768 | ER174: -202008 | ES174: 1492 | ET174: 23255 | EX174: 185745 | EY174: -1261 | EZ174: 75173 | FA174: -1767 | FD174: 876967 | FE174: 787276 | FF174: 89691 | FG174: 443 | FH174: 874166 | FI174: 749894 | FJ174: 124272 | FK174: 969 | FW174: -101850 | FZ174: 15208 | GA174: -15208
A175: 309 | B175: Outokumpu | C175: 7139 | E175: 1.506205527 | F175: 69.01051059 | G175: -5276.369239 | K175: 36.5571656 | L175: 550.6373442 | M175: 16.79501586 | N175: 11966.80207 | P175: 31730 | Q175: 68738 | R175: 2 | S175: -37006 | T175: 23545 | U175: 22361 | X175: -451 | Y175: 37 | Z175: 8486 | AA175: 5136 | AB175: 0 | AD175: 3350 | AE175: 431 | AF175: -204 | AI175: 3141 | AJ175: 3788 | AK175: 8599 | AM175: -8 | AN175: -5427 | AO175: 3287 | AP175: 23545 | AT175: 22.25 | AV175: 12 | AW175: 7091 | AY175: 1.015899123 | AZ175: 66.95179658 | BA175: -5641.65844 | BE175: 37.36636827 | BF175: 397.1231138 | BG175: 11.47091648 | BH175: 12636.29953 | BJ175: 31343 | BK175: 71552 | BL175: 0 | BM175: -40209 | BN175: 22903 | BO175: 22678 | BR175: -346 | BS175: 37 | BT175: 5063 | BU175: 4841 | BV175: 0 | BX175: 222 | BY175: -3 | BZ175: 376 | CC175: 786 | CD175: 4961 | CE175: 5199 | CG175: 3296 | CH175: -4976 | CI175: -2284 | CN175: 22.25 | CP175: 139 | EO175: -10624 | EP175: 5295 | EQ175: 17 | ER175: -12148 | ES175: 4243 | ET175: 422 | EX175: 1009 | EY175: -133 | EZ175: 2952 | FA175: -269 | FD175: 39449 | FE175: 34227 | FF175: 5222 | FG175: 118 | FH175: 37156 | FI175: 32128 | FJ175: 5028 | FK175: 542 | FW175: -2130 | FZ175: 1862 | GA175: -1862
A176: 576 | B176: Padasjoki | C176: 3143 | E176: 1.264953478 | F176: 45.96881456 | G176: -1811.008591 | K176: 59.16371855 | L176: 2560.292714 | M176: 77.84873705 | N176: 12004.13618 | P176: 14775 | Q176: 32771 | R176: 0 | S176: -17996 | T176: 10873 | U176: 9689 | X176: -142 | Y176: 260 | Z176: 2684 | AA176: 2137 | AB176: -11 | AD176: 536 | AE176: 133 | AF176: 610 | AI176: 1143 | AJ176: 6996 | AK176: 2707 | AM176: 227 | AN176: -2086 | AO176: 188 | AP176: 10873 | AT176: 21 | AV176: 69 | AW176: 3073 | AY176: 0.8127009646 | AZ176: 47.44403142 | BA176: -2532.053368 | BE176: 57.4322355 | BF176: 2416.205662 | BG176: 66.85723801 | BH176: 13191.01855 | BJ176: 14871 | BK176: 33423 | BL176: 0 | BM176: -18552 | BN176: 10959 | BO176: 9949 | BR176: 19 | BS176: -486 | BT176: 1889 | BU176: 2204 | BV176: -2 | BX176: -317 | BY176: -18 | BZ176: 375 | CC176: 31 | CD176: 10623 | CE176: 1916 | CG176: 740 | CH176: -2355 | CI176: -2065 | CN176: 21 | CP176: 182 | EO176: -2691 | EP176: 50 | EQ176: 122 | ER176: -4101 | ES176: 22 | ET176: 98 | EX176: 1603 | EY176: -606 | EZ176: 3267 | FA176: 371 | FD176: 11522 | FE176: 9514 | FF176: 2008 | FG176: 9 | FH176: 12813 | FI176: 10558 | FJ176: 2255 | FK176: 16 | FW176: -21297 | FZ176: 1794 | GA176: -1794
A177: 577 | B177: Paimio | C177: 10620 | E177: 0.565521148 | F177: 88.27855889 | G177: -6504.80226 | K177: 12.71057631 | L177: 652.8248588 | M177: 24.60064162 | N177: 9685.969868 | P177: 32300 | Q177: 89450 | R177: 1 | S177: -57149 | T177: 40456 | U177: 19562 | X177: -712 | Y177: 96 | Z177: 2253 | AA177: 5118 | AB177: 0 | AD177: -2865 | AE177: 42 | AF177: 10 | AI177: -2855 | AJ177: -7556 | AK177: 2205 | AM177: -115 | AN177: -4554 | AO177: -5322 | AP177: 40456 | AT177: 20.75 | AV177: 286 | AW177: 10713 | AY177: 1.587632926 | AZ177: 84.9861723 | BA177: -6256.69747 | BE177: 15.06574387 | BF177: 751.1434705 | BG177: 30.02734726 | BH177: 9130.589004 | BJ177: 32508 | BK177: 87548 | BL177: 24 | BM177: -55016 | BN177: 42090 | BO177: 20501 | BR177: -552 | BS177: 30 | BT177: 7053 | BU177: 5227 | BV177: -193 | BX177: 1633 | BY177: 1 | BZ177: 0 | CC177: 1440 | CD177: -4998 | CE177: 6335 | CG177: 81 | CH177: -4069 | CI177: 1764 | CN177: 20.75 | CP177: 160 | EO177: -8087 | EP177: 276 | EQ177: 284 | ER177: -5088 | ES177: 167 | ET177: 350 | EX177: 0 | EY177: 10975 | EZ177: -94 | FA177: 3614 | FD177: 63029 | FE177: 28631 | FF177: 34398 | FG177: 20 | FH177: 62720 | FI177: 25012 | FJ177: 37708 | FK177: 20 | FW177: -5495 | FZ177: 2808 | GA177: -2808
A178: 578 | B178: Paltamo | C178: 3488 | E178: 1.360958562 | F178: 43.48052489 | G178: -4181.192661 | K178: 29.91402892 | L178: 1223.337156 | M178: 31.02809045 | N178: 14390.76835 | P178: 24263 | Q178: 45298 | R178: -2 | S178: -21037 | T178: 11449 | U178: 12298 | X178: -256 | Y178: 16 | Z178: 2470 | AA178: 1890 | AB178: 23 | AD178: 603 | AE178: 0 | AF178: 1 | AI178: 604 | AJ178: 1068 | AK178: 2251 | AM178: 557 | AN178: -1747 | AO178: -194 | AP178: 11449 | AT178: 22 | AV178: 113 | AW178: 3491 | AY178: 1.487598647 | AZ178: 44.89674059 | BA178: -4452.019479 | BE178: 29.77754204 | BF178: 1249.21226 | BG178: 31.24293397 | BH178: 14594.09911 | BJ178: 24769 | BK178: 45920 | BL178: -1 | BM178: -21152 | BN178: 11153 | BO178: 12645 | BR178: -154 | BS178: -8 | BT178: 2484 | BU178: 1651 | BV178: 14 | BX178: 847 | BY178: 0 | BZ178: -18 | CC178: 784 | CD178: 1408 | CE178: 2053 | CG178: -370 | CH178: -1619 | CI178: -543 | CN178: 22 | CP178: 141 | EO178: -2862 | EP178: 2 | EQ178: 415 | ER178: -3199 | ES178: 94 | ET178: 509 | EX178: 65 | EY178: 971 | EZ178: 2 | FA178: 2926 | FD178: 15518 | FE178: 9202 | FF178: 6316 | FG178: 2 | FH178: 16886 | FI178: 7644 | FJ178: 9242 | FK178: 18 | FW178: -1834 | FZ178: 1344 | GA178: -1344
A179: 445 | B179: Parainen | C179: 15457 | E179: 2.325957447 | F179: 51.2159041 | G179: -3973.151323 | K179: 48.30445927 | L179: 325.2248172 | M179: 12.67585249 | N179: 9364.818529 | P179: 47392 | Q179: 132265 | R179: -153 | S179: -85026 | T179: 64771 | U179: 31146 | X179: -1200 | Y179: 34 | Z179: 9725 | AA179: 7066 | AB179: 0 | AD179: 2659 | AE179: 546 | AF179: -65 | AI179: 2602 | AJ179: 13502 | AK179: 9919 | AM179: -287 | AN179: -3493 | AO179: 2761 | AP179: 64771 | AT179: 19.75 | AV179: 144 | AW179: 15398 | AY179: 2.261579818 | AZ179: 48.68473277 | BA179: -3732.173009 | BE179: 49.31618235 | BF179: 376.6073516 | BG179: 14.37052753 | BH179: 9565.527991 | BJ179: 48365 | BK179: 135253 | BL179: 4 | BM179: -86884 | BN179: 65916 | BO179: 31849 | BR179: -1210 | BS179: 52 | BT179: 9723 | BU179: 7293 | BV179: 0 | BX179: 2430 | BY179: 14 | BZ179: -66 | CC179: 2378 | CD179: 16062 | CE179: 10103 | CG179: -929 | CH179: -3622 | CI179: 3481 | CN179: 19.75 | CP179: 172 | EO179: -7758 | EP179: 191 | EQ179: 409 | ER179: -7182 | ES179: 161 | ET179: 399 | EX179: 895 | EY179: 393 | EZ179: 680 | FA179: 148 | FD179: 54889 | FE179: 31178 | FF179: 23711 | FG179: 36 | FH179: 52513 | FI179: 14681 | FJ179: 37832 | FK179: 36 | FW179: -5504 | FZ179: 2092 | GA179: -2092
A180: 580 | B180: Parikkala | C180: 5235 | E180: 7.102836879 | F180: 30.20523971 | G180: -588.156638 | K180: 72.35117638 | L180: 1194.842407 | M180: 59.68199404 | N180: 7307.354346 | P180: 3804 | Q180: 33770 | R180: -5 | S180: -29971 | T180: 16046 | U180: 17862 | X180: -24 | Y180: 36 | Z180: 3949 | AA180: 2235 | AB180: 0 | AD180: 1714 | AE180: 99 | AF180: -11 | AI180: 1671 | AJ180: 16049 | AK180: 3829 | AM180: 348 | AN180: -507 | AO180: 518 | AP180: 16046 | AT180: 19.5 | AV180: 98 | AW180: 5126 | AY180: 5.931435964 | AZ180: 17.99453765 | BA180: -476.1997659 | BE180: 73.11932136 | BF180: 1128.560281 | BG180: 32.6043822 | BH180: 12634.02263 | BJ180: 30098 | BK180: 59624 | BL180: 56 | BM180: -29470 | BN180: 15777 | BO180: 18200 | BR180: -4 | BS180: 42 | BT180: 4545 | BU180: 2513 | BV180: 0 | BX180: 2032 | BY180: -40 | BZ180: -16 | CC180: 1976 | CD180: 17989 | CE180: 4366 | CG180: -175 | CH180: -733 | CI180: 518 | CN180: 19.5 | CP180: 78 | EO180: -3918 | EP180: 200 | EQ180: 407 | ER180: -4364 | ES180: 205 | ET180: 311 | EX180: 0 | EY180: 0 | EZ180: 0 | FA180: 0 | FD180: 4887 | FE180: 4095 | FF180: 792 | FG180: 0 | FH180: 4126 | FI180: 3406 | FJ180: 720 | FK180: 0 | FW180: -2124 | FZ180: 649 | GA180: -649
A181: 581 | B181: Parkano | C181: 6766 | E181: 3.070014144 | F181: 48.85328438 | G181: -3591.486846 | K181: 39.06633491 | L181: 770.7655927 | M181: 26.08536268 | N181: 10784.95418 | P181: 30000 | Q181: 67615 | R181: 0 | S181: -37615 | T181: 22174 | U181: 19727 | X181: -281 | Y181: 32 | Z181: 4037 | AA181: 3320 | AB181: 0 | AD181: 717 | AE181: 234 | AF181: -16 | AI181: 683 | AJ181: 9382 | AK181: 4032 | AM181: -509 | AN181: -1110 | AO181: 483 | AP181: 22174 | AT181: 20.5 | AV181: 160 | AW181: 6692 | AY181: 5.488789238 | AZ181: 47.81697121 | BA181: -3938.284519 | BE181: 38.36514851 | BF181: 789.4500897 | BG181: 23.47714129 | BH181: 12273.61028 | BJ181: 35718 | BK181: 74186 | BL181: 330 | BM181: -38138 | BN181: 22180 | BO181: 20800 | BR181: -254 | BS181: 37 | BT181: 4625 | BU181: 3707 | BV181: 39 | BX181: 957 | BY181: -20 | BZ181: 4 | CC181: 905 | CD181: 10065 | CE181: 2705 | CG181: -151 | CH181: -621 | CI181: -2639 | CN181: 21 | CP181: 144 | EO181: -3867 | EP181: 150 | EQ181: 168 | ER181: -6954 | ES181: 8 | ET181: 1602 | EX181: 0 | EY181: 5156 | EZ181: 1170 | FA181: 185 | FD181: 28208 | FE181: 19220 | FF181: 8988 | FG181: 170 | FH181: 28942 | FI181: 19769 | FJ181: 9173 | FK181: 74 | FW181: -1880 | FZ181: 954 | GA181: -954
A182: 599 | B182: Pedersören kunta | C182: 11129 | E182: 1.527526395 | F182: 49.27091328 | G182: -2842.034325 | K182: 46.7141726 | L182: 611.1959745 | M182: 25.55011269 | N182: 8731.332555 | P182: 30376 | Q182: 87267 | R182: 46 | S182: -56845 | T182: 36296 | U182: 24538 | X182: -204 | Y182: 43 | Z182: 3828 | AA182: 3316 | AB182: -3 | AD182: 509 | AE182: 768 | AF182: -168 | AI182: 333 | AJ182: 11995 | AK182: 3677 | AM182: -877 | AN182: -2429 | AO182: -2329 | AP182: 36296 | AT182: 20.5 | AV182: 265 | AW182: 11067 | AY182: 1.053746929 | AZ182: 47.45057575 | BA182: -3112.044818 | BE182: 46.93216578 | BF182: 297.0091262 | BG182: 11.89006382 | BH182: 9117.5567 | BJ182: 30303 | BK182: 87740 | BL182: 24 | BM182: -57413 | BN182: 35480 | BO182: 25316 | BR182: -125 | BS182: -8 | BT182: 3250 | BU182: 3575 | BV182: -2 | BX182: -327 | BY182: -1 | BZ182: -97 | CC182: -459 | CD182: 12273 | CE182: 2948 | CG182: 1010 | CH182: -3075 | CI182: -2761 | CN182: 20.5 | CP182: 276 | EO182: -7039 | EP182: 871 | EQ182: 162 | ER182: -9705 | ES182: 250 | ET182: 3746 | EX182: 1325 | EY182: 5190 | EZ182: 1722 | FA182: 941 | FD182: 31018 | FE182: 12643 | FF182: 18375 | FG182: 307 | FH182: 30598 | FI182: 8761 | FJ182: 21837 | FK182: 307 | FW182: -4589 | FZ182: 1465 | GA182: -1465
A183: 583 | B183: Pelkosenniemi | C183: 958 | E183: 0.3772261198 | F183: 49.31895987 | G183: -4968.68476 | K183: 48.09594096 | L183: 1473.903967 | M183: 33.47275443 | N183: 16072.02505 | P183: 5251 | Q183: 13114 | R183: -11 | S183: -7874 | T183: 4422 | U183: 4056 | X183: -71 | Y183: 90 | Z183: 623 | AA183: 610 | AB183: 616 | AD183: 629 | AE183: 177 | AF183: -110 | AI183: 522 | AJ183: 1799 | AK183: 1220 | AM183: -27 | AN183: -1777 | AO183: 1658 | AP183: 4422 | AT183: 19.5 | AV183: 132 | AW183: 951 | AY183: 1.629787234 | AZ183: 45.99524741 | BA183: -4570.977918 | BE183: 48.8005833 | BF183: 1502.628812 | BG183: 35.14250101 | BH183: 15606.72976 | BJ183: 5413 | BK183: 13194 | BL183: -10 | BM183: -7791 | BN183: 4868 | BO183: 4027 | BR183: -30 | BS183: 32 | BT183: 1106 | BU183: 640 | BV183: -26 | BX183: 440 | BY183: -3 | BZ183: -12 | CC183: 416 | CD183: 2215 | CE183: 1085 | CG183: -146 | CH183: -662 | CI183: 195 | CN183: 21.5 | CP183: 26 | EO183: -425 | EP183: 20 | EQ183: 843 | ER183: -937 | ES183: 42 | ET183: 5 | EX183: 507 | EY183: -34 | EZ183: 504 | FA183: 17 | FD183: 4856 | FE183: 4201 | FF183: 655 | FG183: 2026 | FH183: 4739 | FI183: 4070 | FJ183: 669 | FK183: 2026 | FW183: -211 | FZ183: 433 | GA183: -433
A184: 854 | B184: Pello | C184: 3623 | E184: 1.210075027 | F184: 38.64730757 | G184: -2695.00414 | K184: 50.01364339 | L184: 1164.780569 | M184: 35.23343322 | N184: 12066.51946 | P184: 13573 | Q184: 39928 | R184: -5 | S184: -26360 | T184: 11313 | U184: 16025 | X184: -93 | Y184: 148 | Z184: 1033 | AA184: 1973 | AB184: 47 | AD184: -893 | AE184: 102 | AF184: -3 | AI184: -896 | AJ184: 4971 | AK184: 1523 | AM184: 271 | AN184: -837 | AO184: -256 | AP184: 11313 | AT184: 20.25 | AV184: 278 | AW184: 3565 | AY184: 1.899233297 | AZ184: 38.21417346 | BA184: -3055.539972 | BE184: 49.38864095 | BF184: 804.4880785 | BG184: 23.64305719 | BH184: 12419.63534 | BJ184: 13610 | BK184: 39696 | BL184: 3 | BM184: -26083 | BN184: 11329 | BO184: 16420 | BR184: -83 | BS184: 67 | BT184: 1650 | BU184: 1854 | BV184: 0 | BX184: -204 | BY184: 2 | BZ184: 0 | CC184: -221 | CD184: 4736 | CE184: 1669 | CG184: -219 | CH184: -829 | CI184: -1268 | CN184: 20.25 | CP184: 245 | EO184: -2816 | EP184: 410 | EQ184: 627 | ER184: -3625 | ES184: 150 | ET184: 538 | EX184: 1379 | EY184: -9 | EZ184: 783 | FA184: -1 | FD184: 9656 | FE184: 8911 | FF184: 745 | FG184: 0 | FH184: 9617 | FI184: 8959 | FJ184: 658 | FK184: 0 | FW184: 275 | FZ184: 946 | GA184: -946
A185: 584 | B185: Perho | C185: 2931 | E185: 6.909090909 | F185: 39.94331477 | G185: -1699.761174 | K185: 58.98100173 | L185: 1971.68202 | M185: 67.41027772 | N185: 10675.87854 | P185: 11239 | Q185: 27173 | R185: 1 | S185: -15933 | T185: 7457 | U185: 11647 | X185: 273 | Y185: 6 | Z185: 3450 | AA185: 1557 | AB185: -25 | AD185: 1868 | AE185: 407 | AF185: -837 | AI185: 1031 | AJ185: 5026 | AK185: 3463 | AM185: 179 | AN185: -460 | AO185: 941 | AP185: 7457 | AT185: 21 | AV185: 13 | AW185: 2907 | AY185: 6.514880952 | AZ185: 50.54297135 | BA185: -2372.54902 | BE185: 53.04883313 | BF185: 2227.038184 | BG185: 71.05942142 | BH185: 11439.28449 | BJ185: 9874 | BK185: 28066 | BL185: -7 | BM185: -18199 | BN185: 7122 | BO185: 13024 | BR185: 180 | BS185: 16 | BT185: 2143 | BU185: 1746 | BV185: -8 | BX185: 389 | BY185: -4 | BZ185: 1 | CC185: 386 | CD185: 5474 | CE185: 2115 | CG185: -470 | CH185: -290 | CI185: -1875 | CN185: 21 | CP185: 127 | EO185: -3547 | EP185: 1013 | EQ185: 12 | ER185: -4855 | ES185: 822 | ET185: 43 | EX185: 1336 | EY185: -1779 | EZ185: 849 | FA185: 1525 | FD185: 8577 | FE185: 3235 | FF185: 5342 | FG185: 14 | FH185: 10666 | FI185: 3912 | FJ185: 6754 | FK185: 15 | FW185: -2096 | FZ185: 755 | GA185: -755
A186: 588 | B186: Pertunmaa | C186: 1817 | E186: 2.408759124 | F186: 51.93221413 | G186: -3783.709411 | K186: 33.10899345 | L186: 988.4424876 | M186: 35.0912692 | N186: 10281.2328 | P186: 6957 | Q186: 17674 | R186: 0 | S186: -10717 | T186: 5701 | U186: 6284 | X186: -60 | Y186: 51 | Z186: 1259 | AA186: 882 | AB186: -2 | AD186: 375 | AE186: 15 | AF186: 0 | AI186: 371 | AJ186: 62 | AK186: 1226 | AM186: -122 | AN186: -487 | AO186: 817 | AP186: 5701 | AT186: 21 | AV186: 117 | AW186: 1796 | AY186: 2.490310078 | AZ186: 54.26736963 | BA186: -4159.242762 | BE186: 33.0789518 | BF186: 1041.202673 | BG186: 33.53889244 | BH186: 11331.29176 | BJ186: 7052 | BK186: 17932 | BL186: 0 | BM186: -10880 | BN186: 5626 | BO186: 6479 | BR186: -44 | BS186: 60 | BT186: 1241 | BU186: 827 | BV186: 0 | BX186: 414 | BY186: -3 | BZ186: -3 | CC186: 412 | CD186: 409 | CE186: 1152 | CG186: 117 | CH186: -472 | CI186: -651 | CN186: 21 | CP186: 145 | EO186: -456 | EP186: 5 | EQ186: 42 | ER186: -1862 | ES186: 10 | ET186: 49 | EX186: 12 | EY186: -303 | EZ186: 815 | FA186: 226 | FD186: 7114 | FE186: 6326 | FF186: 788 | FG186: 1 | FH186: 7657 | FI186: 6617 | FJ186: 1040 | FK186: 1 | FW186: -177 | FZ186: 305 | GA186: -305
A187: 592 | B187: Petäjävesi | C187: 4008 | E187: 1.333680918 | F187: 62.54395094 | G187: -3788.423154 | K187: 46.69889177 | L187: 1362.025948 | M187: 54.61244347 | N187: 9103.043912 | P187: 10292 | Q187: 32159 | R187: 5 | S187: -21862 | T187: 13040 | U187: 12219 | X187: -213 | Y187: 411 | Z187: 3595 | AA187: 1798 | AB187: 0 | AD187: 1797 | AE187: 144 | AF187: -11 | AI187: 1786 | AJ187: 9728 | AK187: 3547 | AM187: 241 | AN187: -2635 | AO187: 2252 | AP187: 13040 | AT187: 21.25 | AV187: 58 | AW187: 3981 | AY187: 0.8204754973 | AZ187: 69.44118141 | BA187: -4254.458679 | BE187: 43.23241816 | BF187: 1482.542075 | BG187: 54.09919638 | BH187: 10002.51193 | BJ187: 10820 | BK187: 34218 | BL187: 0 | BM187: -23398 | BN187: 12696 | BO187: 12238 | BR187: -154 | BS187: 129 | BT187: 1511 | BU187: 1771 | BV187: 0 | BX187: -260 | BY187: 0 | BZ187: -218 | CC187: -478 | CD187: 9184 | CE187: 1443 | CG187: -404 | CH187: -1881 | CI187: -1933 | CN187: 21.25 | CP187: 261 | EO187: -1382 | EP187: 3 | EQ187: 84 | ER187: -3519 | ES187: 1 | ET187: 142 | EX187: 291 | EY187: -400 | EZ187: 1448 | FA187: 3004 | FD187: 17111 | FE187: 13613 | FF187: 3498 | FG187: 9 | FH187: 19679 | FI187: 13447 | FJ187: 6232 | FK187: 4 | FW187: -636 | FZ187: 596 | GA187: -596
A188: 593 | B188: Pieksämäki | C188: 18801 | E188: 0.4865234132 | F188: 74.78298769 | G188: -5817.296952 | K188: 29.1287474 | L188: 359.2362108 | M188: 13.28896867 | N188: 9866.921972 | P188: 51768 | Q188: 158287 | R188: 330 | S188: -106189 | T188: 67127 | U188: 46303 | X188: -1069 | Y188: 562 | Z188: 6734 | AA188: 9856 | AB188: 3 | AD188: -3119 | AE188: 651 | AF188: -118 | AI188: -3222 | AJ188: -8419 | AK188: 6314 | AM188: 1426 | AN188: -15002 | AO188: -904 | AP188: 67127 | AT188: 21.5 | AV188: 261 | AW188: 18475 | AY188: 1.476171121 | AZ188: 70.97003192 | BA188: -5707.117727 | BE188: 31.0107503 | BF188: 447.631935 | BG188: 17.1147751 | BH188: 9546.4682 | BJ188: 53162 | BK188: 156586 | BL188: 80 | BM188: -103344 | BN188: 67611 | BO188: 49675 | BR188: -858 | BS188: 556 | BT188: 13640 | BU188: 8695 | BV188: 3 | BX188: 4948 | BY188: -9 | BZ188: 102 | CC188: 4907 | CD188: -3491 | CE188: 13157 | CG188: 154 | CH188: -8954 | CI188: 4052 | CN188: 22 | CP188: 124 | EO188: -11085 | EP188: 2575 | EQ188: 1292 | ER188: -9775 | ES188: 78 | ET188: 592 | EX188: 17024 | EY188: -16 | EZ188: 9355 | FA188: -2493 | FD188: 101049 | FE188: 65418 | FF188: 35631 | FG188: 52 | FH188: 98935 | FI188: 66576 | FJ188: 32359 | FK188: 172 | FW188: -6670 | FZ188: 6568 | GA188: -6568
A189: 595 | B189: Pielavesi | C189: 4740 | E189: 0.7204771372 | F189: 46.45279873 | G189: -4138.185654 | K189: 41.25305126 | L189: 667.721519 | M189: 19.35277168 | N189: 12593.45992 | P189: 18398 | Q189: 51482 | R189: 23 | S189: -33061 | T189: 13605 | U189: 20771 | X189: -173 | Y189: 430 | Z189: 1572 | AA189: 2204 | AB189: -14 | AD189: -646 | AE189: 75 | AF189: -5 | AI189: -649 | AJ189: -1906 | AK189: 1569 | AM189: 733 | AN189: -2275 | AO189: -3529 | AP189: 13605 | AT189: 20.75 | AV189: 268 | AW189: 4697 | AY189: 0.8830022075 | AZ189: 60.02386412 | BA189: -5761.762827 | BE189: 34.71121737 | BF189: 694.0600383 | BG189: 18.46638525 | BH189: 13718.54375 | BJ189: 19410 | BK189: 51519 | BL189: 20 | BM189: -32089 | BN189: 12939 | BO189: 21288 | BR189: -164 | BS189: 209 | BT189: 2183 | BU189: 2382 | BV189: 42 | BX189: -157 | BY189: -14 | BZ189: -3 | CC189: -180 | CD189: -1964 | CE189: 2200 | CG189: -198 | CH189: -2501 | CI189: -7821 | CN189: 20.75 | CP189: 244 | EO189: -5662 | EP189: 85 | EQ189: 479 | ER189: -10155 | ES189: 108 | ET189: 26 | EX189: 1713 | EY189: 109 | EZ189: 10439 | FA189: 449 | FD189: 17871 | FE189: 15644 | FF189: 2227 | FG189: 269 | FH189: 26255 | FI189: 23568 | FJ189: 2687 | FK189: 267 | FW189: -3047 | FZ189: 809 | GA189: -809
A190: 598 | B190: Pietarsaari | C190: 19436 | E190: 0.5107648648 | F190: 54.82114259 | G190: -5489.195308 | K190: 51.726544 | L190: 656.4107841 | M190: 15.60222072 | N190: 15356.14324 | P190: 136710 | Q190: 240739 | R190: 4770 | S190: -99259 | T190: 80213 | U190: 37218 | X190: -1680 | Y190: 467 | Z190: 16959 | AA190: 13639 | AB190: -917 | AD190: 2403 | AE190: 322 | AF190: 0 | AI190: 2397 | AJ190: 85974 | AK190: 5202 | AM190: 418 | AN190: -34888 | AO190: -13603 | AP190: 80213 | AT190: 21.25 | AV190: 64 | AW190: 19377 | AY190: 4.497427101 | AZ190: 52.75418208 | BA190: -5921.195231 | BE190: 52.98559286 | BF190: 306.0329256 | BG190: 8.333686273 | BH190: 13403.67446 | BJ190: 132705 | BK190: 241366 | BL190: 6303 | BM190: -102358 | BN190: 77548 | BO190: 39204 | BR190: -1203 | BS190: 1209 | BT190: 14400 | BU190: 10681 | BV190: -1047 | BX190: 2672 | BY190: 4 | BZ190: 0 | CC190: 2676 | CD190: 93902 | CE190: 5325 | CG190: 8944 | CH190: -2166 | CI190: -6192 | CN190: 21.25 | CP190: 121 | EO190: -20517 | EP190: 24 | EQ190: 1688 | ER190: -12634 | ES190: 443 | ET190: 674 | EX190: 0 | EY190: 0 | EZ190: 0 | FA190: 0 | FD190: 95792 | FE190: 82328 | FF190: 13464 | FG190: 112 | FH190: 93625 | FI190: 70971 | FJ190: 22654 | FK190: 2026 | FW190: -12527 | FZ190: 12832 | GA190: -12832
A191: 601 | B191: Pihtipudas | C191: 4221 | E191: 2.269849785 | F191: 51.80416886 | G191: -3470.74153 | K191: 45.84556638 | L191: 2738.450604 | M191: 72.85125965 | N191: 13720.20848 | P191: 26175 | Q191: 53064 | R191: 0 | S191: -26889 | T191: 12479 | U191: 18436 | X191: 127 | Y191: -129 | Z191: 4024 | AA191: 2358 | AB191: 0 | AD191: 1666 | AE191: 0 | AF191: 3 | AI191: 1669 | AJ191: 9048 | AK191: 4015 | AM191: -101 | AN191: -1657 | AO191: 1347 | AP191: 12479 | AT191: 21 | AV191: 47 | AW191: 4202 | AY191: 2.101054969 | AZ191: 57.15957317 | BA191: -4103.046168 | BE191: 40.7807668 | BF191: 2743.455497 | BG191: 67.48764996 | BH191: 14837.69634 | BJ191: 26501 | BK191: 53840 | BL191: 0 | BM191: -27339 | BN191: 11793 | BO191: 18965 | BR191: 206 | BS191: 0 | BT191: 3625 | BU191: 2347 | BV191: 0 | BX191: 1278 | BY191: 0 | BZ191: 0 | CC191: 1278 | CD191: 10522 | CE191: 3626 | CG191: -659 | CH191: -1642 | CI191: -2840 | CN191: 21 | CP191: 86 | EO191: -2782 | EP191: 5 | EQ191: 109 | ER191: -6646 | ES191: 27 | ET191: 153 | EX191: 1000 | EY191: 208 | EZ191: 4753 | FA191: 414 | FD191: 23891 | FE191: 18222 | FF191: 5669 | FG191: 0 | FH191: 27551 | FI191: 21652 | FJ191: 5899 | FK191: 0 | FW191: -1010 | FZ191: 742 | GA191: -742
A192: 604 | B192: Pirkkala | C192: 18913 | E192: 0.9696221554 | F192: 50.95469916 | G192: -2955.691852 | K192: 53.86031325 | L192: 267.2236028 | M192: 12.38268166 | N192: 7876.857188 | P192: 44937 | Q192: 128254 | R192: 0 | S192: -83317 | T192: 81316 | U192: 10963 | X192: -804 | Y192: 64 | Z192: 8222 | AA192: 7965 | AB192: 0 | AD192: 257 | AE192: 1796 | AF192: -14 | AI192: 320 | AJ192: 47513 | AK192: 11707 | AM192: 205 | AN192: -8505 | AO192: -2040 | AP192: 81316 | AT192: 20 | AV192: 234 | AW192: 19163 | AY192: 1.964587973 | AZ192: 47.07849695 | BA192: -2572.926995 | BE192: 54.94164638 | BF192: 636.2782445 | BG192: 29.51223475 | BH192: 7869.331524 | BJ192: 50863 | BK192: 129875 | BL192: 9 | BM192: -79003 | BN192: 84809 | BO192: 11735 | BR192: -591 | BS192: 97 | BT192: 17047 | BU192: 10078 | BV192: 38 | BX192: 7007 | BY192: 49 | BZ192: 4 | CC192: 7032 | CD192: 54538 | CE192: 9013 | CG192: 1065 | CH192: -8385 | CI192: 6590 | CN192: 20 | CP192: 77 | EO192: -10643 | EP192: 99 | EQ192: -3203 | ER192: -11386 | ES192: 596 | ET192: 8367 | EX192: 7764 | EY192: 0 | EZ192: 8912 | FA192: -83 | FD192: 46500 | FE192: 38021 | FF192: 8479 | FG192: 8 | FH192: 46945 | FI192: 38725 | FJ192: 8220 | FK192: 22 | FW192: -5083 | FZ192: 6822 | GA192: -6822
A193: 607 | B193: Polvijärvi | C193: 4556 | E193: 2.884318766 | F193: 27.57592314 | G193: 51.36084284 | K193: 67.870742 | L193: 2161.984197 | M193: 81.63972024 | N193: 9665.935031 | P193: 16777 | Q193: 40774 | R193: 2 | S193: -23995 | T193: 12189 | U193: 14960 | X193: -123 | Y193: 199 | Z193: 3230 | AA193: 1953 | AB193: 0 | AD193: 1277 | AE193: 7 | AF193: -1071 | AI193: 206 | AJ193: 17089 | AK193: 3325 | AM193: 236 | AN193: -1031 | AO193: 1293 | AP193: 12189 | AT193: 19.5 | AV193: 112 | AW193: 4514 | AY193: 3.271975181 | AZ193: 27.27148174 | BA193: 147.9840496 | BE193: 68.46136346 | BF193: 2223.526805 | BG193: 81.74729443 | BH193: 9928.001772 | BJ193: 17066 | BK193: 40873 | BL193: 0 | BM193: -23807 | BN193: 11604 | BO193: 15123 | BR193: -80 | BS193: 224 | BT193: 3064 | BU193: 2391 | BV193: 4 | BX193: 677 | BY193: 0 | BZ193: 355 | CC193: 1032 | CD193: 17865 | CE193: 3090 | CG193: -58 | CH193: -867 | CI193: 599 | CN193: 20.25 | CP193: 151 | EO193: -2037 | EP193: 0 | EQ193: 5 | ER193: -2695 | ES193: 192 | ET193: 12 | EX193: 994 | EY193: -1 | EZ193: 610 | FA193: -25 | FD193: 6484 | FE193: 5616 | FF193: 868 | FG193: 0 | FH193: 6196 | FI193: 5492 | FJ193: 704 | FK193: 261 | FW193: -1132 | FZ193: 329 | GA193: -329
A194: 608 | B194: Pomarkku | C194: 2240 | E194: 2.230932203 | F194: 34.20626248 | G194: -2780.357143 | K194: 50.57030167 | L194: 406.25 | M194: 10.69244141 | N194: 13867.85714 | P194: 11395 | Q194: 25483 | R194: 0 | S194: -14088 | T194: 6579 | U194: 8565 | X194: -41 | Y194: -4 | Z194: 1011 | AA194: 656 | AB194: 0 | AD194: 355 | AE194: 25 | AF194: 0 | AI194: 355 | AJ194: 4097 | AK194: 683 | AM194: -322 | AN194: -430 | AO194: -1951 | AP194: 6579 | AT194: 20.5 | AV194: 228 | AW194: 2233 | AY194: 1.219047619 | AZ194: 33.05505328 | BA194: -2648.902821 | BE194: 51.38274336 | BF194: 433.4975369 | BG194: 13.40923754 | BH194: 11799.82087 | BJ194: 11090 | BK194: 25364 | BL194: 0 | BM194: -14274 | BN194: 6447 | BO194: 8456 | BR194: -34 | BS194: 9 | BT194: 604 | BU194: 779 | BV194: 0 | BX194: -175 | BY194: 0 | BZ194: 0 | CC194: -179 | CD194: 3914 | CE194: 604 | CG194: 231 | CH194: -489 | CI194: 309 | CN194: 20.5 | CP194: 278 | EO194: -5070 | EP194: 1039 | EQ194: 1397 | ER194: -447 | ES194: 6 | ET194: 146 | EX194: 3287 | EY194: -702 | EZ194: 9 | FA194: 452 | FD194: 5253 | FE194: 4064 | FF194: 1189 | FG194: 23 | FH194: 5225 | FI194: 3317 | FJ194: 1908 | FK194: 23 | FW194: -2119 | FZ194: 244 | GA194: -244
A195: 609 | B195: Pori | C195: 85363 | E195: 1.262040649 | F195: 66.20909206 | G195: -5183.557279 | K195: 43.72972752 | L195: 1234.633272 | M195: 36.30530063 | N195: 12412.54408 | P195: 433574 | Q195: 892943 | R195: -1020 | S195: -460389 | T195: 306633 | U195: 222259 | X195: -4408 | Y195: 4197 | Z195: 68292 | AA195: 67180 | AB195: -3274 | AD195: -2162 | AE195: 21389 | AF195: -1137 | AI195: -5699 | AJ195: 15528 | AK195: 63683 | AM195: -9762 | AN195: -52911 | AO195: -12037 | AP195: 306633 | AT195: 19.75 | AV195: 86 | AW195: 85059 | AY195: 1.384981301 | AZ195: 64.6193038 | BA195: -5169.564655 | BE195: 44.28037602 | BF195: 1176.936009 | BG195: 35.70371119 | BH195: 12031.84848 | BJ195: 423624 | BK195: 863129 | BL195: -681 | BM195: -440186 | BN195: 306653 | BO195: 221256 | BR195: -3835 | BS195: 3269 | BT195: 87157 | BU195: 66301 | BV195: 0 | BX195: 20856 | BY195: -516 | BZ195: 66 | CC195: 17830 | CD195: 41079 | CE195: 75366 | CG195: 14278 | CH195: -61421 | CI195: 3462 | CN195: 19.75 | CP195: 45 | EO195: -107878 | EP195: 1750 | EQ195: 30408 | ER195: -92769 | ES195: 1357 | ET195: 19508 | EX195: 93340 | EY195: -4402 | EZ195: 50233 | FA195: -5878 | FD195: 468032 | FE195: 393086 | FF195: 74946 | FG195: 2707 | FH195: 450965 | FI195: 382205 | FJ195: 68760 | FK195: 2874 | FS195: =(EC195/EF195) ->  | FT195: =(FS195/CQ195)*1000 ->  | FW195: -28624 | FZ195: 28427 | GA195: =FZ195*-1 -> -28427
A196: 611 | B196: Pornainen | C196: 5125 | E196: 1.025316456 | F196: 56.68081202 | G196: -3121.170732 | K196: 41.84885173 | L196: 346.1463415 | M196: 17.83037312 | N196: 7085.853659 | P196: 9590 | Q196: 32550 | R196: -4 | S196: -22964 | T196: 18499 | U196: 6787 | X196: -169 | Y196: -25 | Z196: 2128 | AA196: 2188 | AB196: 481 | AD196: 421 | AE196: 9 | AF196: 16 | AI196: 437 | AJ196: 6348 | AK196: 2228 | AM196: -109 | AN196: -2070 | AO196: 1503 | AP196: 18499 | AT196: 20 | AV196: 244 | AW196: 5108 | AY196: 2.523809524 | AZ196: 55.35379698 | BA196: -2837.314017 | BE196: 43.8390127 | BF196: 860.4150352 | BG196: 44.02478182 | BH196: 7133.516053 | BJ196: 9657 | BK196: 32397 | BL196: 3 | BM196: -22737 | BN196: 19287 | BO196: 7348 | BR196: -170 | BS196: -25 | BT196: 3703 | BU196: 2189 | BV196: 0 | BX196: 1514 | BY196: 0 | BZ196: 17 | CC196: 1531 | CD196: 7856 | CE196: 3525 | CG196: 796 | CH196: -1335 | CI196: 1506 | CN196: 20.5 | CP196: 134 | EO196: -1341 | EP196: 13 | EQ196: 603 | ER196: -2454 | ES196: 51 | ET196: 384 | EX196: 2143 | EY196: -1507 | EZ196: 1503 | FA196: 0 | FD196: 16047 | FE196: 14595 | FF196: 1452 | FG196: 0 | FH196: 16216 | FI196: 15528 | FJ196: 688 | FK196: 0 | FW196: -134 | FZ196: 1441 | GA196: -1441
A197: 638 | B197: Porvoo | C197: 49928 | E197: 1.190189828 | F197: 77.77379419 | G197: -6401.698446 | K197: 25.26119702 | L197: 770.729851 | M197: 26.14383276 | N197: 10760.33488 | P197: 217754 | Q197: 450128 | R197: 413 | S197: -231961 | T197: 221842 | U197: 59675 | X197: -3761 | Y197: -421 | Z197: 45374 | AA197: 45812 | AB197: 0 | AD197: -438 | AE197: 396 | AF197: -450 | AI197: -893 | AJ197: 26737 | AK197: 40257 | AM197: -1643 | AN197: -37499 | AO197: 1519 | AP197: 221842 | AT197: 19.75 | AV197: 57 | AW197: 50144 | AY197: 1.491266479 | AZ197: 76.31827425 | BA197: -6776.064933 | BE197: 25.88278645 | BF197: 692.6052967 | BG197: 21.1904937 | BH197: 11929.92183 | BJ197: 230928 | BK197: 469088 | BL197: 467 | BM197: -237693 | BN197: 228727 | BO197: 70944 | BR197: -3154 | BS197: 321 | BT197: 59145 | BU197: 46478 | BV197: 2030 | BX197: 14697 | BY197: -152 | BZ197: -2763 | CC197: 10844 | CD197: 36598 | CE197: 53056 | CG197: -58 | CH197: -38501 | CI197: -20258 | CN197: 19.75 | CP197: 25 | EO197: -44554 | EP197: 570 | EQ197: 5246 | ER197: -86509 | ES197: 1104 | ET197: 12091 | EX197: 42688 | EY197: -68 | EZ197: 52953 | FA197: 134 | FD197: 279902 | FE197: 242766 | FF197: 37136 | FG197: 202 | FH197: 294488 | FI197: 255445 | FJ197: 39043 | FK197: 202 | FW197: -11821 | FZ197: 25479 | GA197: -25479
A198: 614 | B198: Posio | C198: 3477 | E198: 0.8898586866 | F198: 60.59051812 | G198: -4296.232384 | K198: 42.19119635 | L198: 2721.886684 | M198: 75.63408653 | N198: 13135.4616 | P198: 18186 | Q198: 42351 | R198: 0 | S198: -24165 | T198: 10558 | U198: 15319 | X198: -482 | Y198: 423 | Z198: 1653 | AA198: 1922 | AB198: 42 | AD198: -227 | AE198: 17 | AF198: 11 | AI198: -216 | AJ198: 1626 | AK198: 1618 | AM198: 362 | AN198: -1918 | AO198: 771 | AP198: 10558 | AT198: 21 | AV198: 217 | AW198: 3424 | AY198: 1.24481107 | AZ198: 54.79402851 | BA198: -4176.401869 | BE198: 40.17547634 | BF198: 1878.504673 | BG198: 51.8171585 | BH198: 13232.18458 | BJ198: 18573 | BK198: 42294 | BL198: 1 | BM198: -23720 | BN198: 10065 | BO198: 15907 | BR198: -468 | BS198: 85 | BT198: 1869 | BU198: 1750 | BV198: 0 | BX198: 119 | BY198: -1 | BZ198: 165 | CC198: 283 | CD198: -1348 | CE198: 1877 | CG198: -1376 | CH198: -1409 | CI198: 773 | CN198: 21.75 | CP198: 212 | EO198: -897 | EP198: 45 | EQ198: 5 | ER198: -1138 | ES198: 31 | ET198: 3 | EX198: 1659 | EY198: -256 | EZ198: 1020 | FA198: -256 | FD198: 20595 | FE198: 18940 | FF198: 1655 | FG198: 402 | FH198: 19949 | FI198: 18388 | FJ198: 1561 | FK198: 402 | FW198: -307 | FZ198: 1302 | GA198: -1302
A199: 615 | B199: Pudasjärvi | C199: 8257 | E199: 1.816901408 | F199: 45.58674172 | G199: -3440.353639 | K199: 50.22669459 | L199: 2276.613782 | M199: 49.23555498 | N199: 16877.31622 | P199: 65761 | Q199: 119743 | R199: 25 | S199: -53957 | T199: 23214 | U199: 38040 | X199: -497 | Y199: 376 | Z199: 7176 | AA199: 4875 | AB199: 0 | AD199: 2301 | AE199: 687 | AF199: 69 | AI199: 2467 | AJ199: 13024 | AK199: 8071 | AM199: -1084 | AN199: -3696 | AO199: -933 | AP199: 23214 | AT199: 20.5 | AV199: 65 | AW199: 8187 | AY199: 1.435230024 | AZ199: 52.84041381 | BA199: -4190.423843 | BE199: 47.80407394 | BF199: 2372.053255 | BG199: 53.44215328 | BH199: 16200.68401 | BJ199: 60663 | BK199: 114867 | BL199: 1 | BM199: -54203 | BN199: 22448 | BO199: 38491 | BR199: -841 | BS199: 339 | BT199: 6234 | BU199: 7744 | BV199: 0 | BX199: -1510 | BY199: -4 | BZ199: 131 | CC199: -1383 | CD199: 11322 | CE199: 3629 | CG199: 1997 | CH199: -4077 | CI199: -7116 | CN199: 20.5 | CP199: 114 | EO199: -15286 | EP199: 2745 | EQ199: 3537 | ER199: -12657 | ES199: 1517 | ET199: 395 | EX199: 5978 | EY199: 162 | EZ199: 8112 | FA199: 3305 | FD199: 42070 | FE199: 36390 | FF199: 5680 | FG199: 2 | FH199: 48689 | FI199: 39770 | FJ199: 8919 | FK199: 7 | FW199: -3142 | FZ199: 2845 | GA199: -2845
A200: 616 | B200: Pukkila | C200: 1971 | E200: 0.797657082 | F200: 49.73527281 | G200: -3345.002537 | K200: 37.17157712 | L200: 613.3942161 | M200: 23.7326557 | N200: 9433.789954 | P200: 6849 | Q200: 17336 | R200: 0 | S200: -10487 | T200: 7220 | U200: 3874 | X200: -144 | Y200: 142 | Z200: 605 | AA200: 670 | AB200: 0 | AD200: -65 | AE200: 0 | AF200: 0 | AI200: -65 | AJ200: -48 | AK200: 385 | AM200: -417 | AN200: -795 | AO200: 422 | AP200: 7220 | AT200: 22 | AV200: 274 | AW200: 1988 | AY200: 0.582799634 | AZ200: 44.02421415 | BA200: -3005.030181 | BE200: 47.90992623 | BF200: 493.9637827 | BG200: 15.6253542 | BH200: 11538.73239 | BJ200: 6855 | BK200: 17513 | BL200: 0 | BM200: -10658 | BN200: 7314 | BO200: 3837 | BR200: -136 | BS200: 143 | BT200: 500 | BU200: 2866 | BV200: 4409 | BX200: 2043 | BY200: 0 | BZ200: -1 | CC200: 2042 | CD200: 2889 | CE200: 471 | CG200: 151 | CH200: -956 | CI200: 4707 | CN200: 22 | CP200: 280 | EO200: -311 | EP200: 4 | EQ200: 344 | ER200: -241 | ES200: 54 | ET200: 4423 | EX200: 2000 | EY200: -1381 | EZ200: 0 | FA200: 466 | FD200: 6348 | FE200: 4205 | FF200: 2143 | FG200: 3 | FH200: 5859 | FI200: 3304 | FJ200: 2555 | FK200: 502 | FW200: 323 | FZ200: 480 | GA200: -480
... 100 more rows
